Organisation Name,Directorate,Supplier Name,Supplier ID,Expense type,Best Value Accounting Code of Practice,Document/Invoice number,Clearing/Payment date,Invoice Amount
Buckinghamshire Council,Adults and Health,Corporate Document Services Ltd,1000000,Printing & Stationery,Supplies and Services,4101021360,28/12/2022,613
Buckinghamshire Council,Adults and Health,Hertfordshire Supplies,1000002,Other Equipment and Materials,Supplies and Services,4500120360,28/12/2022,135.92
Buckinghamshire Council,Adults and Health,Hertfordshire Supplies,1000002,Cleaning & Domestic Equipment,Supplies and Services,4500120360,28/12/2022,292.34
Buckinghamshire Council,Adults and Health,Hertfordshire Supplies,1000002,Catering & Domestic Equipment,Supplies and Services,4500120360,28/12/2022,154.11
Buckinghamshire Council,Communities,LYRECO UK LTD,1000008,Printing & Stationery,Supplies and Services,4800088711,23/12/2022,903.84
Buckinghamshire Council,Adults and Health,LYRECO UK LTD,1000008,Stationery & Office Supplies,Supplies and Services,4800087521,23/12/2022,11
Buckinghamshire Council,Adults and Health,LYRECO UK LTD,1000008,Stationery & Office Supplies,Supplies and Services,4800087521,23/12/2022,323.9
Buckinghamshire Council,Adults and Health,LYRECO UK LTD,1000008,Stationery & Office Supplies,Supplies and Services,4800087521,23/12/2022,328.8
Buckinghamshire Council,Adults and Health,LYRECO UK LTD,1000008,Stationery & Office Supplies,Supplies and Services,4800087521,23/12/2022,36
Buckinghamshire Council,Resources,LYRECO UK LTD,1000008,Printing & Stationery,Supplies and Services,4101025393,30/12/2022,1779.65
Buckinghamshire Council,Resources,LYRECO UK LTD,1000008,Printing & Stationery,Supplies and Services,4101025394,30/12/2022,3392.6
Buckinghamshire Council,Communities,Arriva The Shires Ltd,1000010,Subsidised Bus Services - Core,Agency (third party payments) & Contribs,4101021741,07/12/2022,20285.9
Buckinghamshire Council,Communities,Arriva The Shires Ltd,1000010,Contracts (Mainstream),Transport,4101020974,02/12/2022,40503.75
Buckinghamshire Council,Communities,Arriva The Shires Ltd,1000010,National Concessionary Fares Scheme,Agency (third party payments) & Contribs,4101021050,02/12/2022,527309.75
Buckinghamshire Council,Children's Services,Arriva The Shires Ltd,1000010,Miscellaneous (Other)  Expenses,Supplies and Services,4101022441,14/12/2022,675
Buckinghamshire Council,Children's Services,Arriva The Shires Ltd,1000010,Miscellaneous (Other)  Expenses,Supplies and Services,4101022442,14/12/2022,675
Buckinghamshire Council,Communities,Arriva The Shires Ltd,1000010,Subsidised Bus Services - Core,Agency (third party payments) & Contribs,4101023471,16/12/2022,5656.56
Buckinghamshire Council,Children's Services,Foster Care Associates Ltd,1000015,External Fostering Payments,Agency (third party payments) & Contribs,7002971240,21/12/2022,3956.4
Buckinghamshire Council,Children's Services,Foster Care Associates Ltd,1000015,External Fostering Payments,Agency (third party payments) & Contribs,7002971240,21/12/2022,3440.64
Buckinghamshire Council,Children's Services,Foster Care Associates Ltd,1000015,External Fostering Payments,Agency (third party payments) & Contribs,7002971240,21/12/2022,3378.6
Buckinghamshire Council,Children's Services,Foster Care Associates Ltd,1000015,External Fostering Payments,Agency (third party payments) & Contribs,7002971240,21/12/2022,3378.6
Buckinghamshire Council,Children's Services,Foster Care Associates Ltd,1000015,External Fostering Payments,Agency (third party payments) & Contribs,7002971240,21/12/2022,3956
Buckinghamshire Council,Children's Services,Foster Care Associates Ltd,1000015,External Fostering Payments,Agency (third party payments) & Contribs,7002971240,21/12/2022,3440.64
Buckinghamshire Council,Children's Services,Foster Care Associates Ltd,1000015,External Fostering Payments,Agency (third party payments) & Contribs,7002971240,21/12/2022,3275.72
Buckinghamshire Council,Children's Services,Foster Care Associates Ltd,1000015,External Fostering Payments,Agency (third party payments) & Contribs,7002971240,21/12/2022,3600.52
Buckinghamshire Council,Children's Services,Foster Care Associates Ltd,1000015,External Fostering Payments,Agency (third party payments) & Contribs,7002971240,21/12/2022,3211.88
Buckinghamshire Council,Children's Services,Foster Care Associates Ltd,1000015,External Fostering Payments,Agency (third party payments) & Contribs,7002971240,21/12/2022,3378.2
Buckinghamshire Council,Children's Services,Foster Care Associates Ltd,1000015,External Fostering Payments,Agency (third party payments) & Contribs,7002971240,21/12/2022,545
Buckinghamshire Council,Children's Services,Foster Care Associates Ltd,1000015,External Fostering Payments,Agency (third party payments) & Contribs,7002971240,21/12/2022,3052
Buckinghamshire Council,Children's Services,Foster Care Associates Ltd,1000015,External Fostering Payments,Agency (third party payments) & Contribs,7002971240,21/12/2022,3052
Buckinghamshire Council,Children's Services,Foster Care Associates Ltd,1000015,External Fostering Payments,Agency (third party payments) & Contribs,7002971240,21/12/2022,-2641.21
Buckinghamshire Council,Children's Services,Foster Care Associates Ltd,1000015,External Fostering Payments,Agency (third party payments) & Contribs,7002971240,21/12/2022,-5688.76
Buckinghamshire Council,Children's Services,Foster Care Associates Ltd,1000015,External Fostering Payments,Agency (third party payments) & Contribs,7002971240,21/12/2022,609.51
Buckinghamshire Council,Children's Services,Foster Care Associates Ltd,1000015,External Fostering Payments,Agency (third party payments) & Contribs,7002971240,21/12/2022,5688.76
Buckinghamshire Council,Children's Services,Foster Care Associates Ltd,1000015,External Fostering Payments,Agency (third party payments) & Contribs,7002971240,21/12/2022,5688.76
Buckinghamshire Council,Children's Services,Foster Care Associates Ltd,1000015,External Fostering Payments,Agency (third party payments) & Contribs,7002971240,21/12/2022,5688.76
Buckinghamshire Council,Children's Services,Foster Care Associates Ltd,1000015,External Fostering Payments,Agency (third party payments) & Contribs,7002971597,21/12/2022,3610
Buckinghamshire Council,"Planning, Growth & Sustainability",FOLKSPUR FLOORING LTD,1000021,Urgent Repairs & Maintenance,Controllable Premises,7002969717,21/12/2022,585
Buckinghamshire Council,"Planning, Growth & Sustainability",FOLKSPUR FLOORING LTD,1000021,General Repairs & Maintenance,Controllable Premises,4101022032,09/12/2022,1795
Buckinghamshire Council,Children's Services,TENCER LIMITED,1000023,Construction - Building Work,Capital - Expenditure -Controllable,7002965661,09/12/2022,965.9
Buckinghamshire Council,"Planning, Growth & Sustainability",TENCER LIMITED,1000023,Urgent Repairs & Maintenance,Controllable Premises,7002965671,09/12/2022,4517.8
Buckinghamshire Council,Children's Services,TENCER LIMITED,1000023,Construction - Building Work,Capital - Expenditure -Controllable,7002965709,09/12/2022,10335.3
Buckinghamshire Council,Children's Services,TENCER LIMITED,1000023,General Repairs & Maintenance,Controllable Premises,7002965711,09/12/2022,6238.6
Buckinghamshire Council,"Planning, Growth & Sustainability",TENCER LIMITED,1000023,General Repairs & Maintenance,Controllable Premises,7002965716,09/12/2022,1304.25
Buckinghamshire Council,"Planning, Growth & Sustainability",TENCER LIMITED,1000023,Urgent Repairs & Maintenance,Controllable Premises,7002965723,09/12/2022,2727.42
Buckinghamshire Council,"Planning, Growth & Sustainability",TENCER LIMITED,1000023,Urgent Repairs & Maintenance,Controllable Premises,7002965749,09/12/2022,675
Buckinghamshire Council,"Planning, Growth & Sustainability",TENCER LIMITED,1000023,Urgent Repairs & Maintenance,Controllable Premises,7002965760,09/12/2022,1195.35
Buckinghamshire Council,"Planning, Growth & Sustainability",TENCER LIMITED,1000023,Urgent Repairs & Maintenance,Controllable Premises,7002965830,09/12/2022,752.2
Buckinghamshire Council,Communities,TENCER LIMITED,1000023,General Repairs & Maintenance,Controllable Premises,7002966812,09/12/2022,5584.07
Buckinghamshire Council,"Planning, Growth & Sustainability",TENCER LIMITED,1000023,Urgent Repairs & Maintenance,Controllable Premises,7002966814,09/12/2022,823.51
Buckinghamshire Council,"Planning, Growth & Sustainability",TENCER LIMITED,1000023,Urgent Repairs & Maintenance,Controllable Premises,7002966831,09/12/2022,569.7
Buckinghamshire Council,Communities,TENCER LIMITED,1000023,General Repairs & Maintenance,Controllable Premises,7002966891,09/12/2022,752.06
Buckinghamshire Council,"Planning, Growth & Sustainability",TENCER LIMITED,1000023,General Repairs & Maintenance,Controllable Premises,7002966892,09/12/2022,919.02
Buckinghamshire Council,"Planning, Growth & Sustainability",TENCER LIMITED,1000023,General Repairs & Maintenance,Controllable Premises,7002966893,09/12/2022,632.95
Buckinghamshire Council,"Planning, Growth & Sustainability",TENCER LIMITED,1000023,Urgent Repairs & Maintenance,Controllable Premises,7002966897,09/12/2022,873.47
Buckinghamshire Council,"Planning, Growth & Sustainability",TENCER LIMITED,1000023,Urgent Repairs & Maintenance,Controllable Premises,7002966898,09/12/2022,660.88
Buckinghamshire Council,Communities,TENCER LIMITED,1000023,General Repairs & Maintenance,Controllable Premises,4101020990,07/12/2022,2734.96
Buckinghamshire Council,"Planning, Growth & Sustainability",TENCER LIMITED,1000023,Urgent Repairs & Maintenance,Controllable Premises,7002961914,07/12/2022,2569.59
Buckinghamshire Council,"Planning, Growth & Sustainability",TENCER LIMITED,1000023,Urgent Repairs & Maintenance,Controllable Premises,7002961915,07/12/2022,522.38
Buckinghamshire Council,"Planning, Growth & Sustainability",TENCER LIMITED,1000023,Urgent Repairs & Maintenance,Controllable Premises,7002961956,07/12/2022,1069.59
Buckinghamshire Council,"Planning, Growth & Sustainability",TENCER LIMITED,1000023,Urgent Repairs & Maintenance,Controllable Premises,7002961957,07/12/2022,5505.85
Buckinghamshire Council,"Planning, Growth & Sustainability",TENCER LIMITED,1000023,Urgent Repairs & Maintenance,Controllable Premises,7002962184,07/12/2022,1133.17
Buckinghamshire Council,"Planning, Growth & Sustainability",TENCER LIMITED,1000023,Urgent Repairs & Maintenance,Controllable Premises,7002962188,07/12/2022,1092.93
Buckinghamshire Council,"Planning, Growth & Sustainability",TENCER LIMITED,1000023,Urgent Repairs & Maintenance,Controllable Premises,7002962194,07/12/2022,739.46
Buckinghamshire Council,"Planning, Growth & Sustainability",TENCER LIMITED,1000023,Urgent Repairs & Maintenance,Controllable Premises,7002962199,07/12/2022,510.84
Buckinghamshire Council,"Planning, Growth & Sustainability",TENCER LIMITED,1000023,General Repairs & Maintenance,Controllable Premises,7002965695,07/12/2022,1503.24
Buckinghamshire Council,Communities,TENCER LIMITED,1000023,General Repairs & Maintenance,Controllable Premises,7002965732,07/12/2022,617.31
Buckinghamshire Council,"Planning, Growth & Sustainability",TENCER LIMITED,1000023,Urgent Repairs & Maintenance,Controllable Premises,7002961900,02/12/2022,2181
Buckinghamshire Council,"Planning, Growth & Sustainability",TENCER LIMITED,1000023,General Repairs & Maintenance,Controllable Premises,7002965730,14/12/2022,679.5
Buckinghamshire Council,"Planning, Growth & Sustainability",TENCER LIMITED,1000023,Urgent Repairs & Maintenance,Controllable Premises,7002966904,14/12/2022,1316.91
Buckinghamshire Council,"Planning, Growth & Sustainability",TENCER LIMITED,1000023,Urgent Repairs & Maintenance,Controllable Premises,7002971668,28/12/2022,1261.97
Buckinghamshire Council,"Planning, Growth & Sustainability",TENCER LIMITED,1000023,Urgent Repairs & Maintenance,Controllable Premises,7002966928,16/12/2022,919.04
Buckinghamshire Council,Adults and Health,MANDEVILLE CARE SERVICES LTD,1000027,Nurs-Perm EMI Other - Exp,Agency (third party payments) & Contribs,7002970415,21/12/2022,5600
Buckinghamshire Council,Adults and Health,MANDEVILLE CARE SERVICES LTD,1000027,Nursing care-permanent -other,Agency (third party payments) & Contribs,7002970415,21/12/2022,4600
Buckinghamshire Council,Adults and Health,MANDEVILLE CARE SERVICES LTD,1000027,Nurs-Perm EMI Other - Exp,Agency (third party payments) & Contribs,7002970415,21/12/2022,4600
Buckinghamshire Council,Adults and Health,MANDEVILLE CARE SERVICES LTD,1000027,Nursing care-permanent -other,Agency (third party payments) & Contribs,7002970415,21/12/2022,4600
Buckinghamshire Council,Adults and Health,MANDEVILLE CARE SERVICES LTD,1000027,Nursing care-permanent -other,Agency (third party payments) & Contribs,7002970415,21/12/2022,4600
Buckinghamshire Council,Adults and Health,MANDEVILLE CARE SERVICES LTD,1000027,Nursing care-permanent -other,Agency (third party payments) & Contribs,7002970415,21/12/2022,4600
Buckinghamshire Council,Adults and Health,MANDEVILLE CARE SERVICES LTD,1000027,Res care-permanent - other,Agency (third party payments) & Contribs,7002970415,21/12/2022,4600
Buckinghamshire Council,Adults and Health,MANDEVILLE CARE SERVICES LTD,1000027,Nursing care-permanent -other,Controllable Customer & Client Receipts,7002970415,21/12/2022,-438.8
Buckinghamshire Council,Adults and Health,MANDEVILLE CARE SERVICES LTD,1000027,Nursing care-permanent -other,Controllable Customer & Client Receipts,7002970415,21/12/2022,-1508.8
Buckinghamshire Council,Adults and Health,MANDEVILLE CARE SERVICES LTD,1000027,Nursing care-permanent -other,Controllable Customer & Client Receipts,7002970415,21/12/2022,-730.36
Buckinghamshire Council,Adults and Health,MANDEVILLE CARE SERVICES LTD,1000027,Nursing care-permanent -other,Controllable Customer & Client Receipts,7002970415,21/12/2022,-1883
Buckinghamshire Council,Adults and Health,MANDEVILLE CARE SERVICES LTD,1000027,Nursing care-permanent -other,Controllable Customer & Client Receipts,7002970415,21/12/2022,-1368.44
Buckinghamshire Council,Adults and Health,MANDEVILLE CARE SERVICES LTD,1000027,Res care-permanent - other,Controllable Customer & Client Receipts,7002970415,21/12/2022,-1312.68
Buckinghamshire Council,Children's Services,FOSTERING NETWORK,1000036,Support for Foster Carers,Agency (third party payments) & Contribs,4101018950,09/12/2022,600
Buckinghamshire Council,Communities,REDACTED,1000114,Professional Services (non curriculum) -,Supplies and Services,4101021026,02/12/2022,17340.7
Buckinghamshire Council,Communities,REDACTED,1000114,Supply of consultancy services,Supplies and Services,4101024192,21/12/2022,4136.2
Buckinghamshire Council,Communities,REDACTED,1000114,Professional Services (non curriculum) -,Supplies and Services,4101023302,16/12/2022,35988
Buckinghamshire Council,Deputy Chief Executive,REDACTED,1000114,Legal Fees,Supplies and Services,4101023620,16/12/2022,5000
Buckinghamshire Council,Deputy Chief Executive,REDACTED,1000114,Legal Fees,Supplies and Services,4101025533,30/12/2022,5728.2
Buckinghamshire Council,Children's Services,ASSOCIATION OF ACCOUNTING TECHNICIA,1000117,Reg & Exam Fees for External Courses,Supplies and Services,4101025373,30/12/2022,540
Buckinghamshire Council,Children's Services,FOSTERPLUS LTD,1000125,External Fostering Payments,Agency (third party payments) & Contribs,7002971241,21/12/2022,3345.44
Buckinghamshire Council,Children's Services,FOSTERPLUS LTD,1000125,External Fostering Payments,Agency (third party payments) & Contribs,7002971241,21/12/2022,3609.44
Buckinghamshire Council,Children's Services,FOSTERPLUS LTD,1000125,External Fostering Payments,Agency (third party payments) & Contribs,7002971241,21/12/2022,3609.44
Buckinghamshire Council,Adults and Health,ABBEYFIELD BEACONSFIELD SOCIETY,1000144,Res care-permanent - other,Agency (third party payments) & Contribs,7002970416,21/12/2022,1209.52
Buckinghamshire Council,Adults and Health,ABBEYFIELD BEACONSFIELD SOCIETY,1000144,Res care-permanent - other,Agency (third party payments) & Contribs,7002970416,21/12/2022,3048.8
Buckinghamshire Council,Adults and Health,ABBEYFIELD BEACONSFIELD SOCIETY,1000144,Res care-permanent - other,Agency (third party payments) & Contribs,7002970416,21/12/2022,4982.04
Buckinghamshire Council,Adults and Health,ABBEYFIELD BEACONSFIELD SOCIETY,1000144,Res care-permanent - other,Controllable Customer & Client Receipts,7002970416,21/12/2022,-2319.56
Buckinghamshire Council,Adults and Health,ABBEYFIELD BEACONSFIELD SOCIETY,1000144,Res care-permanent - other,Controllable Customer & Client Receipts,7002970416,21/12/2022,-914.68
Buckinghamshire Council,Adults and Health,ABBEYFIELD BEACONSFIELD SOCIETY,1000144,Res care-permanent - other,Controllable Customer & Client Receipts,7002970416,21/12/2022,-1209.52
Buckinghamshire Council,Adults and Health,ABBEYFIELD BEACONSFIELD SOCIETY,1000144,Res care-permanent - other,Controllable Customer & Client Receipts,7002970416,21/12/2022,-1876.92
Buckinghamshire Council,Adults and Health,BURNHAM LODGE CARE LTD,1000159,Nurs-Perm EMI Other - Exp,Agency (third party payments) & Contribs,7002970417,21/12/2022,5042.88
Buckinghamshire Council,Adults and Health,BURNHAM LODGE CARE LTD,1000159,Nurs-Perm EMI Other - Exp,Agency (third party payments) & Contribs,7002970417,21/12/2022,4944
Buckinghamshire Council,Adults and Health,BURNHAM LODGE CARE LTD,1000159,Nursing care-permanent -other,Agency (third party payments) & Contribs,7002970417,21/12/2022,5200
Buckinghamshire Council,Adults and Health,BURNHAM LODGE CARE LTD,1000159,Nursing care-permanent -other,Agency (third party payments) & Contribs,7002970417,21/12/2022,4944
Buckinghamshire Council,Adults and Health,BURNHAM LODGE CARE LTD,1000159,Nursing care-permanent -other,Agency (third party payments) & Contribs,7002970417,21/12/2022,5042.88
Buckinghamshire Council,Adults and Health,BURNHAM LODGE CARE LTD,1000159,Nursing care-permanent -other,Agency (third party payments) & Contribs,7002970417,21/12/2022,5042.88
Buckinghamshire Council,Adults and Health,BURNHAM LODGE CARE LTD,1000159,Nursing care-permanent -other,Agency (third party payments) & Contribs,7002970417,21/12/2022,4202.4
Buckinghamshire Council,Adults and Health,BURNHAM LODGE CARE LTD,1000159,Res-Perm EMI-Other - Exp,Agency (third party payments) & Contribs,7002970417,21/12/2022,5356
Buckinghamshire Council,Adults and Health,BURNHAM LODGE CARE LTD,1000159,Res-Perm EMI-Other - Exp,Agency (third party payments) & Contribs,7002970417,21/12/2022,5150
Buckinghamshire Council,Adults and Health,BURNHAM LODGE CARE LTD,1000159,Res-Perm EMI-Other - Exp,Agency (third party payments) & Contribs,7002970417,21/12/2022,4622.64
Buckinghamshire Council,Adults and Health,BURNHAM LODGE CARE LTD,1000159,Nurs-Perm EMI Other - Exp,Agency (third party payments) & Contribs,7002970417,21/12/2022,4363.24
Buckinghamshire Council,Adults and Health,BURNHAM LODGE CARE LTD,1000159,Res care-permanent - other,Controllable Customer & Client Receipts,7002970417,21/12/2022,-627.8
Buckinghamshire Council,Adults and Health,BURNHAM LODGE CARE LTD,1000159,Res care-permanent - other,Controllable Customer & Client Receipts,7002970417,21/12/2022,-139.48
Buckinghamshire Council,Adults and Health,BURNHAM LODGE CARE LTD,1000159,Nursing care-permanent -other,Controllable Customer & Client Receipts,7002970417,21/12/2022,-627.8
Buckinghamshire Council,Adults and Health,BURNHAM LODGE CARE LTD,1000159,Nursing care-permanent -other,Controllable Customer & Client Receipts,7002970417,21/12/2022,-1039.92
Buckinghamshire Council,Adults and Health,BURNHAM LODGE CARE LTD,1000159,Nursing care-permanent -other,Controllable Customer & Client Receipts,7002970417,21/12/2022,-653
Buckinghamshire Council,Adults and Health,BURNHAM LODGE CARE LTD,1000159,Nursing care-permanent -other,Controllable Customer & Client Receipts,7002970417,21/12/2022,-799.28
Buckinghamshire Council,Adults and Health,BURNHAM LODGE CARE LTD,1000159,Nursing care-permanent -other,Controllable Customer & Client Receipts,7002970417,21/12/2022,-1200
Buckinghamshire Council,Adults and Health,BURNHAM LODGE CARE LTD,1000159,Nursing care-permanent -other,Controllable Customer & Client Receipts,7002970417,21/12/2022,-4363.24
Buckinghamshire Council,Adults and Health,Wesgate Healthcare Ltd,1000160,Nurs-Perm EMI Other - Exp,Agency (third party payments) & Contribs,7002970418,21/12/2022,4265.04
Buckinghamshire Council,Adults and Health,Wesgate Healthcare Ltd,1000160,Nursing care-permanent -other,Agency (third party payments) & Contribs,7002970418,21/12/2022,4804.24
Buckinghamshire Council,Adults and Health,Wesgate Healthcare Ltd,1000160,Nursing care-permanent -other,Agency (third party payments) & Contribs,7002970418,21/12/2022,6000
Buckinghamshire Council,Adults and Health,Wesgate Healthcare Ltd,1000160,Nurs-Perm EMI Other - Exp,Agency (third party payments) & Contribs,7002970418,21/12/2022,4532
Buckinghamshire Council,Adults and Health,Wesgate Healthcare Ltd,1000160,Nurs-Perm EMI Other - Exp,Agency (third party payments) & Contribs,7002970418,21/12/2022,4465.8
Buckinghamshire Council,Adults and Health,Wesgate Healthcare Ltd,1000160,Nurs-Perm EMI Other - Exp,Agency (third party payments) & Contribs,7002970418,21/12/2022,5563.24
Buckinghamshire Council,Adults and Health,Wesgate Healthcare Ltd,1000160,Nursing care-permanent -other,Agency (third party payments) & Contribs,7002970418,21/12/2022,49.6
Buckinghamshire Council,Adults and Health,Wesgate Healthcare Ltd,1000160,Nursing care-permanent -other,Agency (third party payments) & Contribs,7002970418,21/12/2022,5356
Buckinghamshire Council,Adults and Health,Wesgate Healthcare Ltd,1000160,Nursing care-permanent -other,Agency (third party payments) & Contribs,7002970418,21/12/2022,4479.16
Buckinghamshire Council,Adults and Health,Wesgate Healthcare Ltd,1000160,Nursing care-permanent -other,Agency (third party payments) & Contribs,7002970418,21/12/2022,5600
Buckinghamshire Council,Adults and Health,Wesgate Healthcare Ltd,1000160,Nurs-Perm EMI Other - Exp,Agency (third party payments) & Contribs,7002970418,21/12/2022,4785.84
Buckinghamshire Council,Adults and Health,Wesgate Healthcare Ltd,1000160,Nurs-Perm EMI Other - Exp,Agency (third party payments) & Contribs,7002970418,21/12/2022,3433.24
Buckinghamshire Council,Adults and Health,Wesgate Healthcare Ltd,1000160,Nursing care-permanent -other,Agency (third party payments) & Contribs,7002970418,21/12/2022,5003.36
Buckinghamshire Council,Adults and Health,Wesgate Healthcare Ltd,1000160,Res-Perm EMI-Other - Exp,Agency (third party payments) & Contribs,7002970418,21/12/2022,4227.6
Buckinghamshire Council,Adults and Health,Wesgate Healthcare Ltd,1000160,Res care-permanent - other,Agency (third party payments) & Contribs,7002970418,21/12/2022,13400
Buckinghamshire Council,Adults and Health,Wesgate Healthcare Ltd,1000160,Nursing care-permanent -other,Agency (third party payments) & Contribs,7002970418,21/12/2022,-375.21
Buckinghamshire Council,Adults and Health,Wesgate Healthcare Ltd,1000160,Nurs-Perm EMI Other - Exp,Agency (third party payments) & Contribs,7002970418,21/12/2022,2681.62
Buckinghamshire Council,Adults and Health,Wesgate Healthcare Ltd,1000160,Nursing care-permanent -other,Agency (third party payments) & Contribs,7002970418,21/12/2022,4210
Buckinghamshire Council,Adults and Health,Wesgate Healthcare Ltd,1000160,Nursing care-permanent -other,Agency (third party payments) & Contribs,7002970418,21/12/2022,1804.29
Buckinghamshire Council,Adults and Health,Wesgate Healthcare Ltd,1000160,Nurs-Perm EMI Other - Exp,Agency (third party payments) & Contribs,7002970418,21/12/2022,5363.24
Buckinghamshire Council,Adults and Health,Wesgate Healthcare Ltd,1000160,Nursing care-permanent -other,Agency (third party payments) & Contribs,7002970418,21/12/2022,2405.71
Buckinghamshire Council,Adults and Health,Wesgate Healthcare Ltd,1000160,Nursing care-permanent -other,Agency (third party payments) & Contribs,7002970418,21/12/2022,4210
Buckinghamshire Council,Adults and Health,Wesgate Healthcare Ltd,1000160,Nursing care-permanent -other,Controllable Customer & Client Receipts,7002970418,21/12/2022,-359.8
Buckinghamshire Council,Adults and Health,Wesgate Healthcare Ltd,1000160,Nursing care-permanent -other,Controllable Customer & Client Receipts,7002970418,21/12/2022,-41.4
Buckinghamshire Council,Adults and Health,Wesgate Healthcare Ltd,1000160,Nursing care-permanent -other,Controllable Customer & Client Receipts,7002970418,21/12/2022,-645.68
Buckinghamshire Council,Adults and Health,Wesgate Healthcare Ltd,1000160,Nursing care-permanent -other,Controllable Customer & Client Receipts,7002970418,21/12/2022,-735.48
Buckinghamshire Council,Adults and Health,Wesgate Healthcare Ltd,1000160,Nursing care-permanent -other,Controllable Customer & Client Receipts,7002970418,21/12/2022,-966.24
Buckinghamshire Council,Adults and Health,Wesgate Healthcare Ltd,1000160,Nursing care-permanent -other,Controllable Customer & Client Receipts,7002970418,21/12/2022,-1000
Buckinghamshire Council,Adults and Health,Wesgate Healthcare Ltd,1000160,Res care-permanent - other,Controllable Customer & Client Receipts,7002970418,21/12/2022,-627.8
Buckinghamshire Council,Adults and Health,Wesgate Healthcare Ltd,1000160,Nursing care-permanent -other,Controllable Customer & Client Receipts,7002970418,21/12/2022,83.35
Buckinghamshire Council,Adults and Health,Wesgate Healthcare Ltd,1000160,Nursing care-permanent -other,Controllable Customer & Client Receipts,7002970418,21/12/2022,-49.6
Buckinghamshire Council,Adults and Health,CHALFONT LODGE NURSING HOME,1000164,Nurs-Perm EMI Other - Exp,Agency (third party payments) & Contribs,7002970419,21/12/2022,5400
Buckinghamshire Council,Adults and Health,CHALFONT LODGE NURSING HOME,1000164,Nursing care-permanent -other,Agency (third party payments) & Contribs,7002970419,21/12/2022,5562
Buckinghamshire Council,Adults and Health,CHALFONT LODGE NURSING HOME,1000164,Nursing care-permanent -other,Agency (third party payments) & Contribs,7002970419,21/12/2022,5201.08
Buckinghamshire Council,Adults and Health,CHALFONT LODGE NURSING HOME,1000164,Nursing care-permanent -other,Agency (third party payments) & Contribs,7002970419,21/12/2022,5201.08
Buckinghamshire Council,Adults and Health,CHALFONT LODGE NURSING HOME,1000164,Res-Perm EMI-Other - Exp,Agency (third party payments) & Contribs,7002970419,21/12/2022,5562
Buckinghamshire Council,Adults and Health,CHALFONT LODGE NURSING HOME,1000164,Res-Perm EMI-Other - Exp,Agency (third party payments) & Contribs,7002970419,21/12/2022,5800
Buckinghamshire Council,Adults and Health,CHALFONT LODGE NURSING HOME,1000164,Nurs-Perm EMI Other - Exp,Agency (third party payments) & Contribs,7002970419,21/12/2022,6429.68
Buckinghamshire Council,Adults and Health,CHALFONT LODGE NURSING HOME,1000164,Nursing care-permanent -other,Agency (third party payments) & Contribs,7002970419,21/12/2022,5719.96
Buckinghamshire Council,Adults and Health,CHALFONT LODGE NURSING HOME,1000164,Nursing care-permanent -other,Agency (third party payments) & Contribs,7002970419,21/12/2022,5652.04
Buckinghamshire Council,Adults and Health,CHALFONT LODGE NURSING HOME,1000164,Nursing care-permanent -other,Agency (third party payments) & Contribs,7002970419,21/12/2022,6854.04
Buckinghamshire Council,Adults and Health,CHALFONT LODGE NURSING HOME,1000164,Nurs-Perm EMI Other - Exp,Agency (third party payments) & Contribs,7002970419,21/12/2022,4791.56
Buckinghamshire Council,Adults and Health,CHALFONT LODGE NURSING HOME,1000164,Nurs-Perm EMI Other - Exp,Agency (third party payments) & Contribs,7002970419,21/12/2022,5165.6
Buckinghamshire Council,Adults and Health,CHALFONT LODGE NURSING HOME,1000164,Nurs-Perm EMI Other - Exp,Agency (third party payments) & Contribs,7002970419,21/12/2022,5800
Buckinghamshire Council,Adults and Health,CHALFONT LODGE NURSING HOME,1000164,Nursing care-permanent -other,Agency (third party payments) & Contribs,7002970419,21/12/2022,3299.92
Buckinghamshire Council,Adults and Health,CHALFONT LODGE NURSING HOME,1000164,Nursing care-permanent -other,Agency (third party payments) & Contribs,7002970419,21/12/2022,6723.84
Buckinghamshire Council,Adults and Health,CHALFONT LODGE NURSING HOME,1000164,Nursing care-permanent -other,Agency (third party payments) & Contribs,7002970419,21/12/2022,2206.36
Buckinghamshire Council,Adults and Health,CHALFONT LODGE NURSING HOME,1000164,Nursing care-permanent -other,Agency (third party payments) & Contribs,7002970419,21/12/2022,6800
Buckinghamshire Council,Adults and Health,CHALFONT LODGE NURSING HOME,1000164,Res-Perm EMI-Other - Exp,Agency (third party payments) & Contribs,7002970419,21/12/2022,4202.4
Buckinghamshire Council,Adults and Health,CHALFONT LODGE NURSING HOME,1000164,Nursing care-permanent -other,Agency (third party payments) & Contribs,7002970419,21/12/2022,5364
Buckinghamshire Council,Adults and Health,CHALFONT LODGE NURSING HOME,1000164,Nurs-Perm EMI Other - Exp,Agency (third party payments) & Contribs,7002970419,21/12/2022,4944
Buckinghamshire Council,Adults and Health,CHALFONT LODGE NURSING HOME,1000164,Res care-permanent - other,Agency (third party payments) & Contribs,7002970419,21/12/2022,5400
Buckinghamshire Council,Adults and Health,CHALFONT LODGE NURSING HOME,1000164,Nurs-Perm EMI Other - Exp,Agency (third party payments) & Contribs,7002970419,21/12/2022,5800
Buckinghamshire Council,Adults and Health,CHALFONT LODGE NURSING HOME,1000164,Nursing care-permanent -other,Agency (third party payments) & Contribs,7002970419,21/12/2022,5786.72
Buckinghamshire Council,Adults and Health,CHALFONT LODGE NURSING HOME,1000164,Nursing care-permanent -other,Agency (third party payments) & Contribs,7002970419,21/12/2022,541.03
Buckinghamshire Council,Adults and Health,CHALFONT LODGE NURSING HOME,1000164,Nursing care-permanent -other,Controllable Customer & Client Receipts,7002970419,21/12/2022,-1203.92
Buckinghamshire Council,Adults and Health,CHALFONT LODGE NURSING HOME,1000164,Nursing care-permanent -other,Controllable Customer & Client Receipts,7002970419,21/12/2022,-1166.64
Buckinghamshire Council,Adults and Health,CHALFONT LODGE NURSING HOME,1000164,Res care-permanent - other,Controllable Customer & Client Receipts,7002970419,21/12/2022,-770.88
Buckinghamshire Council,Adults and Health,CHALFONT LODGE NURSING HOME,1000164,Res care-permanent - other,Controllable Customer & Client Receipts,7002970419,21/12/2022,-900.4
Buckinghamshire Council,Adults and Health,CHALFONT LODGE NURSING HOME,1000164,Nursing care-permanent -other,Controllable Customer & Client Receipts,7002970419,21/12/2022,-691.04
Buckinghamshire Council,Adults and Health,CHALFONT LODGE NURSING HOME,1000164,Nursing care-permanent -other,Controllable Customer & Client Receipts,7002970419,21/12/2022,-1103.52
Buckinghamshire Council,Adults and Health,CHALFONT LODGE NURSING HOME,1000164,Nursing care-permanent -other,Controllable Customer & Client Receipts,7002970419,21/12/2022,-511.8
Buckinghamshire Council,Adults and Health,CHALFONT LODGE NURSING HOME,1000164,Nursing care-permanent -other,Controllable Customer & Client Receipts,7002970419,21/12/2022,-438.8
Buckinghamshire Council,Adults and Health,CHALFONT LODGE NURSING HOME,1000164,Res care-permanent - other,Controllable Customer & Client Receipts,7002970419,21/12/2022,-392.68
Buckinghamshire Council,Adults and Health,CHALFONT LODGE NURSING HOME,1000164,Nursing care-permanent -other,Controllable Customer & Client Receipts,7002970419,21/12/2022,-1062.68
Buckinghamshire Council,Adults and Health,CHALFONT LODGE NURSING HOME,1000164,Nursing care-permanent -other,Controllable Customer & Client Receipts,7002970419,21/12/2022,-940.16
Buckinghamshire Council,Adults and Health,CHALFONT LODGE NURSING HOME,1000164,Nursing care-permanent -other,Controllable Customer & Client Receipts,7002970419,21/12/2022,-627.8
Buckinghamshire Council,Adults and Health,CHALFONT LODGE NURSING HOME,1000164,Nursing care-permanent -other,Controllable Customer & Client Receipts,7002970419,21/12/2022,-1496.48
Buckinghamshire Council,Adults and Health,CHALFONT LODGE NURSING HOME,1000164,Nursing care-permanent -other,Controllable Customer & Client Receipts,7002970419,21/12/2022,-836.64
Buckinghamshire Council,Adults and Health,CHALFONT LODGE NURSING HOME,1000164,Nursing care-permanent -other,Controllable Customer & Client Receipts,7002970419,21/12/2022,-197.2
Buckinghamshire Council,Adults and Health,CHALFONT LODGE NURSING HOME,1000164,Nursing care-permanent -other,Controllable Customer & Client Receipts,7002970419,21/12/2022,-730.4
Buckinghamshire Council,Adults and Health,CHALFONT LODGE NURSING HOME,1000164,Nursing care-permanent -other,Controllable Customer & Client Receipts,7002970419,21/12/2022,-666
Buckinghamshire Council,Adults and Health,CHALFONT LODGE NURSING HOME,1000164,Nursing care-permanent -other,Controllable Customer & Client Receipts,7002970419,21/12/2022,-107.14
Buckinghamshire Council,Adults and Health,CHALFONT LODGE NURSING HOME,1000164,Nursing care-permanent -other,Controllable Customer & Client Receipts,7002970419,21/12/2022,-3299.92
Buckinghamshire Council,Adults and Health,REDACTED,1000165,Nurs-Perm EMI Other - Exp,Agency (third party payments) & Contribs,7002970420,21/12/2022,4000
Buckinghamshire Council,Adults and Health,REDACTED,1000165,Nursing care-permanent -other,Agency (third party payments) & Contribs,7002970420,21/12/2022,5883.36
Buckinghamshire Council,Adults and Health,REDACTED,1000165,Nurs-Perm EMI Other - Exp,Agency (third party payments) & Contribs,7002970420,21/12/2022,4000
Buckinghamshire Council,Adults and Health,REDACTED,1000165,Nurs-Perm EMI Other - Exp,Agency (third party payments) & Contribs,7002970420,21/12/2022,4400
Buckinghamshire Council,Adults and Health,REDACTED,1000165,Nurs-Perm EMI Other - Exp,Agency (third party payments) & Contribs,7002970420,21/12/2022,4600
Buckinghamshire Council,Adults and Health,REDACTED,1000165,Nursing care-permanent -other,Agency (third party payments) & Contribs,7002970420,21/12/2022,3429.16
Buckinghamshire Council,Adults and Health,REDACTED,1000165,Nursing care-permanent -other,Agency (third party payments) & Contribs,7002970420,21/12/2022,3429.16
Buckinghamshire Council,Adults and Health,REDACTED,1000165,Res-Perm EMI-Other - Exp,Agency (third party payments) & Contribs,7002970420,21/12/2022,3643.48
Buckinghamshire Council,Adults and Health,REDACTED,1000165,Res care-permanent - other,Agency (third party payments) & Contribs,7002970420,21/12/2022,3708
Buckinghamshire Council,Adults and Health,REDACTED,1000165,Res care-permanent - other,Agency (third party payments) & Contribs,7002970420,21/12/2022,3214.84
Buckinghamshire Council,Adults and Health,REDACTED,1000165,Nursing care-permanent -other,Agency (third party payments) & Contribs,7002970420,21/12/2022,3429.16
Buckinghamshire Council,Adults and Health,REDACTED,1000165,Nurs-Perm EMI Other - Exp,Agency (third party payments) & Contribs,7002970420,21/12/2022,3643.48
Buckinghamshire Council,Adults and Health,REDACTED,1000165,Nursing care-permanent -other,Agency (third party payments) & Contribs,7002970420,21/12/2022,1488
Buckinghamshire Council,Adults and Health,REDACTED,1000165,Nursing care-permanent -other,Controllable Customer & Client Receipts,7002970420,21/12/2022,-627.8
Buckinghamshire Council,Adults and Health,REDACTED,1000165,Nursing care-permanent -other,Controllable Customer & Client Receipts,7002970420,21/12/2022,-438.8
Buckinghamshire Council,Adults and Health,REDACTED,1000165,Res care-permanent - other,Controllable Customer & Client Receipts,7002970420,21/12/2022,-939.84
Buckinghamshire Council,Adults and Health,REDACTED,1000165,Res care-permanent - other,Controllable Customer & Client Receipts,7002970420,21/12/2022,-625.68
Buckinghamshire Council,Adults and Health,REDACTED,1000165,Res care-permanent - other,Controllable Customer & Client Receipts,7002970420,21/12/2022,-627.8
Buckinghamshire Council,Adults and Health,REDACTED,1000165,Nursing care-permanent -other,Controllable Customer & Client Receipts,7002970420,21/12/2022,-895.52
Buckinghamshire Council,Adults and Health,REDACTED,1000165,Nursing care-permanent -other,Controllable Customer & Client Receipts,7002970420,21/12/2022,-883.28
Buckinghamshire Council,Adults and Health,REDACTED,1000165,Nursing care-permanent -other,Controllable Customer & Client Receipts,7002970420,21/12/2022,-1120.64
Buckinghamshire Council,Adults and Health,REDACTED,1000165,Nursing care-permanent -other,Controllable Customer & Client Receipts,7002970420,21/12/2022,-436.36
Buckinghamshire Council,Adults and Health,REDACTED,1000165,Nursing care-permanent -other,Controllable Customer & Client Receipts,7002970420,21/12/2022,-627.8
Buckinghamshire Council,Adults and Health,CHERRY TREE NURSING HOME,1000166,Nurs-Perm EMI Other - Exp,Agency (third party payments) & Contribs,7002970421,21/12/2022,4600
Buckinghamshire Council,Adults and Health,CHERRY TREE NURSING HOME,1000166,Nursing care-permanent -other,Agency (third party payments) & Contribs,7002970421,21/12/2022,4944
Buckinghamshire Council,Adults and Health,CHERRY TREE NURSING HOME,1000166,Nursing care-permanent -other,Agency (third party payments) & Contribs,7002970421,21/12/2022,4600
Buckinghamshire Council,Adults and Health,CHERRY TREE NURSING HOME,1000166,Nursing care-permanent -other,Agency (third party payments) & Contribs,7002970421,21/12/2022,4600
Buckinghamshire Council,Adults and Health,CHERRY TREE NURSING HOME,1000166,Nursing care-permanent -other,Agency (third party payments) & Contribs,7002970421,21/12/2022,4600
Buckinghamshire Council,Adults and Health,CHERRY TREE NURSING HOME,1000166,Nursing care-permanent -other,Agency (third party payments) & Contribs,7002970421,21/12/2022,4600
Buckinghamshire Council,Adults and Health,CHERRY TREE NURSING HOME,1000166,Nursing care-permanent -other,Agency (third party payments) & Contribs,7002970421,21/12/2022,4600
Buckinghamshire Council,Adults and Health,CHERRY TREE NURSING HOME,1000166,Nursing care-permanent -other,Agency (third party payments) & Contribs,7002970421,21/12/2022,4600
Buckinghamshire Council,Adults and Health,CHERRY TREE NURSING HOME,1000166,Nurs-Perm EMI Other - Exp,Agency (third party payments) & Contribs,7002970421,21/12/2022,4600
Buckinghamshire Council,Adults and Health,CHERRY TREE NURSING HOME,1000166,Nursing care-permanent -other,Agency (third party payments) & Contribs,7002970421,21/12/2022,4944
Buckinghamshire Council,Adults and Health,CHERRY TREE NURSING HOME,1000166,Nursing care-permanent -other,Agency (third party payments) & Contribs,7002970421,21/12/2022,5356
Buckinghamshire Council,Adults and Health,CHERRY TREE NURSING HOME,1000166,Nursing care-permanent -other,Agency (third party payments) & Contribs,7002970421,21/12/2022,4944
Buckinghamshire Council,Adults and Health,CHERRY TREE NURSING HOME,1000166,Nurs-Perm EMI Other - Exp,Agency (third party payments) & Contribs,7002970421,21/12/2022,2900
Buckinghamshire Council,Adults and Health,CHERRY TREE NURSING HOME,1000166,Nurs-Perm EMI Other - Exp,Agency (third party payments) & Contribs,7002970421,21/12/2022,5800
Buckinghamshire Council,Adults and Health,CHERRY TREE NURSING HOME,1000166,Nursing care-permanent -other,Agency (third party payments) & Contribs,7002970421,21/12/2022,-2135.71
Buckinghamshire Council,Adults and Health,CHERRY TREE NURSING HOME,1000166,Res care-permanent - other,Agency (third party payments) & Contribs,7002970421,21/12/2022,2228.57
Buckinghamshire Council,Adults and Health,CHERRY TREE NURSING HOME,1000166,Res care-permanent - other,Agency (third party payments) & Contribs,7002970421,21/12/2022,4800
Buckinghamshire Council,Adults and Health,CHERRY TREE NURSING HOME,1000166,Res care-permanent - other,Agency (third party payments) & Contribs,7002970421,21/12/2022,4800
Buckinghamshire Council,Adults and Health,CHERRY TREE NURSING HOME,1000166,Res care-permanent - other,Agency (third party payments) & Contribs,7002970421,21/12/2022,4800
Buckinghamshire Council,Adults and Health,CHERRY TREE NURSING HOME,1000166,Res care-permanent - other,Agency (third party payments) & Contribs,7002970421,21/12/2022,4800
Buckinghamshire Council,Adults and Health,CHERRY TREE NURSING HOME,1000166,Res care-permanent - other,Agency (third party payments) & Contribs,7002970421,21/12/2022,4800
Buckinghamshire Council,Adults and Health,CHERRY TREE NURSING HOME,1000166,Res care-permanent - other,Agency (third party payments) & Contribs,7002970421,21/12/2022,4800
Buckinghamshire Council,Adults and Health,CHERRY TREE NURSING HOME,1000166,Res care-permanent - other,Agency (third party payments) & Contribs,7002970421,21/12/2022,4800
Buckinghamshire Council,Adults and Health,CHERRY TREE NURSING HOME,1000166,Nursing care-permanent -other,Controllable Customer & Client Receipts,7002970421,21/12/2022,-972.64
Buckinghamshire Council,Adults and Health,CHERRY TREE NURSING HOME,1000166,Nursing care-permanent -other,Controllable Customer & Client Receipts,7002970421,21/12/2022,-238.48
Buckinghamshire Council,Adults and Health,CHERRY TREE NURSING HOME,1000166,Nursing care-permanent -other,Controllable Customer & Client Receipts,7002970421,21/12/2022,-638.36
Buckinghamshire Council,Adults and Health,CHERRY TREE NURSING HOME,1000166,Nursing care-permanent -other,Controllable Customer & Client Receipts,7002970421,21/12/2022,-676.08
Buckinghamshire Council,Adults and Health,CHERRY TREE NURSING HOME,1000166,Nursing care-permanent -other,Controllable Customer & Client Receipts,7002970421,21/12/2022,-4600
Buckinghamshire Council,Adults and Health,CHERRY TREE NURSING HOME,1000166,Nursing care-permanent -other,Controllable Customer & Client Receipts,7002970421,21/12/2022,-1428.56
Buckinghamshire Council,Adults and Health,CHERRY TREE NURSING HOME,1000166,Nursing care-permanent -other,Controllable Customer & Client Receipts,7002970421,21/12/2022,-564.92
Buckinghamshire Council,Adults and Health,CHERRY TREE NURSING HOME,1000166,Nursing care-permanent -other,Controllable Customer & Client Receipts,7002970421,21/12/2022,-687.8
Buckinghamshire Council,Adults and Health,CHERRY TREE NURSING HOME,1000166,Nursing care-permanent -other,Controllable Customer & Client Receipts,7002970421,21/12/2022,342.48
Buckinghamshire Council,Adults and Health,CHERRY TREE NURSING HOME,1000166,Res care-permanent - other,Controllable Customer & Client Receipts,7002970421,21/12/2022,-917.61
Buckinghamshire Council,Adults and Health,CHERRY TREE NURSING HOME,1000166,Res care-permanent - other,Controllable Customer & Client Receipts,7002970421,21/12/2022,-1804.8
Buckinghamshire Council,Adults and Health,CHERRY TREE NURSING HOME,1000166,Res care-permanent - other,Controllable Customer & Client Receipts,7002970421,21/12/2022,-1606.8
Buckinghamshire Council,Adults and Health,CHERRY TREE NURSING HOME,1000166,Res care-permanent - other,Controllable Customer & Client Receipts,7002970421,21/12/2022,-1606.8
Buckinghamshire Council,Adults and Health,CHERRY TREE NURSING HOME,1000166,Res care-permanent - other,Controllable Customer & Client Receipts,7002970421,21/12/2022,-1606.8
Buckinghamshire Council,Adults and Health,CHERRY TREE NURSING HOME,1000166,Res care-permanent - other,Controllable Customer & Client Receipts,7002970421,21/12/2022,-1606.8
Buckinghamshire Council,Adults and Health,CHERRY TREE NURSING HOME,1000166,Res care-permanent - other,Controllable Customer & Client Receipts,7002970421,21/12/2022,-1606.8
Buckinghamshire Council,Adults and Health,CHERRY TREE NURSING HOME,1000166,Res care-permanent - other,Controllable Customer & Client Receipts,7002970421,21/12/2022,-1606.8
Buckinghamshire Council,Adults and Health,CHERRY TREE NURSING HOME,1000166,Nursing care-permanent -other,Controllable Customer & Client Receipts,7002970421,21/12/2022,-60.4
Buckinghamshire Council,Adults and Health,CHERRY TREE NURSING HOME,1000166,Nursing care-permanent -other,Controllable Customer & Client Receipts,7002970421,21/12/2022,-374.3
Buckinghamshire Council,Adults and Health,DENHAM MANOR NURSING HOME,1000169,Nursing care-permanent -other,Agency (third party payments) & Contribs,7002970422,21/12/2022,3210.56
Buckinghamshire Council,Adults and Health,DENHAM MANOR NURSING HOME,1000169,Nurs-Perm EMI Other - Exp,Agency (third party payments) & Contribs,7002970422,21/12/2022,4480.08
Buckinghamshire Council,Adults and Health,DENHAM MANOR NURSING HOME,1000169,Nurs-Perm EMI Other - Exp,Agency (third party payments) & Contribs,7002970422,21/12/2022,3429.16
Buckinghamshire Council,Adults and Health,DENHAM MANOR NURSING HOME,1000169,Nursing care-permanent -other,Agency (third party payments) & Contribs,7002970422,21/12/2022,4109.28
Buckinghamshire Council,Adults and Health,DENHAM MANOR NURSING HOME,1000169,Nursing care-permanent -other,Agency (third party payments) & Contribs,7002970422,21/12/2022,3210.56
Buckinghamshire Council,Adults and Health,DENHAM MANOR NURSING HOME,1000169,Nursing care-permanent -other,Agency (third party payments) & Contribs,7002970422,21/12/2022,3258.72
Buckinghamshire Council,Adults and Health,DENHAM MANOR NURSING HOME,1000169,Nursing care-permanent -other,Agency (third party payments) & Contribs,7002970422,21/12/2022,3210.56
Buckinghamshire Council,Adults and Health,DENHAM MANOR NURSING HOME,1000169,Nursing care-permanent -other,Agency (third party payments) & Contribs,7002970422,21/12/2022,3258.72
Buckinghamshire Council,Adults and Health,DENHAM MANOR NURSING HOME,1000169,Nursing care-permanent -other,Agency (third party payments) & Contribs,7002970422,21/12/2022,4449.6
Buckinghamshire Council,Adults and Health,DENHAM MANOR NURSING HOME,1000169,Res care-permanent - other,Agency (third party payments) & Contribs,7002970422,21/12/2022,5400
Buckinghamshire Council,Adults and Health,DENHAM MANOR NURSING HOME,1000169,Res care-permanent - other,Agency (third party payments) & Contribs,7002970422,21/12/2022,5600
Buckinghamshire Council,Adults and Health,DENHAM MANOR NURSING HOME,1000169,Res care-permanent - other,Agency (third party payments) & Contribs,7002970422,21/12/2022,5600
Buckinghamshire Council,Adults and Health,DENHAM MANOR NURSING HOME,1000169,Res care-permanent - other,Agency (third party payments) & Contribs,7002970422,21/12/2022,5600
Buckinghamshire Council,Adults and Health,DENHAM MANOR NURSING HOME,1000169,Nursing care-permanent -other,Controllable Customer & Client Receipts,7002970422,21/12/2022,-562.8
Buckinghamshire Council,Adults and Health,DENHAM MANOR NURSING HOME,1000169,Nursing care-permanent -other,Controllable Customer & Client Receipts,7002970422,21/12/2022,-627.8
Buckinghamshire Council,Adults and Health,DENHAM MANOR NURSING HOME,1000169,Nursing care-permanent -other,Controllable Customer & Client Receipts,7002970422,21/12/2022,-864.92
Buckinghamshire Council,Adults and Health,DENHAM MANOR NURSING HOME,1000169,Nursing care-permanent -other,Controllable Customer & Client Receipts,7002970422,21/12/2022,-494
Buckinghamshire Council,Adults and Health,DENHAM MANOR NURSING HOME,1000169,Nursing care-permanent -other,Controllable Customer & Client Receipts,7002970422,21/12/2022,-504.64
Buckinghamshire Council,Adults and Health,DENHAM MANOR NURSING HOME,1000169,Nursing care-permanent -other,Controllable Customer & Client Receipts,7002970422,21/12/2022,-701.52
Buckinghamshire Council,Adults and Health,DENHAM MANOR NURSING HOME,1000169,Nursing care-permanent -other,Controllable Customer & Client Receipts,7002970422,21/12/2022,-745.08
Buckinghamshire Council,Adults and Health,DENHAM MANOR NURSING HOME,1000169,Nursing care-permanent -other,Controllable Customer & Client Receipts,7002970422,21/12/2022,-499.8
Buckinghamshire Council,Adults and Health,DENHAM MANOR NURSING HOME,1000169,Nursing care-permanent -other,Controllable Customer & Client Receipts,7002970422,21/12/2022,-629.68
Buckinghamshire Council,Adults and Health,DENHAM MANOR NURSING HOME,1000169,Res care-permanent - other,Controllable Customer & Client Receipts,7002970422,21/12/2022,-980.14
Buckinghamshire Council,Adults and Health,DENHAM MANOR NURSING HOME,1000169,Res care-permanent - other,Controllable Customer & Client Receipts,7002970422,21/12/2022,-1016.44
Buckinghamshire Council,Adults and Health,DENHAM MANOR NURSING HOME,1000169,Res care-permanent - other,Controllable Customer & Client Receipts,7002970422,21/12/2022,-1016.44
Buckinghamshire Council,Adults and Health,DENHAM MANOR NURSING HOME,1000169,Res care-permanent - other,Controllable Customer & Client Receipts,7002970422,21/12/2022,-1247.95
Buckinghamshire Council,Adults and Health,Ambient Support Limited,1000171,Extra Care,Transfer Payments (Grants & Assistance),7002970411,21/12/2022,1013.12
Buckinghamshire Council,Adults and Health,Ambient Support Limited,1000171,Extra Care,Transfer Payments (Grants & Assistance),7002970411,21/12/2022,1013.12
Buckinghamshire Council,Adults and Health,Ambient Support Limited,1000171,Extra Care,Transfer Payments (Grants & Assistance),7002970411,21/12/2022,10131.2
Buckinghamshire Council,Adults and Health,Ambient Support Limited,1000171,Extra Care,Transfer Payments (Grants & Assistance),7002970411,21/12/2022,402.84
Buckinghamshire Council,Adults and Health,Ambient Support Limited,1000171,Extra Care,Transfer Payments (Grants & Assistance),7002970411,21/12/2022,204.92
Buckinghamshire Council,Adults and Health,Ambient Support Limited,1000171,Extra Care,Transfer Payments (Grants & Assistance),7002970412,21/12/2022,1013.12
Buckinghamshire Council,Adults and Health,Ambient Support Limited,1000171,Extra Care,Transfer Payments (Grants & Assistance),7002970412,21/12/2022,1013.12
Buckinghamshire Council,Adults and Health,Ambient Support Limited,1000171,Extra Care,Transfer Payments (Grants & Assistance),7002970412,21/12/2022,1013.12
Buckinghamshire Council,Adults and Health,Ambient Support Limited,1000171,Extra Care,Transfer Payments (Grants & Assistance),7002970412,21/12/2022,1013.12
Buckinghamshire Council,Adults and Health,Ambient Support Limited,1000171,Extra Care,Transfer Payments (Grants & Assistance),7002970412,21/12/2022,1013.12
Buckinghamshire Council,Adults and Health,Ambient Support Limited,1000171,Extra Care,Transfer Payments (Grants & Assistance),7002970412,21/12/2022,1013.12
Buckinghamshire Council,Adults and Health,Ambient Support Limited,1000171,Extra Care,Transfer Payments (Grants & Assistance),7002970412,21/12/2022,1013.12
Buckinghamshire Council,Adults and Health,Ambient Support Limited,1000171,Extra Care,Transfer Payments (Grants & Assistance),7002970412,21/12/2022,1013.12
Buckinghamshire Council,Adults and Health,Ambient Support Limited,1000171,Extra Care,Transfer Payments (Grants & Assistance),7002970412,21/12/2022,1013.12
Buckinghamshire Council,Adults and Health,Ambient Support Limited,1000171,Extra Care,Transfer Payments (Grants & Assistance),7002970412,21/12/2022,3039.36
Buckinghamshire Council,Adults and Health,Ambient Support Limited,1000171,Extra Care,Transfer Payments (Grants & Assistance),7002970412,21/12/2022,373
Buckinghamshire Council,Adults and Health,Ambient Support Limited,1000171,Extra Care,Transfer Payments (Grants & Assistance),7002970412,21/12/2022,104.44
Buckinghamshire Council,Adults and Health,Ambient Support Limited,1000171,Extra Care,Transfer Payments (Grants & Assistance),7002970412,21/12/2022,613.64
Buckinghamshire Council,Adults and Health,Ambient Support Limited,1000171,Extra Care,Transfer Payments (Grants & Assistance),7002970412,21/12/2022,533.6
Buckinghamshire Council,Adults and Health,Ambient Support Limited,1000171,Extra Care,Transfer Payments (Grants & Assistance),7002970412,21/12/2022,696.27
Buckinghamshire Council,Adults and Health,Ambient Support Limited,1000171,Extra Care,Transfer Payments (Grants & Assistance),7002970412,21/12/2022,417.76
Buckinghamshire Council,Adults and Health,Ambient Support Limited,1000171,Extra Care,Transfer Payments (Grants & Assistance),7002970412,21/12/2022,134.28
Buckinghamshire Council,Adults and Health,Ambient Support Limited,1000171,Extra Care,Transfer Payments (Grants & Assistance),7002970412,21/12/2022,292.72
Buckinghamshire Council,Adults and Health,Ambient Support Limited,1000171,Extra Care,Transfer Payments (Grants & Assistance),7002970413,21/12/2022,822.8
Buckinghamshire Council,Adults and Health,Ambient Support Limited,1000171,Extra Care,Transfer Payments (Grants & Assistance),7002970413,21/12/2022,822.8
Buckinghamshire Council,Adults and Health,Ambient Support Limited,1000171,Extra Care,Transfer Payments (Grants & Assistance),7002970413,21/12/2022,822.8
Buckinghamshire Council,Adults and Health,Ambient Support Limited,1000171,Extra Care,Transfer Payments (Grants & Assistance),7002970413,21/12/2022,822.8
Buckinghamshire Council,Adults and Health,Ambient Support Limited,1000171,Extra Care,Transfer Payments (Grants & Assistance),7002970413,21/12/2022,822.8
Buckinghamshire Council,Adults and Health,Ambient Support Limited,1000171,Extra Care,Transfer Payments (Grants & Assistance),7002970413,21/12/2022,822.8
Buckinghamshire Council,Adults and Health,Ambient Support Limited,1000171,Extra Care,Transfer Payments (Grants & Assistance),7002970413,21/12/2022,822.8
Buckinghamshire Council,Adults and Health,Ambient Support Limited,1000171,Extra Care,Transfer Payments (Grants & Assistance),7002970413,21/12/2022,822.8
Buckinghamshire Council,Adults and Health,Ambient Support Limited,1000171,Extra Care,Transfer Payments (Grants & Assistance),7002970413,21/12/2022,2468.4
Buckinghamshire Council,Adults and Health,Ambient Support Limited,1000171,Extra Care,Transfer Payments (Grants & Assistance),7002970413,21/12/2022,447.6
Buckinghamshire Council,Adults and Health,Ambient Support Limited,1000171,Extra Care,Transfer Payments (Grants & Assistance),7002970413,21/12/2022,328.24
Buckinghamshire Council,Adults and Health,Ambient Support Limited,1000171,Extra Care,Transfer Payments (Grants & Assistance),7002970413,21/12/2022,746
Buckinghamshire Council,Adults and Health,Ambient Support Limited,1000171,Extra Care,Transfer Payments (Grants & Assistance),7002970413,21/12/2022,328.24
Buckinghamshire Council,Adults and Health,Ambient Support Limited,1000171,Extra Care,Transfer Payments (Grants & Assistance),7002970413,21/12/2022,278.12
Buckinghamshire Council,Adults and Health,Ambient Support Limited,1000171,Extra Care,Transfer Payments (Grants & Assistance),7002970413,21/12/2022,209.16
Buckinghamshire Council,Adults and Health,Ambient Support Limited,1000171,Extra Care,Transfer Payments (Grants & Assistance),7002970413,21/12/2022,649
Buckinghamshire Council,Adults and Health,Ambient Support Limited,1000171,Extra Care,Transfer Payments (Grants & Assistance),7002970413,21/12/2022,499.56
Buckinghamshire Council,Adults and Health,Ambient Support Limited,1000171,Extra Care,Transfer Payments (Grants & Assistance),7002970413,21/12/2022,822.8
Buckinghamshire Council,Adults and Health,Ambient Support Limited,1000171,Extra Care,Transfer Payments (Grants & Assistance),7002970413,21/12/2022,-499.56
Buckinghamshire Council,Adults and Health,Ambient Support Limited,1000171,Res-Perm EMI-Other - Exp,Agency (third party payments) & Contribs,7002970423,21/12/2022,3321.08
Buckinghamshire Council,Adults and Health,Ambient Support Limited,1000171,Res-Perm EMI-Other - Exp,Agency (third party payments) & Contribs,7002970423,21/12/2022,3321.08
Buckinghamshire Council,Adults and Health,Ambient Support Limited,1000171,Res-Perm EMI-Other - Exp,Agency (third party payments) & Contribs,7002970423,21/12/2022,3321.08
Buckinghamshire Council,Adults and Health,Ambient Support Limited,1000171,Res-Perm EMI-Other - Exp,Agency (third party payments) & Contribs,7002970423,21/12/2022,3321.08
Buckinghamshire Council,Adults and Health,Ambient Support Limited,1000171,Res-Perm EMI-Other - Exp,Agency (third party payments) & Contribs,7002970423,21/12/2022,3321.08
Buckinghamshire Council,Adults and Health,Ambient Support Limited,1000171,Res-Perm EMI-Other - Exp,Agency (third party payments) & Contribs,7002970423,21/12/2022,3321.08
Buckinghamshire Council,Adults and Health,Ambient Support Limited,1000171,Res-Perm EMI-Other - Exp,Agency (third party payments) & Contribs,7002970423,21/12/2022,3321.08
Buckinghamshire Council,Adults and Health,Ambient Support Limited,1000171,Res-Perm EMI-Other - Exp,Agency (third party payments) & Contribs,7002970423,21/12/2022,3321.08
Buckinghamshire Council,Adults and Health,Ambient Support Limited,1000171,Res-Perm EMI-Other - Exp,Agency (third party payments) & Contribs,7002970423,21/12/2022,3321.08
Buckinghamshire Council,Adults and Health,Ambient Support Limited,1000171,Res-Perm EMI-Other - Exp,Agency (third party payments) & Contribs,7002970423,21/12/2022,3321.08
Buckinghamshire Council,Adults and Health,Ambient Support Limited,1000171,Res-Perm EMI-Other - Exp,Agency (third party payments) & Contribs,7002970423,21/12/2022,3321.08
Buckinghamshire Council,Adults and Health,Ambient Support Limited,1000171,Res-Perm EMI-Other - Exp,Agency (third party payments) & Contribs,7002970423,21/12/2022,3321.08
Buckinghamshire Council,Adults and Health,Ambient Support Limited,1000171,Res-Perm EMI-Other - Exp,Agency (third party payments) & Contribs,7002970423,21/12/2022,3321.08
Buckinghamshire Council,Adults and Health,Ambient Support Limited,1000171,Res-Perm EMI-Other - Exp,Agency (third party payments) & Contribs,7002970423,21/12/2022,3321.08
Buckinghamshire Council,Adults and Health,Ambient Support Limited,1000171,Res-Perm EMI-Other - Exp,Agency (third party payments) & Contribs,7002970423,21/12/2022,3321.08
Buckinghamshire Council,Adults and Health,Ambient Support Limited,1000171,Res-Perm EMI-Other - Exp,Agency (third party payments) & Contribs,7002970423,21/12/2022,3321.08
Buckinghamshire Council,Adults and Health,Ambient Support Limited,1000171,Res-Perm EMI-Other - Exp,Agency (third party payments) & Contribs,7002970423,21/12/2022,3321.08
Buckinghamshire Council,Adults and Health,Ambient Support Limited,1000171,Res-Perm EMI-Other - Exp,Agency (third party payments) & Contribs,7002970423,21/12/2022,3321.08
Buckinghamshire Council,Adults and Health,Ambient Support Limited,1000171,Res care-permanent - other,Agency (third party payments) & Contribs,7002970423,21/12/2022,2954
Buckinghamshire Council,Adults and Health,Ambient Support Limited,1000171,Res care-permanent - other,Agency (third party payments) & Contribs,7002970423,21/12/2022,2954
Buckinghamshire Council,Adults and Health,Ambient Support Limited,1000171,Res care-permanent - other,Agency (third party payments) & Contribs,7002970423,21/12/2022,2954
Buckinghamshire Council,Adults and Health,Ambient Support Limited,1000171,Res care-permanent - other,Agency (third party payments) & Contribs,7002970423,21/12/2022,2954
Buckinghamshire Council,Adults and Health,Ambient Support Limited,1000171,Res care-permanent - other,Agency (third party payments) & Contribs,7002970423,21/12/2022,2954
Buckinghamshire Council,Adults and Health,Ambient Support Limited,1000171,Res care-permanent - other,Agency (third party payments) & Contribs,7002970423,21/12/2022,2954
Buckinghamshire Council,Adults and Health,Ambient Support Limited,1000171,Res-Perm EMI-Other - Exp,Agency (third party payments) & Contribs,7002970423,21/12/2022,3321.08
Buckinghamshire Council,Adults and Health,Ambient Support Limited,1000171,Res-Perm EMI-Other - Exp,Agency (third party payments) & Contribs,7002970423,21/12/2022,3321.08
Buckinghamshire Council,Adults and Health,Ambient Support Limited,1000171,Res-Perm EMI-Other - Exp,Agency (third party payments) & Contribs,7002970423,21/12/2022,3321.08
Buckinghamshire Council,Adults and Health,Ambient Support Limited,1000171,Res-Perm EMI-Other - Exp,Agency (third party payments) & Contribs,7002970423,21/12/2022,3321.08
Buckinghamshire Council,Adults and Health,Ambient Support Limited,1000171,Res care-permanent - other,Agency (third party payments) & Contribs,7002970423,21/12/2022,2954
Buckinghamshire Council,Adults and Health,Ambient Support Limited,1000171,Res-Perm EMI-Other - Exp,Agency (third party payments) & Contribs,7002970423,21/12/2022,3321.08
Buckinghamshire Council,Adults and Health,Ambient Support Limited,1000171,Res-Perm EMI-Other - Exp,Agency (third party payments) & Contribs,7002970423,21/12/2022,3321.08
Buckinghamshire Council,Adults and Health,Ambient Support Limited,1000171,Res-Perm EMI-Other - Exp,Agency (third party payments) & Contribs,7002970423,21/12/2022,3321.08
Buckinghamshire Council,Adults and Health,Ambient Support Limited,1000171,Res-Perm EMI-Other - Exp,Agency (third party payments) & Contribs,7002970423,21/12/2022,3321.08
Buckinghamshire Council,Adults and Health,Ambient Support Limited,1000171,Res care-permanent - other,Agency (third party payments) & Contribs,7002970423,21/12/2022,2954
Buckinghamshire Council,Adults and Health,Ambient Support Limited,1000171,Res care-permanent - other,Agency (third party payments) & Contribs,7002970423,21/12/2022,2954
Buckinghamshire Council,Adults and Health,Ambient Support Limited,1000171,Res care-permanent - other,Agency (third party payments) & Contribs,7002970423,21/12/2022,2954
Buckinghamshire Council,Adults and Health,Ambient Support Limited,1000171,Residential  Care-Permanent Block - Othe,Agency (third party payments) & Contribs,7002970423,21/12/2022,17724
Buckinghamshire Council,Adults and Health,Ambient Support Limited,1000171,Res-Perm EMI-Other - Exp,Agency (third party payments) & Contribs,7002970423,21/12/2022,-118.61
Buckinghamshire Council,Adults and Health,Ambient Support Limited,1000171,Residential  Care-Permanent Block - Othe,Agency (third party payments) & Contribs,7002970423,21/12/2022,118.61
Buckinghamshire Council,Adults and Health,Ambient Support Limited,1000171,Residential  Care-Permanent Block - Othe,Agency (third party payments) & Contribs,7002970423,21/12/2022,3321.08
Buckinghamshire Council,Adults and Health,Ambient Support Limited,1000171,Res care-permanent - other,Controllable Customer & Client Receipts,7002970423,21/12/2022,310.46
Buckinghamshire Council,Adults and Health,Ambient Support Limited,1000171,Res care-permanent - other,Controllable Customer & Client Receipts,7002970423,21/12/2022,-645.56
Buckinghamshire Council,Adults and Health,Ambient Support Limited,1000171,Res care-permanent - other,Controllable Customer & Client Receipts,7002970423,21/12/2022,-1060.28
Buckinghamshire Council,Adults and Health,Ambient Support Limited,1000171,Res care-permanent - other,Controllable Customer & Client Receipts,7002970423,21/12/2022,-1075.2
Buckinghamshire Council,Adults and Health,Ambient Support Limited,1000171,Res care-permanent - other,Controllable Customer & Client Receipts,7002970423,21/12/2022,-822.92
Buckinghamshire Council,Adults and Health,Ambient Support Limited,1000171,Res care-permanent - other,Controllable Customer & Client Receipts,7002970423,21/12/2022,-554.2
Buckinghamshire Council,Adults and Health,Ambient Support Limited,1000171,Res care-permanent - other,Controllable Customer & Client Receipts,7002970423,21/12/2022,-1520.04
Buckinghamshire Council,Adults and Health,Ambient Support Limited,1000171,Res care-permanent - other,Controllable Customer & Client Receipts,7002970423,21/12/2022,-627.8
Buckinghamshire Council,Adults and Health,Ambient Support Limited,1000171,Res care-permanent - other,Controllable Customer & Client Receipts,7002970423,21/12/2022,-731.12
Buckinghamshire Council,Adults and Health,Ambient Support Limited,1000171,Res care-permanent - other,Controllable Customer & Client Receipts,7002970423,21/12/2022,-887.24
Buckinghamshire Council,Adults and Health,Ambient Support Limited,1000171,Res care-permanent - other,Controllable Customer & Client Receipts,7002970423,21/12/2022,-228.28
Buckinghamshire Council,Adults and Health,Ambient Support Limited,1000171,Res care-permanent - other,Controllable Customer & Client Receipts,7002970423,21/12/2022,-627.8
Buckinghamshire Council,Adults and Health,Ambient Support Limited,1000171,Res care-permanent - other,Controllable Customer & Client Receipts,7002970423,21/12/2022,-1420.44
Buckinghamshire Council,Adults and Health,Ambient Support Limited,1000171,Res care-permanent - other,Controllable Customer & Client Receipts,7002970423,21/12/2022,-786.36
Buckinghamshire Council,Adults and Health,Ambient Support Limited,1000171,Res care-permanent - other,Controllable Customer & Client Receipts,7002970423,21/12/2022,-1009.28
Buckinghamshire Council,Adults and Health,Ambient Support Limited,1000171,Res care-permanent - other,Controllable Customer & Client Receipts,7002970423,21/12/2022,-707.44
Buckinghamshire Council,Adults and Health,Ambient Support Limited,1000171,Res care-permanent - other,Controllable Customer & Client Receipts,7002970423,21/12/2022,-627.8
Buckinghamshire Council,Adults and Health,Ambient Support Limited,1000171,Res care-permanent - other,Controllable Customer & Client Receipts,7002970423,21/12/2022,-767.64
Buckinghamshire Council,Adults and Health,Ambient Support Limited,1000171,Res care-permanent - other,Controllable Customer & Client Receipts,7002970423,21/12/2022,-659.8
Buckinghamshire Council,Adults and Health,Ambient Support Limited,1000171,Res care-permanent - other,Controllable Customer & Client Receipts,7002970423,21/12/2022,-863.2
Buckinghamshire Council,Adults and Health,Ambient Support Limited,1000171,Res care-permanent - other,Controllable Customer & Client Receipts,7002970423,21/12/2022,-317.36
Buckinghamshire Council,Adults and Health,Ambient Support Limited,1000171,Res care-permanent - other,Controllable Customer & Client Receipts,7002970423,21/12/2022,-241.08
Buckinghamshire Council,Adults and Health,Ambient Support Limited,1000171,Res care-permanent - other,Controllable Customer & Client Receipts,7002970423,21/12/2022,-1049.37
Buckinghamshire Council,Adults and Health,Ambient Support Limited,1000171,Res care-permanent - other,Controllable Customer & Client Receipts,7002970423,21/12/2022,-940.24
Buckinghamshire Council,Adults and Health,Ambient Support Limited,1000171,Res care-permanent - other,Controllable Customer & Client Receipts,7002970423,21/12/2022,-522.12
Buckinghamshire Council,Adults and Health,Ambient Support Limited,1000171,Res care-permanent - other,Controllable Customer & Client Receipts,7002970423,21/12/2022,-787.56
Buckinghamshire Council,Adults and Health,Ambient Support Limited,1000171,Res care-permanent - other,Controllable Customer & Client Receipts,7002970423,21/12/2022,-691.48
Buckinghamshire Council,Adults and Health,Ambient Support Limited,1000171,Res care-permanent - other,Controllable Customer & Client Receipts,7002970423,21/12/2022,-638
Buckinghamshire Council,Adults and Health,Ambient Support Limited,1000171,Res care-permanent - other,Controllable Customer & Client Receipts,7002970423,21/12/2022,-642.76
Buckinghamshire Council,Adults and Health,Ambient Support Limited,1000171,Res care-permanent - other,Controllable Customer & Client Receipts,7002970423,21/12/2022,-722.12
Buckinghamshire Council,Adults and Health,Ambient Support Limited,1000171,Res care-permanent - other,Controllable Customer & Client Receipts,7002970423,21/12/2022,-902.44
Buckinghamshire Council,Adults and Health,Ambient Support Limited,1000171,Res care-permanent - other,Controllable Customer & Client Receipts,7002970423,21/12/2022,-627.8
Buckinghamshire Council,Adults and Health,Ambient Support Limited,1000171,Res care-permanent - other,Controllable Customer & Client Receipts,7002970423,21/12/2022,-808.64
Buckinghamshire Council,Adults and Health,Ambient Support Limited,1000171,Res care-permanent - other,Controllable Customer & Client Receipts,7002970423,21/12/2022,-772.16
Buckinghamshire Council,Adults and Health,Ambient Support Limited,1000171,Res care-permanent - other,Controllable Customer & Client Receipts,7002970423,21/12/2022,121.71
Buckinghamshire Council,Adults and Health,Ambient Support Limited,1000171,Res-Perm EMI-Other - Exp,Agency (third party payments) & Contribs,7002970424,21/12/2022,3321.08
Buckinghamshire Council,Adults and Health,Ambient Support Limited,1000171,Res-Perm EMI-Other - Exp,Agency (third party payments) & Contribs,7002970424,21/12/2022,3321.08
Buckinghamshire Council,Adults and Health,Ambient Support Limited,1000171,Res-Perm EMI-Other - Exp,Agency (third party payments) & Contribs,7002970424,21/12/2022,3321.08
Buckinghamshire Council,Adults and Health,Ambient Support Limited,1000171,Res-Perm EMI-Other - Exp,Agency (third party payments) & Contribs,7002970424,21/12/2022,3321.08
Buckinghamshire Council,Adults and Health,Ambient Support Limited,1000171,Res-Perm EMI-Other - Exp,Agency (third party payments) & Contribs,7002970424,21/12/2022,3321.08
Buckinghamshire Council,Adults and Health,Ambient Support Limited,1000171,Res-Perm EMI-Other - Exp,Agency (third party payments) & Contribs,7002970424,21/12/2022,3321.08
Buckinghamshire Council,Adults and Health,Ambient Support Limited,1000171,Res-Perm EMI-Other - Exp,Agency (third party payments) & Contribs,7002970424,21/12/2022,3321.08
Buckinghamshire Council,Adults and Health,Ambient Support Limited,1000171,Res care-permanent - other,Agency (third party payments) & Contribs,7002970424,21/12/2022,2954
Buckinghamshire Council,Adults and Health,Ambient Support Limited,1000171,Res-Perm EMI-Other - Exp,Agency (third party payments) & Contribs,7002970424,21/12/2022,3321.08
Buckinghamshire Council,Adults and Health,Ambient Support Limited,1000171,Res-Perm EMI-Other - Exp,Agency (third party payments) & Contribs,7002970424,21/12/2022,3321.08
Buckinghamshire Council,Adults and Health,Ambient Support Limited,1000171,Res-Perm EMI-Other - Exp,Agency (third party payments) & Contribs,7002970424,21/12/2022,3321.08
Buckinghamshire Council,Adults and Health,Ambient Support Limited,1000171,Res care-permanent - other,Agency (third party payments) & Contribs,7002970424,21/12/2022,2954
Buckinghamshire Council,Adults and Health,Ambient Support Limited,1000171,Res care-permanent - other,Agency (third party payments) & Contribs,7002970424,21/12/2022,2954
Buckinghamshire Council,Adults and Health,Ambient Support Limited,1000171,Res care-permanent - other,Agency (third party payments) & Contribs,7002970424,21/12/2022,2954
Buckinghamshire Council,Adults and Health,Ambient Support Limited,1000171,Res care-permanent - other,Agency (third party payments) & Contribs,7002970424,21/12/2022,2954
Buckinghamshire Council,Adults and Health,Ambient Support Limited,1000171,Res care-permanent - other,Agency (third party payments) & Contribs,7002970424,21/12/2022,2954
Buckinghamshire Council,Adults and Health,Ambient Support Limited,1000171,Res care-permanent - other,Agency (third party payments) & Contribs,7002970424,21/12/2022,2954
Buckinghamshire Council,Adults and Health,Ambient Support Limited,1000171,Res-Perm EMI-Other - Exp,Agency (third party payments) & Contribs,7002970424,21/12/2022,3321.08
Buckinghamshire Council,Adults and Health,Ambient Support Limited,1000171,Res-Perm EMI-Other - Exp,Agency (third party payments) & Contribs,7002970424,21/12/2022,3321.08
Buckinghamshire Council,Adults and Health,Ambient Support Limited,1000171,Res-Perm EMI-Other - Exp,Agency (third party payments) & Contribs,7002970424,21/12/2022,3321.08
Buckinghamshire Council,Adults and Health,Ambient Support Limited,1000171,Res-Perm EMI-Other - Exp,Agency (third party payments) & Contribs,7002970424,21/12/2022,3321.08
Buckinghamshire Council,Adults and Health,Ambient Support Limited,1000171,Res-Perm EMI-Other - Exp,Agency (third party payments) & Contribs,7002970424,21/12/2022,3321.08
Buckinghamshire Council,Adults and Health,Ambient Support Limited,1000171,Res-Perm EMI-Other - Exp,Agency (third party payments) & Contribs,7002970424,21/12/2022,3321.08
Buckinghamshire Council,Adults and Health,Ambient Support Limited,1000171,Res-Perm EMI-Other - Exp,Agency (third party payments) & Contribs,7002970424,21/12/2022,3321.08
Buckinghamshire Council,Adults and Health,Ambient Support Limited,1000171,Res-Perm EMI-Other - Exp,Agency (third party payments) & Contribs,7002970424,21/12/2022,3321.08
Buckinghamshire Council,Adults and Health,Ambient Support Limited,1000171,Res-Perm EMI-Other - Exp,Agency (third party payments) & Contribs,7002970424,21/12/2022,3321.08
Buckinghamshire Council,Adults and Health,Ambient Support Limited,1000171,Res-Perm EMI-Other - Exp,Agency (third party payments) & Contribs,7002970424,21/12/2022,3321.08
Buckinghamshire Council,Adults and Health,Ambient Support Limited,1000171,Res-Perm EMI-Other - Exp,Agency (third party payments) & Contribs,7002970424,21/12/2022,3321.08
Buckinghamshire Council,Adults and Health,Ambient Support Limited,1000171,Res-Perm EMI-Other - Exp,Agency (third party payments) & Contribs,7002970424,21/12/2022,3321.08
Buckinghamshire Council,Adults and Health,Ambient Support Limited,1000171,Res care-permanent - other,Agency (third party payments) & Contribs,7002970424,21/12/2022,2954
Buckinghamshire Council,Adults and Health,Ambient Support Limited,1000171,Res care-permanent - other,Agency (third party payments) & Contribs,7002970424,21/12/2022,2954
Buckinghamshire Council,Adults and Health,Ambient Support Limited,1000171,Res care-permanent - other,Agency (third party payments) & Contribs,7002970424,21/12/2022,2954
Buckinghamshire Council,Adults and Health,Ambient Support Limited,1000171,Res care-permanent - other,Agency (third party payments) & Contribs,7002970424,21/12/2022,2954
Buckinghamshire Council,Adults and Health,Ambient Support Limited,1000171,Res care-permanent - other,Agency (third party payments) & Contribs,7002970424,21/12/2022,2954
Buckinghamshire Council,Adults and Health,Ambient Support Limited,1000171,Res-Perm EMI-Other - Exp,Agency (third party payments) & Contribs,7002970424,21/12/2022,3321.08
Buckinghamshire Council,Adults and Health,Ambient Support Limited,1000171,Residential  Care-Permanent Block - Othe,Agency (third party payments) & Contribs,7002970424,21/12/2022,23632
Buckinghamshire Council,Adults and Health,Ambient Support Limited,1000171,Residential  Care-Permanent Block - Othe,Agency (third party payments) & Contribs,7002970424,21/12/2022,237.22
Buckinghamshire Council,Adults and Health,Ambient Support Limited,1000171,Res-Perm EMI-Other - Exp,Agency (third party payments) & Contribs,7002970424,21/12/2022,4882.2
Buckinghamshire Council,Adults and Health,Ambient Support Limited,1000171,Res-Perm EMI-Other - Exp,Agency (third party payments) & Contribs,7002970424,21/12/2022,4832.76
Buckinghamshire Council,Adults and Health,Ambient Support Limited,1000171,Res care-permanent - other,Agency (third party payments) & Contribs,7002970424,21/12/2022,3700
Buckinghamshire Council,Adults and Health,Ambient Support Limited,1000171,Res care-permanent - other,Agency (third party payments) & Contribs,7002970424,21/12/2022,-422
Buckinghamshire Council,Adults and Health,Ambient Support Limited,1000171,Res care-permanent - other,Agency (third party payments) & Contribs,7002970424,21/12/2022,527.5
Buckinghamshire Council,Adults and Health,Ambient Support Limited,1000171,Res care-permanent - other,Agency (third party payments) & Contribs,7002970424,21/12/2022,-2954
Buckinghamshire Council,Adults and Health,Ambient Support Limited,1000171,Res care-permanent - other,Agency (third party payments) & Contribs,7002970424,21/12/2022,2954
Buckinghamshire Council,Adults and Health,Ambient Support Limited,1000171,Res care-permanent - other,Agency (third party payments) & Contribs,7002970424,21/12/2022,2954
Buckinghamshire Council,Adults and Health,Ambient Support Limited,1000171,Residential  Care-Permanent Block - Othe,Agency (third party payments) & Contribs,7002970424,21/12/2022,-105.5
Buckinghamshire Council,Adults and Health,Ambient Support Limited,1000171,Res-Perm EMI-Other - Exp,Agency (third party payments) & Contribs,7002970424,21/12/2022,3083.86
Buckinghamshire Council,Adults and Health,Ambient Support Limited,1000171,Res care-permanent - other,Controllable Customer & Client Receipts,7002970424,21/12/2022,-652.56
Buckinghamshire Council,Adults and Health,Ambient Support Limited,1000171,Res care-permanent - other,Controllable Customer & Client Receipts,7002970424,21/12/2022,-3321.08
Buckinghamshire Council,Adults and Health,Ambient Support Limited,1000171,Res care-permanent - other,Controllable Customer & Client Receipts,7002970424,21/12/2022,-627.8
Buckinghamshire Council,Adults and Health,Ambient Support Limited,1000171,Res care-permanent - other,Controllable Customer & Client Receipts,7002970424,21/12/2022,-976.6
Buckinghamshire Council,Adults and Health,Ambient Support Limited,1000171,Res care-permanent - other,Controllable Customer & Client Receipts,7002970424,21/12/2022,-725.36
Buckinghamshire Council,Adults and Health,Ambient Support Limited,1000171,Res care-permanent - other,Controllable Customer & Client Receipts,7002970424,21/12/2022,-627.8
Buckinghamshire Council,Adults and Health,Ambient Support Limited,1000171,Res care-permanent - other,Controllable Customer & Client Receipts,7002970424,21/12/2022,-627.8
Buckinghamshire Council,Adults and Health,Ambient Support Limited,1000171,Res care-permanent - other,Controllable Customer & Client Receipts,7002970424,21/12/2022,-1604.24
Buckinghamshire Council,Adults and Health,Ambient Support Limited,1000171,Res care-permanent - other,Controllable Customer & Client Receipts,7002970424,21/12/2022,-250.16
Buckinghamshire Council,Adults and Health,Ambient Support Limited,1000171,Res care-permanent - other,Controllable Customer & Client Receipts,7002970424,21/12/2022,-29.04
Buckinghamshire Council,Adults and Health,Ambient Support Limited,1000171,Res care-permanent - other,Controllable Customer & Client Receipts,7002970424,21/12/2022,-1673.12
Buckinghamshire Council,Adults and Health,Ambient Support Limited,1000171,Res care-permanent - other,Controllable Customer & Client Receipts,7002970424,21/12/2022,-777.04
Buckinghamshire Council,Adults and Health,Ambient Support Limited,1000171,Res care-permanent - other,Controllable Customer & Client Receipts,7002970424,21/12/2022,-1005.6
Buckinghamshire Council,Adults and Health,Ambient Support Limited,1000171,Res care-permanent - other,Controllable Customer & Client Receipts,7002970424,21/12/2022,-1167.4
Buckinghamshire Council,Adults and Health,Ambient Support Limited,1000171,Res care-permanent - other,Controllable Customer & Client Receipts,7002970424,21/12/2022,-610.96
Buckinghamshire Council,Adults and Health,Ambient Support Limited,1000171,Res care-permanent - other,Controllable Customer & Client Receipts,7002970424,21/12/2022,-859.12
Buckinghamshire Council,Adults and Health,Ambient Support Limited,1000171,Res care-permanent - other,Controllable Customer & Client Receipts,7002970424,21/12/2022,-627.8
Buckinghamshire Council,Adults and Health,Ambient Support Limited,1000171,Res care-permanent - other,Controllable Customer & Client Receipts,7002970424,21/12/2022,-599.12
Buckinghamshire Council,Adults and Health,Ambient Support Limited,1000171,Res care-permanent - other,Controllable Customer & Client Receipts,7002970424,21/12/2022,-65
Buckinghamshire Council,Adults and Health,Ambient Support Limited,1000171,Res care-permanent - other,Controllable Customer & Client Receipts,7002970424,21/12/2022,-688
Buckinghamshire Council,Adults and Health,Ambient Support Limited,1000171,Res care-permanent - other,Controllable Customer & Client Receipts,7002970424,21/12/2022,-787.2
Buckinghamshire Council,Adults and Health,Ambient Support Limited,1000171,Res care-permanent - other,Controllable Customer & Client Receipts,7002970424,21/12/2022,-611.04
Buckinghamshire Council,Adults and Health,Ambient Support Limited,1000171,Res care-permanent - other,Controllable Customer & Client Receipts,7002970424,21/12/2022,-627.8
Buckinghamshire Council,Adults and Health,Ambient Support Limited,1000171,Res care-permanent - other,Controllable Customer & Client Receipts,7002970424,21/12/2022,-646.68
Buckinghamshire Council,Adults and Health,Ambient Support Limited,1000171,Res care-permanent - other,Controllable Customer & Client Receipts,7002970424,21/12/2022,-975.36
Buckinghamshire Council,Adults and Health,Ambient Support Limited,1000171,Res care-permanent - other,Controllable Customer & Client Receipts,7002970424,21/12/2022,-627.8
Buckinghamshire Council,Adults and Health,Ambient Support Limited,1000171,Res care-permanent - other,Controllable Customer & Client Receipts,7002970424,21/12/2022,-620.64
Buckinghamshire Council,Adults and Health,Ambient Support Limited,1000171,Res care-permanent - other,Controllable Customer & Client Receipts,7002970424,21/12/2022,-1183.8
Buckinghamshire Council,Adults and Health,Ambient Support Limited,1000171,Res care-permanent - other,Controllable Customer & Client Receipts,7002970424,21/12/2022,-638.96
Buckinghamshire Council,Adults and Health,Ambient Support Limited,1000171,Res care-permanent - other,Controllable Customer & Client Receipts,7002970424,21/12/2022,-984.64
Buckinghamshire Council,Adults and Health,Ambient Support Limited,1000171,Res care-permanent - other,Controllable Customer & Client Receipts,7002970424,21/12/2022,-627.8
Buckinghamshire Council,Adults and Health,Ambient Support Limited,1000171,Res care-permanent - other,Controllable Customer & Client Receipts,7002970424,21/12/2022,-1007.04
Buckinghamshire Council,Adults and Health,Ambient Support Limited,1000171,Res care-permanent - other,Controllable Customer & Client Receipts,7002970424,21/12/2022,-1532.04
Buckinghamshire Council,Adults and Health,Ambient Support Limited,1000171,Res care-permanent - other,Controllable Customer & Client Receipts,7002970424,21/12/2022,-689
Buckinghamshire Council,Adults and Health,Ambient Support Limited,1000171,Res care-permanent - other,Controllable Customer & Client Receipts,7002970424,21/12/2022,-1169.32
Buckinghamshire Council,Adults and Health,Ambient Support Limited,1000171,Res care-permanent - other,Controllable Customer & Client Receipts,7002970424,21/12/2022,-358.4
Buckinghamshire Council,Adults and Health,Ambient Support Limited,1000171,Res care-permanent - other,Controllable Customer & Client Receipts,7002970424,21/12/2022,79.49
Buckinghamshire Council,Adults and Health,Ambient Support Limited,1000171,Res care-permanent - other,Controllable Customer & Client Receipts,7002970424,21/12/2022,-99.36
Buckinghamshire Council,Adults and Health,Ambient Support Limited,1000171,Res care-permanent - other,Controllable Customer & Client Receipts,7002970424,21/12/2022,653.88
Buckinghamshire Council,Adults and Health,Ambient Support Limited,1000171,Res care-permanent - other,Controllable Customer & Client Receipts,7002970424,21/12/2022,-678.24
Buckinghamshire Council,Adults and Health,Ambient Support Limited,1000171,Res care-permanent - other,Controllable Customer & Client Receipts,7002970424,21/12/2022,-1238.52
Buckinghamshire Council,Adults and Health,Ambient Support Limited,1000171,Res care-permanent - other,Controllable Customer & Client Receipts,7002970424,21/12/2022,-662.48
Buckinghamshire Council,Adults and Health,Ambient Support Limited,1000171,Nursing care-permanent -other,Agency (third party payments) & Contribs,7002970425,21/12/2022,2972.48
Buckinghamshire Council,Adults and Health,Ambient Support Limited,1000171,Nursing care-permanent -other,Agency (third party payments) & Contribs,7002970425,21/12/2022,2972.48
Buckinghamshire Council,Adults and Health,Ambient Support Limited,1000171,Res care-permanent - other,Agency (third party payments) & Contribs,7002970425,21/12/2022,2954
Buckinghamshire Council,Adults and Health,Ambient Support Limited,1000171,Res care-permanent - other,Agency (third party payments) & Contribs,7002970425,21/12/2022,2954
Buckinghamshire Council,Adults and Health,Ambient Support Limited,1000171,Nursing care-permanent -other,Agency (third party payments) & Contribs,7002970425,21/12/2022,2972.48
Buckinghamshire Council,Adults and Health,Ambient Support Limited,1000171,Nursing care-permanent -other,Agency (third party payments) & Contribs,7002970425,21/12/2022,2972.48
Buckinghamshire Council,Adults and Health,Ambient Support Limited,1000171,Nursing care-permanent -other,Agency (third party payments) & Contribs,7002970425,21/12/2022,2972.48
Buckinghamshire Council,Adults and Health,Ambient Support Limited,1000171,Nursing care-permanent -other,Agency (third party payments) & Contribs,7002970425,21/12/2022,2972.48
Buckinghamshire Council,Adults and Health,Ambient Support Limited,1000171,Nursing care-permanent -other,Agency (third party payments) & Contribs,7002970425,21/12/2022,2972.48
Buckinghamshire Council,Adults and Health,Ambient Support Limited,1000171,Nursing care-permanent -other,Agency (third party payments) & Contribs,7002970425,21/12/2022,2972.48
Buckinghamshire Council,Adults and Health,Ambient Support Limited,1000171,Nursing care-permanent -other,Agency (third party payments) & Contribs,7002970425,21/12/2022,2972.48
Buckinghamshire Council,Adults and Health,Ambient Support Limited,1000171,Nursing care-permanent -other,Agency (third party payments) & Contribs,7002970425,21/12/2022,2972.48
Buckinghamshire Council,Adults and Health,Ambient Support Limited,1000171,Nursing care-permanent -other,Agency (third party payments) & Contribs,7002970425,21/12/2022,2972.48
Buckinghamshire Council,Adults and Health,Ambient Support Limited,1000171,Nursing care-permanent -other,Agency (third party payments) & Contribs,7002970425,21/12/2022,2972.48
Buckinghamshire Council,Adults and Health,Ambient Support Limited,1000171,Nursing care-permanent -other,Agency (third party payments) & Contribs,7002970425,21/12/2022,2972.48
Buckinghamshire Council,Adults and Health,Ambient Support Limited,1000171,Nursing care-permanent -other,Agency (third party payments) & Contribs,7002970425,21/12/2022,2972.48
Buckinghamshire Council,Adults and Health,Ambient Support Limited,1000171,Nursing care-permanent -other,Agency (third party payments) & Contribs,7002970425,21/12/2022,2972.48
Buckinghamshire Council,Adults and Health,Ambient Support Limited,1000171,Nursing care-permanent -other,Agency (third party payments) & Contribs,7002970425,21/12/2022,2972.48
Buckinghamshire Council,Adults and Health,Ambient Support Limited,1000171,Nursing care-permanent -other,Agency (third party payments) & Contribs,7002970425,21/12/2022,2972.48
Buckinghamshire Council,Adults and Health,Ambient Support Limited,1000171,Res care-permanent - other,Agency (third party payments) & Contribs,7002970425,21/12/2022,2954
Buckinghamshire Council,Adults and Health,Ambient Support Limited,1000171,Res care-permanent - other,Agency (third party payments) & Contribs,7002970425,21/12/2022,2954
Buckinghamshire Council,Adults and Health,Ambient Support Limited,1000171,Res care-permanent - other,Agency (third party payments) & Contribs,7002970425,21/12/2022,2954
Buckinghamshire Council,Adults and Health,Ambient Support Limited,1000171,Res care-permanent - other,Agency (third party payments) & Contribs,7002970425,21/12/2022,2954
Buckinghamshire Council,Adults and Health,Ambient Support Limited,1000171,Res care-permanent - other,Agency (third party payments) & Contribs,7002970425,21/12/2022,2954
Buckinghamshire Council,Adults and Health,Ambient Support Limited,1000171,Res care-permanent - other,Agency (third party payments) & Contribs,7002970425,21/12/2022,2954
Buckinghamshire Council,Adults and Health,Ambient Support Limited,1000171,Res care-permanent - other,Agency (third party payments) & Contribs,7002970425,21/12/2022,2954
Buckinghamshire Council,Adults and Health,Ambient Support Limited,1000171,Nursing care-permanent -other,Agency (third party payments) & Contribs,7002970425,21/12/2022,2972.48
Buckinghamshire Council,Adults and Health,Ambient Support Limited,1000171,Nursing care-permanent -other,Agency (third party payments) & Contribs,7002970425,21/12/2022,2972.48
Buckinghamshire Council,Adults and Health,Ambient Support Limited,1000171,Nursing care-permanent -other,Agency (third party payments) & Contribs,7002970425,21/12/2022,2972.48
Buckinghamshire Council,Adults and Health,Ambient Support Limited,1000171,Res care-permanent - other,Agency (third party payments) & Contribs,7002970425,21/12/2022,2954
Buckinghamshire Council,Adults and Health,Ambient Support Limited,1000171,Nursing care-permanent -other,Agency (third party payments) & Contribs,7002970425,21/12/2022,2972.48
Buckinghamshire Council,Adults and Health,Ambient Support Limited,1000171,Res care-permanent - other,Agency (third party payments) & Contribs,7002970425,21/12/2022,2954
Buckinghamshire Council,Adults and Health,Ambient Support Limited,1000171,Nursing care-permanent block- other,Agency (third party payments) & Contribs,7002970425,21/12/2022,27070.8
Buckinghamshire Council,Adults and Health,Ambient Support Limited,1000171,Residential  Care-Permanent Block - Othe,Agency (third party payments) & Contribs,7002970425,21/12/2022,14770
Buckinghamshire Council,Adults and Health,Ambient Support Limited,1000171,Res-Perm EMI-Other - Exp,Agency (third party payments) & Contribs,7002970425,21/12/2022,3601.04
Buckinghamshire Council,Adults and Health,Ambient Support Limited,1000171,Res-Perm EMI-Other - Exp,Agency (third party payments) & Contribs,7002970425,21/12/2022,3244
Buckinghamshire Council,Adults and Health,Ambient Support Limited,1000171,Res-Perm EMI-Other - Exp,Agency (third party payments) & Contribs,7002970425,21/12/2022,3800
Buckinghamshire Council,Adults and Health,Ambient Support Limited,1000171,Res-Perm EMI-Other - Exp,Agency (third party payments) & Contribs,7002970425,21/12/2022,3321.08
Buckinghamshire Council,Adults and Health,Ambient Support Limited,1000171,Nursing care-permanent -other,Agency (third party payments) & Contribs,7002970425,21/12/2022,2654
Buckinghamshire Council,Adults and Health,Ambient Support Limited,1000171,Res care-permanent - other,Controllable Customer & Client Receipts,7002970425,21/12/2022,-465.96
Buckinghamshire Council,Adults and Health,Ambient Support Limited,1000171,Nursing care-permanent -other,Controllable Customer & Client Receipts,7002970425,21/12/2022,-1249.68
Buckinghamshire Council,Adults and Health,Ambient Support Limited,1000171,Nursing care-permanent -other,Controllable Customer & Client Receipts,7002970425,21/12/2022,-438.8
Buckinghamshire Council,Adults and Health,Ambient Support Limited,1000171,Res care-permanent - other,Controllable Customer & Client Receipts,7002970425,21/12/2022,-1019.8
Buckinghamshire Council,Adults and Health,Ambient Support Limited,1000171,Res care-permanent - other,Controllable Customer & Client Receipts,7002970425,21/12/2022,-1467.08
Buckinghamshire Council,Adults and Health,Ambient Support Limited,1000171,Res care-permanent - other,Controllable Customer & Client Receipts,7002970425,21/12/2022,-1267.16
Buckinghamshire Council,Adults and Health,Ambient Support Limited,1000171,Res care-permanent - other,Controllable Customer & Client Receipts,7002970425,21/12/2022,-1601.4
Buckinghamshire Council,Adults and Health,Ambient Support Limited,1000171,Res care-permanent - other,Controllable Customer & Client Receipts,7002970425,21/12/2022,-2480.56
Buckinghamshire Council,Adults and Health,Ambient Support Limited,1000171,Res care-permanent - other,Controllable Customer & Client Receipts,7002970425,21/12/2022,-829
Buckinghamshire Council,Adults and Health,Ambient Support Limited,1000171,Res care-permanent - other,Controllable Customer & Client Receipts,7002970425,21/12/2022,-876.84
Buckinghamshire Council,Adults and Health,Ambient Support Limited,1000171,Res care-permanent - other,Controllable Customer & Client Receipts,7002970425,21/12/2022,-782.48
Buckinghamshire Council,Adults and Health,Ambient Support Limited,1000171,Res care-permanent - other,Controllable Customer & Client Receipts,7002970425,21/12/2022,-382.4
Buckinghamshire Council,Adults and Health,Ambient Support Limited,1000171,Res care-permanent - other,Controllable Customer & Client Receipts,7002970425,21/12/2022,-764.72
Buckinghamshire Council,Adults and Health,Ambient Support Limited,1000171,Res care-permanent - other,Controllable Customer & Client Receipts,7002970425,21/12/2022,-642.06
Buckinghamshire Council,Adults and Health,Ambient Support Limited,1000171,Nursing care-permanent -other,Controllable Customer & Client Receipts,7002970425,21/12/2022,-496.44
Buckinghamshire Council,Adults and Health,Ambient Support Limited,1000171,Nursing care-permanent -other,Controllable Customer & Client Receipts,7002970425,21/12/2022,-802.88
Buckinghamshire Council,Adults and Health,Ambient Support Limited,1000171,Nursing care-permanent -other,Controllable Customer & Client Receipts,7002970425,21/12/2022,-535.64
Buckinghamshire Council,Adults and Health,Ambient Support Limited,1000171,Nursing care-permanent -other,Controllable Customer & Client Receipts,7002970425,21/12/2022,-861.56
Buckinghamshire Council,Adults and Health,Ambient Support Limited,1000171,Nursing care-permanent -other,Controllable Customer & Client Receipts,7002970425,21/12/2022,-852.24
Buckinghamshire Council,Adults and Health,Ambient Support Limited,1000171,Nursing care-permanent -other,Controllable Customer & Client Receipts,7002970425,21/12/2022,-1052.32
Buckinghamshire Council,Adults and Health,Ambient Support Limited,1000171,Nursing care-permanent -other,Controllable Customer & Client Receipts,7002970425,21/12/2022,-919.04
Buckinghamshire Council,Adults and Health,Ambient Support Limited,1000171,Nursing care-permanent -other,Controllable Customer & Client Receipts,7002970425,21/12/2022,-1222.6
Buckinghamshire Council,Adults and Health,Ambient Support Limited,1000171,Nursing care-permanent -other,Controllable Customer & Client Receipts,7002970425,21/12/2022,-1541.6
Buckinghamshire Council,Adults and Health,Ambient Support Limited,1000171,Nursing care-permanent -other,Controllable Customer & Client Receipts,7002970425,21/12/2022,-858.88
Buckinghamshire Council,Adults and Health,Ambient Support Limited,1000171,Nursing care-permanent -other,Controllable Customer & Client Receipts,7002970425,21/12/2022,-627.8
Buckinghamshire Council,Adults and Health,Ambient Support Limited,1000171,Nursing care-permanent -other,Controllable Customer & Client Receipts,7002970425,21/12/2022,-1188.8
Buckinghamshire Council,Adults and Health,Ambient Support Limited,1000171,Nursing care-permanent -other,Controllable Customer & Client Receipts,7002970425,21/12/2022,-1051.72
Buckinghamshire Council,Adults and Health,Ambient Support Limited,1000171,Nursing care-permanent -other,Controllable Customer & Client Receipts,7002970425,21/12/2022,-629.04
Buckinghamshire Council,Adults and Health,Ambient Support Limited,1000171,Nursing care-permanent -other,Controllable Customer & Client Receipts,7002970425,21/12/2022,-897.12
Buckinghamshire Council,Adults and Health,Ambient Support Limited,1000171,Nursing care-permanent -other,Controllable Customer & Client Receipts,7002970425,21/12/2022,-877
Buckinghamshire Council,Adults and Health,Ambient Support Limited,1000171,Res care-permanent - other,Controllable Customer & Client Receipts,7002970425,21/12/2022,-627.8
Buckinghamshire Council,Adults and Health,Ambient Support Limited,1000171,Nursing care-permanent -other,Controllable Customer & Client Receipts,7002970425,21/12/2022,-813.28
Buckinghamshire Council,Adults and Health,Ambient Support Limited,1000171,Nursing care-permanent -other,Controllable Customer & Client Receipts,7002970425,21/12/2022,-456.82
Buckinghamshire Council,Adults and Health,Ambient Support Limited,1000171,Res-Perm EMI-Other - Exp,Agency (third party payments) & Contribs,7002970426,21/12/2022,3321.08
Buckinghamshire Council,Adults and Health,Ambient Support Limited,1000171,Res-Perm EMI-Other - Exp,Agency (third party payments) & Contribs,7002970426,21/12/2022,3321.08
Buckinghamshire Council,Adults and Health,Ambient Support Limited,1000171,Res-Perm EMI-Other - Exp,Agency (third party payments) & Contribs,7002970426,21/12/2022,3321.08
Buckinghamshire Council,Adults and Health,Ambient Support Limited,1000171,Res care-permanent - other,Agency (third party payments) & Contribs,7002970426,21/12/2022,2954
Buckinghamshire Council,Adults and Health,Ambient Support Limited,1000171,Res care-permanent - other,Agency (third party payments) & Contribs,7002970426,21/12/2022,2954
Buckinghamshire Council,Adults and Health,Ambient Support Limited,1000171,Res care-permanent - other,Agency (third party payments) & Contribs,7002970426,21/12/2022,2954
Buckinghamshire Council,Adults and Health,Ambient Support Limited,1000171,Res care-permanent - other,Agency (third party payments) & Contribs,7002970426,21/12/2022,2954
Buckinghamshire Council,Adults and Health,Ambient Support Limited,1000171,Res care-permanent - other,Agency (third party payments) & Contribs,7002970426,21/12/2022,2954
Buckinghamshire Council,Adults and Health,Ambient Support Limited,1000171,Res-Perm EMI-Other - Exp,Agency (third party payments) & Contribs,7002970426,21/12/2022,3321.08
Buckinghamshire Council,Adults and Health,Ambient Support Limited,1000171,Res care-permanent - other,Agency (third party payments) & Contribs,7002970426,21/12/2022,2954
Buckinghamshire Council,Adults and Health,Ambient Support Limited,1000171,Res-Perm EMI-Other - Exp,Agency (third party payments) & Contribs,7002970426,21/12/2022,3321.08
Buckinghamshire Council,Adults and Health,Ambient Support Limited,1000171,Res-Perm EMI-Other - Exp,Agency (third party payments) & Contribs,7002970426,21/12/2022,3321.08
Buckinghamshire Council,Adults and Health,Ambient Support Limited,1000171,Residential  Care-Permanent Block - Othe,Agency (third party payments) & Contribs,7002970426,21/12/2022,11816
Buckinghamshire Council,Adults and Health,Ambient Support Limited,1000171,Res-Perm EMI-Other - Exp,Agency (third party payments) & Contribs,7002970426,21/12/2022,4832.76
Buckinghamshire Council,Adults and Health,Ambient Support Limited,1000171,Res-Perm EMI-Other - Exp,Agency (third party payments) & Contribs,7002970426,21/12/2022,830.27
Buckinghamshire Council,Adults and Health,Ambient Support Limited,1000171,Res-Perm EMI-Other - Exp,Agency (third party payments) & Contribs,7002970426,21/12/2022,3321.08
Buckinghamshire Council,Adults and Health,Ambient Support Limited,1000171,Residential  Care-Permanent Block - Othe,Agency (third party payments) & Contribs,7002970426,21/12/2022,-830.27
Buckinghamshire Council,Adults and Health,Ambient Support Limited,1000171,Res care-permanent - other,Agency (third party payments) & Contribs,7002970426,21/12/2022,192
Buckinghamshire Council,Adults and Health,Ambient Support Limited,1000171,Res-Perm EMI-Other - Exp,Agency (third party payments) & Contribs,7002970426,21/12/2022,717.14
Buckinghamshire Council,Adults and Health,Ambient Support Limited,1000171,Res-Perm EMI-Other - Exp,Agency (third party payments) & Contribs,7002970426,21/12/2022,5020
Buckinghamshire Council,Adults and Health,Ambient Support Limited,1000171,Residential  Care-Permanent Block - Othe,Agency (third party payments) & Contribs,7002970426,21/12/2022,3321.08
Buckinghamshire Council,Adults and Health,Ambient Support Limited,1000171,Res care-permanent - other,Controllable Customer & Client Receipts,7002970426,21/12/2022,-883.88
Buckinghamshire Council,Adults and Health,Ambient Support Limited,1000171,Res care-permanent - other,Controllable Customer & Client Receipts,7002970426,21/12/2022,-944.12
Buckinghamshire Council,Adults and Health,Ambient Support Limited,1000171,Res care-permanent - other,Controllable Customer & Client Receipts,7002970426,21/12/2022,-19
Buckinghamshire Council,Adults and Health,Ambient Support Limited,1000171,Res care-permanent - other,Controllable Customer & Client Receipts,7002970426,21/12/2022,-626.64
Buckinghamshire Council,Adults and Health,Ambient Support Limited,1000171,Res care-permanent - other,Controllable Customer & Client Receipts,7002970426,21/12/2022,-627.8
Buckinghamshire Council,Adults and Health,Ambient Support Limited,1000171,Res care-permanent - other,Controllable Customer & Client Receipts,7002970426,21/12/2022,-1327.64
Buckinghamshire Council,Adults and Health,Ambient Support Limited,1000171,Res care-permanent - other,Controllable Customer & Client Receipts,7002970426,21/12/2022,-1115.12
Buckinghamshire Council,Adults and Health,Ambient Support Limited,1000171,Res care-permanent - other,Controllable Customer & Client Receipts,7002970426,21/12/2022,-843.28
Buckinghamshire Council,Adults and Health,Ambient Support Limited,1000171,Res care-permanent - other,Controllable Customer & Client Receipts,7002970426,21/12/2022,-1115.48
Buckinghamshire Council,Adults and Health,Ambient Support Limited,1000171,Res care-permanent - other,Controllable Customer & Client Receipts,7002970426,21/12/2022,-754.4
Buckinghamshire Council,Adults and Health,Ambient Support Limited,1000171,Res care-permanent - other,Controllable Customer & Client Receipts,7002970426,21/12/2022,-627.8
Buckinghamshire Council,Adults and Health,Ambient Support Limited,1000171,Res care-permanent - other,Controllable Customer & Client Receipts,7002970426,21/12/2022,-627.8
Buckinghamshire Council,Adults and Health,Ambient Support Limited,1000171,Res care-permanent - other,Controllable Customer & Client Receipts,7002970426,21/12/2022,-1871.08
Buckinghamshire Council,Adults and Health,Ambient Support Limited,1000171,Res care-permanent - other,Controllable Customer & Client Receipts,7002970426,21/12/2022,-72.48
Buckinghamshire Council,Adults and Health,Ambient Support Limited,1000171,Res care-permanent - other,Controllable Customer & Client Receipts,7002970426,21/12/2022,-544.83
Buckinghamshire Council,Adults and Health,Ambient Support Limited,1000171,Res care-permanent - other,Controllable Customer & Client Receipts,7002970426,21/12/2022,-2172.55
Buckinghamshire Council,Adults and Health,Ambient Support Limited,1000171,Res care-permanent - other,Controllable Customer & Client Receipts,7002970426,21/12/2022,-160.3
Buckinghamshire Council,Adults and Health,Ambient Support Limited,1000171,Res care-permanent - other,Controllable Customer & Client Receipts,7002970426,21/12/2022,-1096.07
Buckinghamshire Council,Adults and Health,Ambient Support Limited,1000171,Res care-permanent - other,Controllable Customer & Client Receipts,3300488272,16/12/2022,6242.51
Buckinghamshire Council,Adults and Health,Maria Residential Home,1000177,Res care-permanent - other,Agency (third party payments) & Contribs,7002970427,21/12/2022,-733.34
Buckinghamshire Council,Adults and Health,Maria Residential Home,1000177,Res care-permanent - other,Agency (third party payments) & Contribs,7002970427,21/12/2022,-733.34
Buckinghamshire Council,Adults and Health,Maria Residential Home,1000177,Res care-permanent - other,Agency (third party payments) & Contribs,7002970427,21/12/2022,-523.81
Buckinghamshire Council,Adults and Health,Maria Residential Home,1000177,Res care-permanent - other,Agency (third party payments) & Contribs,7002970427,21/12/2022,4464.29
Buckinghamshire Council,Adults and Health,Maria Residential Home,1000177,Res-Perm EMI-Other - Exp,Agency (third party payments) & Contribs,7002970427,21/12/2022,3429.16
Buckinghamshire Council,Adults and Health,Maria Residential Home,1000177,Res-Perm EMI-Other - Exp,Agency (third party payments) & Contribs,7002970427,21/12/2022,1714.29
Buckinghamshire Council,Adults and Health,Maria Residential Home,1000177,Res-Perm EMI-Other - Exp,Agency (third party payments) & Contribs,7002970427,21/12/2022,685.71
Buckinghamshire Council,Adults and Health,Maria Residential Home,1000177,Res-Perm EMI-Other - Exp,Agency (third party payments) & Contribs,7002970427,21/12/2022,714.29
Buckinghamshire Council,Adults and Health,Maria Residential Home,1000177,Res-Perm EMI-Other - Exp,Agency (third party payments) & Contribs,7002970427,21/12/2022,357.14
Buckinghamshire Council,Adults and Health,Maria Residential Home,1000177,Res care-permanent - other,Controllable Customer & Client Receipts,7002970427,21/12/2022,-972.73
Buckinghamshire Council,Adults and Health,Maria Residential Home,1000177,Res care-permanent - other,Controllable Customer & Client Receipts,7002970427,21/12/2022,-1196.72
Buckinghamshire Council,Adults and Health,Maria Residential Home,1000177,Res care-permanent - other,Controllable Customer & Client Receipts,7002970427,21/12/2022,104.64
Buckinghamshire Council,Adults and Health,Maria Residential Home,1000177,Res care-permanent - other,Controllable Customer & Client Receipts,7002970427,21/12/2022,104.64
Buckinghamshire Council,Adults and Health,Maria Residential Home,1000177,Res care-permanent - other,Controllable Customer & Client Receipts,7002970427,21/12/2022,78.48
Buckinghamshire Council,Adults and Health,Maria Residential Home,1000177,Res care-permanent - other,Controllable Customer & Client Receipts,7002970427,21/12/2022,-391.31
Buckinghamshire Council,Adults and Health,Maria Residential Home,1000177,Res care-permanent - other,Controllable Customer & Client Receipts,7002970427,21/12/2022,6.2
Buckinghamshire Council,Adults and Health,Maria Residential Home,1000177,Res care-permanent - other,Controllable Customer & Client Receipts,7002970427,21/12/2022,-171.43
Buckinghamshire Council,Adults and Health,Maria Residential Home,1000177,Res care-permanent - other,Controllable Customer & Client Receipts,7002970427,21/12/2022,-206.6
Buckinghamshire Council,Adults and Health,Maria Residential Home,1000177,Res care-permanent - other,Controllable Customer & Client Receipts,7002970427,21/12/2022,-67.96
Buckinghamshire Council,Adults and Health,Maria Residential Home,1000177,Res care-permanent - other,Controllable Customer & Client Receipts,7002970427,21/12/2022,-33.98
Buckinghamshire Council,Adults and Health,The Abbeyfield Society,1000182,Res-Perm EMI-Other - Exp,Agency (third party payments) & Contribs,7002970428,21/12/2022,5200
Buckinghamshire Council,Adults and Health,The Abbeyfield Society,1000182,Res care-permanent - other,Agency (third party payments) & Contribs,7002970428,21/12/2022,3643.48
Buckinghamshire Council,Adults and Health,The Abbeyfield Society,1000182,Nursing care-permanent -other,Agency (third party payments) & Contribs,7002970428,21/12/2022,2521.44
Buckinghamshire Council,Adults and Health,The Abbeyfield Society,1000182,Res care-permanent - other,Controllable Customer & Client Receipts,7002970428,21/12/2022,-627.8
Buckinghamshire Council,Adults and Health,The Abbeyfield Society,1000182,Res care-permanent - other,Controllable Customer & Client Receipts,7002970428,21/12/2022,-583.44
Buckinghamshire Council,Adults and Health,The Abbeyfield Society,1000182,Nursing care-permanent -other,Controllable Customer & Client Receipts,7002970428,21/12/2022,-675.24
Buckinghamshire Council,Adults and Health,THE KNOLLS RESIDENTIAL HOME,1000185,Nurs-Perm EMI Other - Exp,Agency (third party payments) & Contribs,7002970429,21/12/2022,4520
Buckinghamshire Council,Adults and Health,THE KNOLLS RESIDENTIAL HOME,1000185,Res-Perm EMI-Other - Exp,Agency (third party payments) & Contribs,7002970429,21/12/2022,4470.2
Buckinghamshire Council,Adults and Health,THE KNOLLS RESIDENTIAL HOME,1000185,Nursing care-permanent -other,Controllable Customer & Client Receipts,7002970429,21/12/2022,-1401.64
Buckinghamshire Council,Adults and Health,THE KNOLLS RESIDENTIAL HOME,1000185,Res care-permanent - other,Controllable Customer & Client Receipts,7002970429,21/12/2022,-645.72
Buckinghamshire Council,Adults and Health,THE OLD SCHOOL HOUSE RESIDENTIAL HO,1000187,Nurs-Perm EMI Other - Exp,Agency (third party payments) & Contribs,7002970430,21/12/2022,4202.4
Buckinghamshire Council,Adults and Health,THE OLD SCHOOL HOUSE RESIDENTIAL HO,1000187,Res-Perm EMI-Other - Exp,Agency (third party payments) & Contribs,7002970430,21/12/2022,4060.68
Buckinghamshire Council,Adults and Health,THE OLD SCHOOL HOUSE RESIDENTIAL HO,1000187,Res care-permanent - other,Controllable Customer & Client Receipts,7002970430,21/12/2022,-773.4
Buckinghamshire Council,Adults and Health,THE OLD SCHOOL HOUSE RESIDENTIAL HO,1000187,Nursing care-permanent -other,Controllable Customer & Client Receipts,7002970430,21/12/2022,-1042.96
Buckinghamshire Council,Adults and Health,THE WILLOW RESIDENTIAL CARE HOME,1000188,Res care-permanent - other,Agency (third party payments) & Contribs,7002970431,21/12/2022,5150
Buckinghamshire Council,Adults and Health,THE WILLOW RESIDENTIAL CARE HOME,1000188,Res care-permanent - other,Controllable Customer & Client Receipts,7002970431,21/12/2022,-743.52
Buckinghamshire Council,Adults and Health,TITHE FARM REST HOME,1000190,Nurs-Perm EMI Other - Exp,Agency (third party payments) & Contribs,7002970432,21/12/2022,4800
Buckinghamshire Council,Adults and Health,TITHE FARM REST HOME,1000190,Res-Perm EMI-Other - Exp,Agency (third party payments) & Contribs,7002970432,21/12/2022,3067.76
Buckinghamshire Council,Adults and Health,TITHE FARM REST HOME,1000190,Nursing care-permanent -other,Agency (third party payments) & Contribs,7002970432,21/12/2022,4532
Buckinghamshire Council,Adults and Health,TITHE FARM REST HOME,1000190,Nursing care-permanent -other,Agency (third party payments) & Contribs,7002970432,21/12/2022,3782.16
Buckinghamshire Council,Adults and Health,TITHE FARM REST HOME,1000190,Res-Perm EMI-Other - Exp,Agency (third party payments) & Contribs,7002970432,21/12/2022,4738
Buckinghamshire Council,Adults and Health,TITHE FARM REST HOME,1000190,Res care-permanent - other,Agency (third party payments) & Contribs,7002970432,21/12/2022,200
Buckinghamshire Council,Adults and Health,TITHE FARM REST HOME,1000190,Res care-permanent - other,Controllable Customer & Client Receipts,7002970432,21/12/2022,-696.8
Buckinghamshire Council,Adults and Health,TITHE FARM REST HOME,1000190,Nursing care-permanent -other,Controllable Customer & Client Receipts,7002970432,21/12/2022,-699.44
Buckinghamshire Council,Adults and Health,TITHE FARM REST HOME,1000190,Res care-permanent - other,Controllable Customer & Client Receipts,7002970432,21/12/2022,-1179.6
Buckinghamshire Council,Adults and Health,TITHE FARM REST HOME,1000190,Nursing care-permanent -other,Controllable Customer & Client Receipts,7002970432,21/12/2022,-1476.68
Buckinghamshire Council,Adults and Health,TITHE FARM REST HOME,1000190,Nursing care-permanent -other,Controllable Customer & Client Receipts,7002970432,21/12/2022,-562.24
Buckinghamshire Council,Adults and Health,TITHE FARM REST HOME,1000190,Res care-permanent - other,Controllable Customer & Client Receipts,7002970432,21/12/2022,-200
Buckinghamshire Council,Adults and Health,The Kingwood Trust,1000202,Supported Living - Other,Agency (third party payments) & Contribs,7002970744,21/12/2022,9138.4
Buckinghamshire Council,Adults and Health,The Kingwood Trust,1000202,Supported Living - Additional Care,Agency (third party payments) & Contribs,7002970744,21/12/2022,8950.6
Buckinghamshire Council,"Planning, Growth & Sustainability",ROSPA,1000210,Health & Safety At Work Courses,Controllable Employees,4101018725,07/12/2022,990
Buckinghamshire Council,"Planning, Growth & Sustainability",ROSPA,1000210,Health & Safety At Work Courses,Controllable Employees,4101018725,07/12/2022,96
Buckinghamshire Council,Communities,CAROUSEL BUSES LTD,1000240,Subsidised Bus Services - Core,Agency (third party payments) & Contribs,4101021742,07/12/2022,30265.49
Buckinghamshire Council,Communities,CAROUSEL BUSES LTD,1000240,Subsidised Bus Services - Accessibility,Transfer Payments (Grants & Assistance),4101021743,07/12/2022,21077.4
Buckinghamshire Council,Communities,CAROUSEL BUSES LTD,1000240,Recoverable Expenditure,Supplies and Services,4101021991,09/12/2022,10132.2
Buckinghamshire Council,Communities,CAROUSEL BUSES LTD,1000240,Recoverable Expenditure,Supplies and Services,4101021992,09/12/2022,51073.25
Buckinghamshire Council,Communities,CAROUSEL BUSES LTD,1000240,Subsidised Bus Services - Core,Agency (third party payments) & Contribs,4101022000,09/12/2022,6667.66
Buckinghamshire Council,Communities,CAROUSEL BUSES LTD,1000240,Subsidised Bus Services - Accessibility,Transfer Payments (Grants & Assistance),4101022001,09/12/2022,5531.61
Buckinghamshire Council,Communities,CAROUSEL BUSES LTD,1000240,National Concessionary Fares Scheme,Agency (third party payments) & Contribs,4101021052,02/12/2022,200603.38
Buckinghamshire Council,Communities,CAROUSEL BUSES LTD,1000240,Travel Choice Scheme,Transfer Payments (Grants & Assistance),4101022851,14/12/2022,543.9
Buckinghamshire Council,Communities,Z & S TRANSPORT LTD,1000253,National Concessionary Fares Scheme,Agency (third party payments) & Contribs,4101021063,02/12/2022,4652.16
Buckinghamshire Council,Communities,Z & S TRANSPORT LTD,1000253,Subsidised Bus Services - Accessibility,Transfer Payments (Grants & Assistance),4101021767,09/12/2022,20755.98
Buckinghamshire Council,Communities,Z & S TRANSPORT LTD,1000253,Contracts (Mainstream),Transport,4101023309,16/12/2022,7790
Buckinghamshire Council,Communities,Z & S TRANSPORT LTD,1000253,Contracts (Mainstream),Transport,4101023369,16/12/2022,3738.9
Buckinghamshire Council,Communities,Z & S TRANSPORT LTD,1000253,Contracts (Mainstream),Transport,4101023370,16/12/2022,9949.8
Buckinghamshire Council,Communities,Z & S TRANSPORT LTD,1000253,Contracts (Mainstream),Transport,4101023398,16/12/2022,10815
Buckinghamshire Council,Communities,Z & S TRANSPORT LTD,1000253,Contracts (Mainstream),Transport,4101023399,16/12/2022,10815
Buckinghamshire Council,Communities,Z & S TRANSPORT LTD,1000253,Contracts (Mainstream),Transport,4101023400,16/12/2022,4693.71
Buckinghamshire Council,Communities,Z & S TRANSPORT LTD,1000253,Contracts (Mainstream),Transport,4101023401,16/12/2022,8868.3
Buckinghamshire Council,Communities,Z & S TRANSPORT LTD,1000253,Subsidised Bus Services - Accessibility,Transfer Payments (Grants & Assistance),4101023469,16/12/2022,4866.04
Buckinghamshire Council,Communities,ST JOHN AMBULANCE,1000258,Subsistence,Supplies and Services,4101018129,02/12/2022,787.5
Buckinghamshire Council,Adults and Health,HOLIDAY INN AYLESBURY,1000261,Other Com Care exp (eg pet sitting),Agency (third party payments) & Contribs,4101024365,21/12/2022,2375
Buckinghamshire Council,Communities,MOTTS COACHES (AYLESBURY) LTD,1000265,Contracts (Mainstream),Transport,4101022800,14/12/2022,700
Buckinghamshire Council,Communities,MOTTS COACHES (AYLESBURY) LTD,1000265,Contracts (Mainstream),Transport,4101022804,14/12/2022,740
Buckinghamshire Council,Communities,MOTTS COACHES (AYLESBURY) LTD,1000265,Contracts (Mainstream),Transport,4101020911,02/12/2022,3326.9
Buckinghamshire Council,Communities,MOTTS COACHES (AYLESBURY) LTD,1000265,Contracts (Mainstream),Transport,4101020973,02/12/2022,3326.9
Buckinghamshire Council,Communities,MOTTS COACHES (AYLESBURY) LTD,1000265,Contracts (Mainstream),Transport,4101024910,23/12/2022,4001.55
Buckinghamshire Council,Communities,MOTTS COACHES (AYLESBURY) LTD,1000265,Contracts (Mainstream),Transport,4101024911,23/12/2022,3625.6
Buckinghamshire Council,Communities,MOTTS COACHES (AYLESBURY) LTD,1000265,Contracts (Mainstream),Transport,4101024912,23/12/2022,7704.4
Buckinghamshire Council,Communities,MOTTS COACHES (AYLESBURY) LTD,1000265,Contracts (Mainstream),Transport,4101024913,23/12/2022,4871.9
Buckinghamshire Council,Communities,MOTTS COACHES (AYLESBURY) LTD,1000265,Contracts (Mainstream),Transport,4101024914,23/12/2022,4871.9
Buckinghamshire Council,Communities,REDACTED,1000298,Subsidised Bus Services - Accessibility,Transfer Payments (Grants & Assistance),4101023462,16/12/2022,1077.4
Buckinghamshire Council,Communities,REDACTED,1000298,Subsidised Bus Services - Accessibility,Transfer Payments (Grants & Assistance),4101021744,07/12/2022,10392.2
Buckinghamshire Council,Communities,REDACTED,1000298,Contracts (Mainstream),Transport,4101022670,14/12/2022,5642.34
Buckinghamshire Council,Communities,REDACTED,1000298,Contracts (Mainstream),Transport,4101022671,14/12/2022,3829.54
Buckinghamshire Council,Communities,REDACTED,1000298,Contracts (Mainstream),Transport,4101022672,14/12/2022,7754.58
Buckinghamshire Council,Communities,REDACTED,1000298,Contracts (Mainstream),Transport,4101022673,14/12/2022,10763.5
Buckinghamshire Council,Communities,REDACTED,1000298,Contracts (Mainstream),Transport,4101022674,14/12/2022,8463.51
Buckinghamshire Council,Communities,REDACTED,1000298,Contracts (Mainstream),Transport,4101022675,14/12/2022,10067.84
Buckinghamshire Council,Communities,REDACTED,1000298,Contracts (Mainstream),Transport,4101023920,21/12/2022,5687.5
Buckinghamshire Council,Communities,REDACTED,1000298,Contracts (Mainstream),Transport,4101025623,30/12/2022,6406.81
Buckinghamshire Council,Communities,REDACTED,1000298,Contracts (Mainstream),Transport,4101025624,30/12/2022,6849.5
Buckinghamshire Council,Communities,REDACTED,1000298,Contracts (Mainstream),Transport,4101025625,30/12/2022,3590.58
Buckinghamshire Council,Communities,REDACTED,1000298,Contracts (Mainstream),Transport,4101025626,30/12/2022,5385.87
Buckinghamshire Council,Communities,REDACTED,1000298,Contracts (Mainstream),Transport,4101025635,30/12/2022,4550
Buckinghamshire Council,Communities,HeyfordianTravel Limited,1000307,Contracts (Mainstream),Transport,4101024396,21/12/2022,4932
Buckinghamshire Council,Communities,HeyfordianTravel Limited,1000307,Contracts (Mainstream),Transport,4101021010,02/12/2022,2235
Buckinghamshire Council,Communities,HeyfordianTravel Limited,1000307,Contracts (Mainstream),Transport,4101022494,16/12/2022,6300
Buckinghamshire Council,Communities,HeyfordianTravel Limited,1000307,Contracts (Mainstream),Transport,4101022676,16/12/2022,6028
Buckinghamshire Council,Communities,FIRST BEELINE BUSES LTD,1000316,National Concessionary Fares Scheme,Agency (third party payments) & Contribs,4101021053,02/12/2022,52010.45
Buckinghamshire Council,"Planning, Growth & Sustainability",Newsquest Media Group,1000331,Advertising,Supplies and Services,4101020232,16/12/2022,1088.88
Buckinghamshire Council,"Planning, Growth & Sustainability",Newsquest Media Group,1000331,Advertising,Supplies and Services,4101020233,16/12/2022,1591.44
Buckinghamshire Council,"Planning, Growth & Sustainability",Newsquest Media Group,1000331,Advertising,Supplies and Services,4101017876,02/12/2022,1340.16
Buckinghamshire Council,"Planning, Growth & Sustainability",Newsquest Media Group,1000331,Advertising,Supplies and Services,4101019262,09/12/2022,1507.68
Buckinghamshire Council,"Planning, Growth & Sustainability",Newsquest Media Group,1000331,Advertising,Supplies and Services,4101022316,30/12/2022,837.6
Buckinghamshire Council,Communities,SCIENTIA SERVICES LTD,1000362,General Repairs & Maintenance,Controllable Premises,4101025514,30/12/2022,574
Buckinghamshire Council,"Planning, Growth & Sustainability",CHUBB ELECTRONIC SECURITY LTD,1000380,Security Contracts,Supplies and Services,4101022018,09/12/2022,516.99
Buckinghamshire Council,Adults and Health,HOMES TOGETHER LTD,1000436,Res care-permanent - other,Agency (third party payments) & Contribs,7002970433,21/12/2022,6961.2
Buckinghamshire Council,Adults and Health,HOMES TOGETHER LTD,1000436,Res care-permanent - other,Controllable Customer & Client Receipts,7002970433,21/12/2022,-438.8
Buckinghamshire Council,Communities,A 1 TAXI SERVICE,1000441,Contracts (Mainstream),Transport,4101023507,16/12/2022,1726.07
Buckinghamshire Council,Communities,A 1 TAXI SERVICE,1000441,Contracts (Mainstream),Transport,4101023508,16/12/2022,1575.9
Buckinghamshire Council,Communities,A 1 TAXI SERVICE,1000441,Contracts (Mainstream),Transport,4101023509,16/12/2022,1405.95
Buckinghamshire Council,Communities,A 1 TAXI SERVICE,1000441,Contracts (Mainstream),Transport,4101023510,16/12/2022,1461.57
Buckinghamshire Council,Communities,A 1 TAXI SERVICE,1000441,Contracts (Mainstream),Transport,4101023511,16/12/2022,2039.4
Buckinghamshire Council,Communities,A 1 TAXI SERVICE,1000441,Contracts (Mainstream),Transport,4101023512,16/12/2022,1600.62
Buckinghamshire Council,Communities,A 1 TAXI SERVICE,1000441,Contracts (Mainstream),Transport,4101023582,16/12/2022,1524.4
Buckinghamshire Council,Children's Services,C J ASSOCIATES TRAINING LTD,1000459,Payments - Other Bodies,Transfer Payments (Grants & Assistance),4101025276,28/12/2022,625
Buckinghamshire Council,Children's Services,C J ASSOCIATES TRAINING LTD,1000459,Payments - Other Bodies,Transfer Payments (Grants & Assistance),4101022129,09/12/2022,955
Buckinghamshire Council,Children's Services,C J ASSOCIATES TRAINING LTD,1000459,Payments - Other Bodies,Transfer Payments (Grants & Assistance),4101021253,07/12/2022,625
Buckinghamshire Council,Adults and Health,Arrow Transport & Solutions Ltd,1000465,Transport - Day Care - external,Transport,4101020905,02/12/2022,1827
Buckinghamshire Council,Adults and Health,Arrow Transport & Solutions Ltd,1000465,Transport - Day Care - external,Transport,4101020910,14/12/2022,3334
Buckinghamshire Council,Adults and Health,Arrow Transport & Solutions Ltd,1000465,Transport - Day Care - external,Transport,4101022799,14/12/2022,3916
Buckinghamshire Council,Adults and Health,Arrow Transport & Solutions Ltd,1000465,Transport - Day Care - external,Transport,4101024725,23/12/2022,4120
Buckinghamshire Council,Communities,Arrow Transport & Solutions Ltd,1000465,Contracts (Mainstream),Transport,4101025049,23/12/2022,879
Buckinghamshire Council,Adults and Health,Arrow Transport & Solutions Ltd,1000465,Transport - Day Care - external,Transport,4101025050,23/12/2022,1044
Buckinghamshire Council,Communities,Neales Taxis Ltd,1000473,Contracts (Mainstream),Transport,4101023191,16/12/2022,1050.6
Buckinghamshire Council,Communities,Neales Taxis Ltd,1000473,Contracts (Mainstream),Transport,4101023192,16/12/2022,756.7
Buckinghamshire Council,Communities,Neales Taxis Ltd,1000473,Contracts (Mainstream),Transport,4101023192,16/12/2022,0.04
Buckinghamshire Council,Communities,Neales Taxis Ltd,1000473,Contracts (Mainstream),Transport,4101022449,14/12/2022,1730.4
Buckinghamshire Council,Communities,Neales Taxis Ltd,1000473,Contracts (Mainstream),Transport,4101022467,14/12/2022,2317.5
Buckinghamshire Council,Communities,Neales Taxis Ltd,1000473,Contracts (Mainstream),Transport,4101022468,14/12/2022,1118.45
Buckinghamshire Council,Communities,Neales Taxis Ltd,1000473,Contracts (Mainstream),Transport,4101022468,14/12/2022,0.04
Buckinghamshire Council,Adults and Health,Neales Taxis Ltd,1000473,Transport - Day Care - external,Transport,4101022564,14/12/2022,1416.22
Buckinghamshire Council,Communities,Neales Taxis Ltd,1000473,Contracts (Mainstream),Transport,4101022565,14/12/2022,1074
Buckinghamshire Council,Communities,Neales Taxis Ltd,1000473,Contracts (Mainstream),Transport,4101022566,14/12/2022,1728.75
Buckinghamshire Council,Communities,Neales Taxis Ltd,1000473,Contracts (Mainstream),Transport,4101022567,14/12/2022,1039.5
Buckinghamshire Council,Communities,Neales Taxis Ltd,1000473,Contracts (Mainstream),Transport,4101022993,14/12/2022,2305.71
Buckinghamshire Council,Communities,Neales Taxis Ltd,1000473,Contracts (Mainstream),Transport,4101024398,21/12/2022,500.55
Buckinghamshire Council,Communities,Neales Taxis Ltd,1000473,Contracts (Mainstream),Transport,4101024399,21/12/2022,2046.56
Buckinghamshire Council,Communities,Neales Taxis Ltd,1000473,Contracts (Mainstream),Transport,4101024415,21/12/2022,963.61
Buckinghamshire Council,Adults and Health,Neales Taxis Ltd,1000473,Transport - Day Care - external,Transport,4101024416,21/12/2022,1273.22
Buckinghamshire Council,Adults and Health,Neales Taxis Ltd,1000473,Transport - Day Care - external,Transport,4101024417,21/12/2022,1796.5
Buckinghamshire Council,Adults and Health,Neales Taxis Ltd,1000473,Transport - Day Care - external,Transport,4101024417,21/12/2022,0.03
Buckinghamshire Council,Communities,Neales Taxis Ltd,1000473,Contracts (Mainstream),Transport,4101024418,21/12/2022,906.4
Buckinghamshire Council,Communities,Neales Taxis Ltd,1000473,Contracts (Mainstream),Transport,4101024419,21/12/2022,977.67
Buckinghamshire Council,Communities,Neales Taxis Ltd,1000473,Contracts (Mainstream),Transport,4101024420,21/12/2022,1884
Buckinghamshire Council,Communities,Neales Taxis Ltd,1000473,Contracts (Mainstream),Transport,4101024421,21/12/2022,1340.6
Buckinghamshire Council,Communities,Neales Taxis Ltd,1000473,Contracts (Mainstream),Transport,4101024421,21/12/2022,0.04
Buckinghamshire Council,Communities,Neales Taxis Ltd,1000473,Contracts (Mainstream),Transport,4101021066,02/12/2022,6915.42
Buckinghamshire Council,Communities,Neales Taxis Ltd,1000473,Contracts (Mainstream),Transport,4101021068,02/12/2022,3113.7
Buckinghamshire Council,Communities,Neales Taxis Ltd,1000473,Contracts (Mainstream),Transport,4101021068,02/12/2022,0.03
Buckinghamshire Council,Communities,Neales Taxis Ltd,1000473,Contracts (Mainstream),Transport,4101021069,02/12/2022,1545
Buckinghamshire Council,Communities,Neales Taxis Ltd,1000473,Contracts (Mainstream),Transport,4101021070,02/12/2022,562.05
Buckinghamshire Council,Communities,Neales Taxis Ltd,1000473,Contracts (Mainstream),Transport,4101021070,02/12/2022,0.04
Buckinghamshire Council,Adults and Health,Neales Taxis Ltd,1000473,Transport - Day Care - external,Transport,4101021072,02/12/2022,543.65
Buckinghamshire Council,Adults and Health,Neales Taxis Ltd,1000473,Transport - Day Care - external,Transport,4101021072,02/12/2022,0.03
Buckinghamshire Council,Communities,Neales Taxis Ltd,1000473,Contracts (Mainstream),Transport,4101021073,02/12/2022,2781
Buckinghamshire Council,Communities,Neales Taxis Ltd,1000473,Contracts (Mainstream),Transport,4101021107,02/12/2022,1662.86
Buckinghamshire Council,Communities,Neales Taxis Ltd,1000473,Contracts (Mainstream),Transport,4101021110,02/12/2022,3337.2
Buckinghamshire Council,Communities,Neales Taxis Ltd,1000473,Contracts (Mainstream),Transport,4101021112,02/12/2022,6489
Buckinghamshire Council,Adults and Health,Neales Taxis Ltd,1000473,Transport - Day Care - external,Transport,4101021168,02/12/2022,1719.05
Buckinghamshire Council,Adults and Health,Neales Taxis Ltd,1000473,Transport - Day Care - external,Transport,4101021168,02/12/2022,0.03
Buckinghamshire Council,Communities,Neales Taxis Ltd,1000473,Contracts (Mainstream),Transport,4101021169,02/12/2022,3322.15
Buckinghamshire Council,Communities,Neales Taxis Ltd,1000473,Contracts (Mainstream),Transport,4101021169,02/12/2022,0.03
Buckinghamshire Council,Communities,Neales Taxis Ltd,1000473,Contracts (Mainstream),Transport,4101021170,02/12/2022,3131.2
Buckinghamshire Council,Communities,Neales Taxis Ltd,1000473,Contracts (Mainstream),Transport,4101021171,02/12/2022,2348.4
Buckinghamshire Council,Communities,Neales Taxis Ltd,1000473,Contracts (Mainstream),Transport,4101021172,02/12/2022,2911
Buckinghamshire Council,Communities,Neales Taxis Ltd,1000473,Contracts (Mainstream),Transport,4101021172,02/12/2022,0.03
Buckinghamshire Council,Communities,Neales Taxis Ltd,1000473,Contracts (Mainstream),Transport,4101021173,02/12/2022,1113.3
Buckinghamshire Council,Communities,Neales Taxis Ltd,1000473,Contracts (Mainstream),Transport,4101021173,02/12/2022,0.03
Buckinghamshire Council,Communities,Neales Taxis Ltd,1000473,Contracts (Mainstream),Transport,4101021570,07/12/2022,2068.6
Buckinghamshire Council,Adults and Health,Neales Taxis Ltd,1000473,Transport - Day Care - external,Transport,4101021571,07/12/2022,935.6
Buckinghamshire Council,Adults and Health,Neales Taxis Ltd,1000473,Transport - Day Care - external,Transport,4101021571,07/12/2022,0.04
Buckinghamshire Council,Communities,Neales Taxis Ltd,1000473,Contracts (Mainstream),Transport,4101021572,07/12/2022,936.7
Buckinghamshire Council,Communities,Neales Taxis Ltd,1000473,Contracts (Mainstream),Transport,4101021572,07/12/2022,0.04
Buckinghamshire Council,Communities,Neales Taxis Ltd,1000473,Contracts (Mainstream),Transport,4101021631,07/12/2022,1310.77
Buckinghamshire Council,Communities,Neales Taxis Ltd,1000473,Contracts (Mainstream),Transport,4101021632,07/12/2022,2240.25
Buckinghamshire Council,Communities,Neales Taxis Ltd,1000473,Contracts (Mainstream),Transport,4101021633,07/12/2022,1318.4
Buckinghamshire Council,Communities,Neales Taxis Ltd,1000473,Contracts (Mainstream),Transport,4101021634,07/12/2022,1618.2
Buckinghamshire Council,Communities,Neales Taxis Ltd,1000473,Contracts (Mainstream),Transport,4101021635,07/12/2022,958.35
Buckinghamshire Council,Communities,Neales Taxis Ltd,1000473,Contracts (Mainstream),Transport,4101021636,07/12/2022,2349.4
Buckinghamshire Council,Communities,Neales Taxis Ltd,1000473,Contracts (Mainstream),Transport,4101021636,07/12/2022,0.04
Buckinghamshire Council,Communities,Neales Taxis Ltd,1000473,Contracts (Mainstream),Transport,4101021637,07/12/2022,734.2
Buckinghamshire Council,Communities,Neales Taxis Ltd,1000473,Contracts (Mainstream),Transport,4101021637,07/12/2022,0.04
Buckinghamshire Council,Communities,Neales Taxis Ltd,1000473,Contracts (Mainstream),Transport,4101021638,07/12/2022,1017.45
Buckinghamshire Council,Communities,Neales Taxis Ltd,1000473,Contracts (Mainstream),Transport,4101021639,07/12/2022,1768.5
Buckinghamshire Council,Communities,Neales Taxis Ltd,1000473,Contracts (Mainstream),Transport,4101021640,07/12/2022,1110.17
Buckinghamshire Council,Communities,Neales Taxis Ltd,1000473,Contracts (Mainstream),Transport,4101021642,07/12/2022,1000.05
Buckinghamshire Council,Communities,Neales Taxis Ltd,1000473,Contracts (Mainstream),Transport,4101021642,07/12/2022,0.04
Buckinghamshire Council,Communities,Neales Taxis Ltd,1000473,Contracts (Mainstream),Transport,4101021643,07/12/2022,1229.76
Buckinghamshire Council,Adults and Health,Neales Taxis Ltd,1000473,Transport - Day Care - external,Transport,4101021644,07/12/2022,787.25
Buckinghamshire Council,Adults and Health,Neales Taxis Ltd,1000473,Transport - Day Care - external,Transport,4101021644,07/12/2022,0.03
Buckinghamshire Council,Communities,Neales Taxis Ltd,1000473,Contracts (Mainstream),Transport,4101021645,07/12/2022,2157.6
Buckinghamshire Council,Communities,Neales Taxis Ltd,1000473,Contracts (Mainstream),Transport,4101021646,07/12/2022,1454.1
Buckinghamshire Council,Communities,Neales Taxis Ltd,1000473,Contracts (Mainstream),Transport,4101021686,07/12/2022,2085.75
Buckinghamshire Council,Communities,Neales Taxis Ltd,1000473,Contracts (Mainstream),Transport,4101021687,07/12/2022,1505.6
Buckinghamshire Council,Communities,Neales Taxis Ltd,1000473,Contracts (Mainstream),Transport,4101021688,07/12/2022,773.7
Buckinghamshire Council,Communities,Neales Taxis Ltd,1000473,Contracts (Mainstream),Transport,4101021688,07/12/2022,0.03
Buckinghamshire Council,Communities,Neales Taxis Ltd,1000473,Contracts (Mainstream),Transport,4101021689,07/12/2022,2317.5
Buckinghamshire Council,Communities,Neales Taxis Ltd,1000473,Contracts (Mainstream),Transport,4101021690,07/12/2022,2317.5
Buckinghamshire Council,Communities,Neales Taxis Ltd,1000473,Contracts (Mainstream),Transport,4101021691,07/12/2022,1118.95
Buckinghamshire Council,Communities,Neales Taxis Ltd,1000473,Contracts (Mainstream),Transport,4101021691,07/12/2022,0.04
Buckinghamshire Council,Communities,Neales Taxis Ltd,1000473,Contracts (Mainstream),Transport,4101021692,07/12/2022,1236
Buckinghamshire Council,Communities,Neales Taxis Ltd,1000473,Contracts (Mainstream),Transport,4101021693,07/12/2022,1431.9
Buckinghamshire Council,Communities,Neales Taxis Ltd,1000473,Contracts (Mainstream),Transport,4101021693,07/12/2022,0.04
Buckinghamshire Council,Communities,Neales Taxis Ltd,1000473,Contracts (Mainstream),Transport,4101021694,07/12/2022,1483.2
Buckinghamshire Council,Communities,Neales Taxis Ltd,1000473,Contracts (Mainstream),Transport,4101021695,07/12/2022,1938.87
Buckinghamshire Council,Communities,Neales Taxis Ltd,1000473,Contracts (Mainstream),Transport,4101021696,07/12/2022,886.62
Buckinghamshire Council,Communities,Neales Taxis Ltd,1000473,Contracts (Mainstream),Transport,4101021697,07/12/2022,1051.42
Buckinghamshire Council,Adults and Health,Neales Taxis Ltd,1000473,Transport - Day Care - external,Transport,4101021698,07/12/2022,3945.45
Buckinghamshire Council,Adults and Health,Neales Taxis Ltd,1000473,Transport - Day Care - external,Transport,4101021698,07/12/2022,0.03
Buckinghamshire Council,Communities,Neales Taxis Ltd,1000473,Contracts (Mainstream),Transport,4101021699,07/12/2022,833.37
Buckinghamshire Council,Communities,Neales Taxis Ltd,1000473,Contracts (Mainstream),Transport,4101021700,07/12/2022,2040.85
Buckinghamshire Council,Communities,Neales Taxis Ltd,1000473,Contracts (Mainstream),Transport,4101021700,07/12/2022,0.03
Buckinghamshire Council,Communities,Neales Taxis Ltd,1000473,Contracts (Mainstream),Transport,4101021701,07/12/2022,4120
Buckinghamshire Council,Communities,Neales Taxis Ltd,1000473,Contracts (Mainstream),Transport,4101021702,07/12/2022,1441.17
Buckinghamshire Council,Communities,Neales Taxis Ltd,1000473,Contracts (Mainstream),Transport,4101021703,07/12/2022,1548.1
Buckinghamshire Council,Communities,Neales Taxis Ltd,1000473,Contracts (Mainstream),Transport,4101021703,07/12/2022,0.03
Buckinghamshire Council,Communities,Neales Taxis Ltd,1000473,Contracts (Mainstream),Transport,4101021704,07/12/2022,2090.15
Buckinghamshire Council,Communities,Neales Taxis Ltd,1000473,Contracts (Mainstream),Transport,4101021705,07/12/2022,2472
Buckinghamshire Council,Communities,Neales Taxis Ltd,1000473,Contracts (Mainstream),Transport,4101021706,07/12/2022,2846.4
Buckinghamshire Council,Communities,Neales Taxis Ltd,1000473,Contracts (Mainstream),Transport,4101021735,07/12/2022,1499.7
Buckinghamshire Council,Communities,Neales Taxis Ltd,1000473,Contracts (Mainstream),Transport,4101021735,07/12/2022,0.03
Buckinghamshire Council,Adults and Health,Neales Taxis Ltd,1000473,Transport - Day Care - external,Transport,4101021736,07/12/2022,936
Buckinghamshire Council,Adults and Health,Neales Taxis Ltd,1000473,Transport - Day Care - external,Transport,4101021737,07/12/2022,813.2
Buckinghamshire Council,Adults and Health,Neales Taxis Ltd,1000473,Transport - Day Care - external,Transport,4101021737,07/12/2022,0.04
Buckinghamshire Council,Communities,Neales Taxis Ltd,1000473,Contracts (Mainstream),Transport,4101021738,07/12/2022,1778.52
Buckinghamshire Council,Adults and Health,Neales Taxis Ltd,1000473,Transport - Day Care - external,Transport,4101021787,09/12/2022,965.46
Buckinghamshire Council,Communities,Neales Taxis Ltd,1000473,Contracts (Mainstream),Transport,4101021789,09/12/2022,692.9
Buckinghamshire Council,Communities,Neales Taxis Ltd,1000473,Contracts (Mainstream),Transport,4101021789,09/12/2022,0.03
Buckinghamshire Council,Communities,Neales Taxis Ltd,1000473,Contracts (Mainstream),Transport,4101021790,09/12/2022,1647.17
Buckinghamshire Council,Communities,Neales Taxis Ltd,1000473,Contracts (Mainstream),Transport,4101021791,09/12/2022,1854
Buckinghamshire Council,Communities,Neales Taxis Ltd,1000473,Contracts (Mainstream),Transport,4101021792,09/12/2022,1063.47
Buckinghamshire Council,Adults and Health,Neales Taxis Ltd,1000473,Transport - Day Care - external,Transport,4101021803,09/12/2022,1196.37
Buckinghamshire Council,Adults and Health,Neales Taxis Ltd,1000473,Transport - Day Care - external,Transport,4101021804,09/12/2022,1153.7
Buckinghamshire Council,Adults and Health,Neales Taxis Ltd,1000473,Transport - Day Care - external,Transport,4101021804,09/12/2022,0.04
Buckinghamshire Council,Communities,Neales Taxis Ltd,1000473,Contracts (Mainstream),Transport,4101021805,09/12/2022,889.92
Buckinghamshire Council,Communities,Neales Taxis Ltd,1000473,Contracts (Mainstream),Transport,4101021806,09/12/2022,1919.55
Buckinghamshire Council,Communities,Neales Taxis Ltd,1000473,Contracts (Mainstream),Transport,4101021806,09/12/2022,0.04
Buckinghamshire Council,Communities,Neales Taxis Ltd,1000473,Contracts (Mainstream),Transport,4101021807,09/12/2022,1359.25
Buckinghamshire Council,Communities,Neales Taxis Ltd,1000473,Contracts (Mainstream),Transport,4101021807,09/12/2022,0.04
Buckinghamshire Council,Communities,Neales Taxis Ltd,1000473,Contracts (Mainstream),Transport,4101021808,09/12/2022,889.05
Buckinghamshire Council,Communities,Neales Taxis Ltd,1000473,Contracts (Mainstream),Transport,4101021808,09/12/2022,0.04
Buckinghamshire Council,Communities,Neales Taxis Ltd,1000473,Contracts (Mainstream),Transport,4101021809,09/12/2022,2550.25
Buckinghamshire Council,Communities,Neales Taxis Ltd,1000473,Contracts (Mainstream),Transport,4101021809,09/12/2022,0.03
Buckinghamshire Council,Adults and Health,Neales Taxis Ltd,1000473,Transport - Day Care - external,Transport,4101021810,09/12/2022,1216.7
Buckinghamshire Council,Adults and Health,Neales Taxis Ltd,1000473,Transport - Day Care - external,Transport,4101021810,09/12/2022,0.04
Buckinghamshire Council,Adults and Health,Neales Taxis Ltd,1000473,Transport - Day Care - external,Transport,4101021872,09/12/2022,814.1
Buckinghamshire Council,Adults and Health,Neales Taxis Ltd,1000473,Transport - Day Care - external,Transport,4101021872,09/12/2022,0.03
Buckinghamshire Council,Adults and Health,Neales Taxis Ltd,1000473,Transport - Day Care - external,Transport,4101021873,09/12/2022,780.6
Buckinghamshire Council,Adults and Health,Neales Taxis Ltd,1000473,Transport - Day Care - external,Transport,4101021873,09/12/2022,0.04
Buckinghamshire Council,Adults and Health,Neales Taxis Ltd,1000473,Transport - Day Care - external,Transport,4101021874,09/12/2022,1406.05
Buckinghamshire Council,Adults and Health,Neales Taxis Ltd,1000473,Transport - Day Care - external,Transport,4101021874,09/12/2022,0.03
Buckinghamshire Council,Communities,Neales Taxis Ltd,1000473,Contracts (Mainstream),Transport,4101021875,09/12/2022,1741.8
Buckinghamshire Council,Communities,Neales Taxis Ltd,1000473,Contracts (Mainstream),Transport,4101021875,09/12/2022,0.03
Buckinghamshire Council,Communities,Neales Taxis Ltd,1000473,Contracts (Mainstream),Transport,4101021876,09/12/2022,1598.56
Buckinghamshire Council,Communities,Neales Taxis Ltd,1000473,Contracts (Mainstream),Transport,4101021877,09/12/2022,691.87
Buckinghamshire Council,Adults and Health,Neales Taxis Ltd,1000473,Transport - Day Care - external,Transport,4101021878,09/12/2022,4135.95
Buckinghamshire Council,Communities,Neales Taxis Ltd,1000473,Contracts (Mainstream),Transport,4101021879,09/12/2022,972.56
Buckinghamshire Council,Adults and Health,Neales Taxis Ltd,1000473,Transport - Day Care - external,Transport,4101021880,09/12/2022,934.65
Buckinghamshire Council,Adults and Health,Neales Taxis Ltd,1000473,Transport - Day Care - external,Transport,4101021880,09/12/2022,0.03
Buckinghamshire Council,Adults and Health,Neales Taxis Ltd,1000473,Transport - Day Care - external,Transport,4101021909,09/12/2022,982.4
Buckinghamshire Council,Adults and Health,Neales Taxis Ltd,1000473,Transport - Day Care - external,Transport,4101021909,09/12/2022,0.03
Buckinghamshire Council,Adults and Health,Neales Taxis Ltd,1000473,Transport - Day Care - external,Transport,4101021910,09/12/2022,700.8
Buckinghamshire Council,Adults and Health,Neales Taxis Ltd,1000473,Transport - Day Care - external,Transport,4101021910,09/12/2022,0.03
Buckinghamshire Council,Adults and Health,Neales Taxis Ltd,1000473,Transport - Day Care - external,Transport,4101021911,09/12/2022,3315.45
Buckinghamshire Council,Adults and Health,Neales Taxis Ltd,1000473,Transport - Day Care - external,Transport,4101021911,09/12/2022,0.03
Buckinghamshire Council,Communities,Neales Taxis Ltd,1000473,Contracts (Mainstream),Transport,4101022146,09/12/2022,2451.4
Buckinghamshire Council,Communities,Neales Taxis Ltd,1000473,Contracts (Mainstream),Transport,4101022147,09/12/2022,1977.6
Buckinghamshire Council,Communities,Neales Taxis Ltd,1000473,Contracts (Mainstream),Transport,4101022148,09/12/2022,2636.8
Buckinghamshire Council,Communities,Neales Taxis Ltd,1000473,Contracts (Mainstream),Transport,4101022149,09/12/2022,1510.05
Buckinghamshire Council,Communities,Neales Taxis Ltd,1000473,Contracts (Mainstream),Transport,4101022149,09/12/2022,0.03
Buckinghamshire Council,Communities,Neales Taxis Ltd,1000473,Contracts (Mainstream),Transport,4101022150,09/12/2022,950.56
Buckinghamshire Council,Adults and Health,Neales Taxis Ltd,1000473,Transport - Day Care - external,Transport,4101022190,09/12/2022,3740
Buckinghamshire Council,Communities,Neales Taxis Ltd,1000473,Contracts (Mainstream),Transport,4101022191,09/12/2022,1472.9
Buckinghamshire Council,Communities,Neales Taxis Ltd,1000473,Contracts (Mainstream),Transport,4101022239,09/12/2022,1158.75
Buckinghamshire Council,Communities,Neales Taxis Ltd,1000473,Contracts (Mainstream),Transport,4101022240,09/12/2022,1648
Buckinghamshire Council,Communities,Neales Taxis Ltd,1000473,Contracts (Mainstream),Transport,4101022241,09/12/2022,585.05
Buckinghamshire Council,Communities,Neales Taxis Ltd,1000473,Contracts (Mainstream),Transport,4101022241,09/12/2022,0.04
Buckinghamshire Council,Communities,Neales Taxis Ltd,1000473,Contracts (Mainstream),Transport,4101022242,09/12/2022,1044.25
Buckinghamshire Council,Communities,Neales Taxis Ltd,1000473,Contracts (Mainstream),Transport,4101022242,09/12/2022,0.04
Buckinghamshire Council,Communities,Neales Taxis Ltd,1000473,Contracts (Mainstream),Transport,4101022243,09/12/2022,625.7
Buckinghamshire Council,Communities,Neales Taxis Ltd,1000473,Contracts (Mainstream),Transport,4101022243,09/12/2022,0.04
Buckinghamshire Council,Communities,Neales Taxis Ltd,1000473,Contracts (Mainstream),Transport,4101022244,09/12/2022,1153.6
Buckinghamshire Council,Communities,Neales Taxis Ltd,1000473,Contracts (Mainstream),Transport,4101022245,09/12/2022,2273.7
Buckinghamshire Council,Communities,Neales Taxis Ltd,1000473,Contracts (Mainstream),Transport,4101022245,09/12/2022,0.04
Buckinghamshire Council,Communities,Neales Taxis Ltd,1000473,Contracts (Mainstream),Transport,4101022246,09/12/2022,833.37
Buckinghamshire Council,Communities,Neales Taxis Ltd,1000473,Contracts (Mainstream),Transport,4101022247,09/12/2022,1611.41
Buckinghamshire Council,Communities,Neales Taxis Ltd,1000473,Contracts (Mainstream),Transport,4101022248,09/12/2022,1763.36
Buckinghamshire Council,Communities,Neales Taxis Ltd,1000473,Contracts (Mainstream),Transport,4101022249,09/12/2022,1648
Buckinghamshire Council,Communities,Neales Taxis Ltd,1000473,Contracts (Mainstream),Transport,4101022250,09/12/2022,1136.75
Buckinghamshire Council,Communities,Neales Taxis Ltd,1000473,Contracts (Mainstream),Transport,4101022250,09/12/2022,0.04
Buckinghamshire Council,Communities,Neales Taxis Ltd,1000473,Contracts (Mainstream),Transport,4101022251,09/12/2022,1006.35
Buckinghamshire Council,Communities,Neales Taxis Ltd,1000473,Contracts (Mainstream),Transport,4101022252,09/12/2022,1067.9
Buckinghamshire Council,Communities,Neales Taxis Ltd,1000473,Contracts (Mainstream),Transport,4101022253,09/12/2022,1236
Buckinghamshire Council,Communities,Neales Taxis Ltd,1000473,Contracts (Mainstream),Transport,4101022254,09/12/2022,1630.36
Buckinghamshire Council,Communities,Neales Taxis Ltd,1000473,Contracts (Mainstream),Transport,4101022255,09/12/2022,1203.05
Buckinghamshire Council,Communities,Neales Taxis Ltd,1000473,Contracts (Mainstream),Transport,4101022255,09/12/2022,0.04
Buckinghamshire Council,Communities,Neales Taxis Ltd,1000473,Contracts (Mainstream),Transport,4101022256,09/12/2022,1067.7
Buckinghamshire Council,Communities,Neales Taxis Ltd,1000473,Contracts (Mainstream),Transport,4101022256,09/12/2022,0.03
Buckinghamshire Council,Communities,Neales Taxis Ltd,1000473,Contracts (Mainstream),Transport,4101022257,09/12/2022,1513.45
Buckinghamshire Council,Communities,Neales Taxis Ltd,1000473,Contracts (Mainstream),Transport,4101022257,09/12/2022,0.03
Buckinghamshire Council,Communities,Neales Taxis Ltd,1000473,Contracts (Mainstream),Transport,4101022258,09/12/2022,2087.25
Buckinghamshire Council,Communities,Neales Taxis Ltd,1000473,Contracts (Mainstream),Transport,4101022258,09/12/2022,0.04
Buckinghamshire Council,Communities,Neales Taxis Ltd,1000473,Contracts (Mainstream),Transport,4101022259,09/12/2022,1236
Buckinghamshire Council,Communities,Neales Taxis Ltd,1000473,Contracts (Mainstream),Transport,4101022260,09/12/2022,1081.5
Buckinghamshire Council,Communities,Neales Taxis Ltd,1000473,Contracts (Mainstream),Transport,4101022261,09/12/2022,1153.6
Buckinghamshire Council,Communities,Neales Taxis Ltd,1000473,Contracts (Mainstream),Transport,4101022262,09/12/2022,1136.95
Buckinghamshire Council,Communities,Neales Taxis Ltd,1000473,Contracts (Mainstream),Transport,4101022263,09/12/2022,1878.35
Buckinghamshire Council,Communities,Neales Taxis Ltd,1000473,Contracts (Mainstream),Transport,4101022263,09/12/2022,0.04
Buckinghamshire Council,Communities,Neales Taxis Ltd,1000473,Contracts (Mainstream),Transport,4101022264,09/12/2022,1464.9
Buckinghamshire Council,Communities,Neales Taxis Ltd,1000473,Contracts (Mainstream),Transport,4101022265,09/12/2022,1301.55
Buckinghamshire Council,Communities,Neales Taxis Ltd,1000473,Contracts (Mainstream),Transport,4101022265,09/12/2022,0.04
Buckinghamshire Council,Communities,Neales Taxis Ltd,1000473,Contracts (Mainstream),Transport,4101022266,09/12/2022,1959.1
Buckinghamshire Council,Communities,Neales Taxis Ltd,1000473,Contracts (Mainstream),Transport,4101022266,09/12/2022,0.04
Buckinghamshire Council,Communities,Neales Taxis Ltd,1000473,Contracts (Mainstream),Transport,4101022344,09/12/2022,905.75
Buckinghamshire Council,Communities,Neales Taxis Ltd,1000473,Contracts (Mainstream),Transport,4101022344,09/12/2022,0.03
Buckinghamshire Council,Communities,Neales Taxis Ltd,1000473,Contracts (Mainstream),Transport,4101022346,09/12/2022,2451
Buckinghamshire Council,Communities,Neales Taxis Ltd,1000473,Contracts (Mainstream),Transport,4101022346,09/12/2022,0.04
Buckinghamshire Council,Communities,Neales Taxis Ltd,1000473,Contracts (Mainstream),Transport,4101022347,09/12/2022,2128.2
Buckinghamshire Council,Communities,Neales Taxis Ltd,1000473,Contracts (Mainstream),Transport,4101022347,09/12/2022,0.03
Buckinghamshire Council,Communities,Neales Taxis Ltd,1000473,Contracts (Mainstream),Transport,4101022348,09/12/2022,1931.25
Buckinghamshire Council,Communities,Neales Taxis Ltd,1000473,Contracts (Mainstream),Transport,4101025362,30/12/2022,1110.17
Buckinghamshire Council,Communities,Neales Taxis Ltd,1000473,Contracts (Mainstream),Transport,4101025363,30/12/2022,2358
Buckinghamshire Council,Communities,Neales Taxis Ltd,1000473,Contracts (Mainstream),Transport,4101025364,30/12/2022,894.46
Buckinghamshire Council,Communities,Neales Taxis Ltd,1000473,Contracts (Mainstream),Transport,4101025365,30/12/2022,3006.05
Buckinghamshire Council,Communities,Neales Taxis Ltd,1000473,Contracts (Mainstream),Transport,4101025365,30/12/2022,0.03
Buckinghamshire Council,Communities,Neales Taxis Ltd,1000473,Contracts (Mainstream),Transport,4101025448,30/12/2022,3902.57
Buckinghamshire Council,Communities,Neales Taxis Ltd,1000473,Contracts (Mainstream),Transport,4101025450,30/12/2022,1377.9
Buckinghamshire Council,Communities,Neales Taxis Ltd,1000473,Contracts (Mainstream),Transport,4101025451,30/12/2022,1153.95
Buckinghamshire Council,Communities,Neales Taxis Ltd,1000473,Contracts (Mainstream),Transport,4101025481,30/12/2022,1699.5
Buckinghamshire Council,Communities,Neales Taxis Ltd,1000473,Contracts (Mainstream),Transport,4101025482,30/12/2022,2641.95
Buckinghamshire Council,Communities,Neales Taxis Ltd,1000473,Contracts (Mainstream),Transport,4101025483,30/12/2022,1907.05
Buckinghamshire Council,Communities,Neales Taxis Ltd,1000473,Contracts (Mainstream),Transport,4101025483,30/12/2022,0.04
Buckinghamshire Council,Adults and Health,Neales Taxis Ltd,1000473,Transport - Day Care - external,Transport,4101025484,30/12/2022,1273.22
Buckinghamshire Council,Communities,Neales Taxis Ltd,1000473,Contracts (Mainstream),Transport,4101025485,30/12/2022,826.02
Buckinghamshire Council,Communities,Neales Taxis Ltd,1000473,Contracts (Mainstream),Transport,4101025486,30/12/2022,4403.25
Buckinghamshire Council,Communities,Neales Taxis Ltd,1000473,Contracts (Mainstream),Transport,4101025487,30/12/2022,916.85
Buckinghamshire Council,Communities,Neales Taxis Ltd,1000473,Contracts (Mainstream),Transport,4101025488,30/12/2022,1421.46
Buckinghamshire Council,Communities,Neales Taxis Ltd,1000473,Contracts (Mainstream),Transport,4101025489,30/12/2022,1288.77
Buckinghamshire Council,Communities,Neales Taxis Ltd,1000473,Contracts (Mainstream),Transport,4101025490,30/12/2022,3157.6
Buckinghamshire Council,Communities,Neales Taxis Ltd,1000473,Contracts (Mainstream),Transport,4101025491,30/12/2022,1841.86
Buckinghamshire Council,Communities,Neales Taxis Ltd,1000473,Contracts (Mainstream),Transport,4101025492,30/12/2022,1067.22
Buckinghamshire Council,Communities,Neales Taxis Ltd,1000473,Contracts (Mainstream),Transport,4101025493,30/12/2022,1278.8
Buckinghamshire Council,Communities,Neales Taxis Ltd,1000473,Contracts (Mainstream),Transport,4101025494,30/12/2022,2732.96
Buckinghamshire Council,Communities,Neales Taxis Ltd,1000473,Contracts (Mainstream),Transport,4101025495,30/12/2022,3193.96
Buckinghamshire Council,Communities,Neales Taxis Ltd,1000473,Contracts (Mainstream),Transport,4101025496,30/12/2022,639.55
Buckinghamshire Council,Communities,Neales Taxis Ltd,1000473,Contracts (Mainstream),Transport,4101025559,30/12/2022,2326.45
Buckinghamshire Council,Communities,Neales Taxis Ltd,1000473,Contracts (Mainstream),Transport,4101025559,30/12/2022,0.03
Buckinghamshire Council,Communities,Neales Taxis Ltd,1000473,Contracts (Mainstream),Transport,4101025560,30/12/2022,2739.8
Buckinghamshire Council,Communities,Neales Taxis Ltd,1000473,Contracts (Mainstream),Transport,4101025561,30/12/2022,1133
Buckinghamshire Council,Adults and Health,Neales Taxis Ltd,1000473,Transport - Day Care - external,Transport,4101025562,30/12/2022,3400
Buckinghamshire Council,Communities,Neales Taxis Ltd,1000473,Contracts (Mainstream),Transport,4101025563,30/12/2022,2535.55
Buckinghamshire Council,Communities,Neales Taxis Ltd,1000473,Contracts (Mainstream),Transport,4101025564,30/12/2022,3083.6
Buckinghamshire Council,Communities,Neales Taxis Ltd,1000473,Contracts (Mainstream),Transport,4101025564,30/12/2022,0.04
Buckinghamshire Council,Communities,Neales Taxis Ltd,1000473,Contracts (Mainstream),Transport,4101025586,30/12/2022,1998.2
Buckinghamshire Council,Communities,Neales Taxis Ltd,1000473,Contracts (Mainstream),Transport,4101025587,30/12/2022,988.35
Buckinghamshire Council,Communities,Neales Taxis Ltd,1000473,Contracts (Mainstream),Transport,4101025587,30/12/2022,0.03
Buckinghamshire Council,Adults and Health,Neales Taxis Ltd,1000473,Transport - Day Care - external,Transport,4101025588,30/12/2022,4332.9
Buckinghamshire Council,Communities,Neales Taxis Ltd,1000473,Contracts (Mainstream),Transport,4101025589,30/12/2022,1675.6
Buckinghamshire Council,Communities,Neales Taxis Ltd,1000473,Contracts (Mainstream),Transport,4101025590,30/12/2022,1188.2
Buckinghamshire Council,Communities,Neales Taxis Ltd,1000473,Contracts (Mainstream),Transport,4101025591,30/12/2022,1545.6
Buckinghamshire Council,Communities,Neales Taxis Ltd,1000473,Contracts (Mainstream),Transport,4101025591,30/12/2022,0.03
Buckinghamshire Council,Communities,Neales Taxis Ltd,1000473,Contracts (Mainstream),Transport,4101025618,30/12/2022,2223.15
Buckinghamshire Council,Adults and Health,Neales Taxis Ltd,1000473,Transport - Day Care - external,Transport,4101025619,30/12/2022,1980
Buckinghamshire Council,Adults and Health,Neales Taxis Ltd,1000473,Transport - Day Care - external,Transport,4101025620,30/12/2022,1525.16
Buckinghamshire Council,Communities,Neales Taxis Ltd,1000473,Contracts (Mainstream),Transport,4101025644,30/12/2022,1524.4
Buckinghamshire Council,Communities,Neales Taxis Ltd,1000473,Contracts (Mainstream),Transport,4101025645,30/12/2022,1369.9
Buckinghamshire Council,Communities,Neales Taxis Ltd,1000473,Contracts (Mainstream),Transport,4101025646,30/12/2022,1442
Buckinghamshire Council,Communities,Neales Taxis Ltd,1000473,Contracts (Mainstream),Transport,4101025647,30/12/2022,1903
Buckinghamshire Council,Communities,Neales Taxis Ltd,1000473,Contracts (Mainstream),Transport,4101025648,30/12/2022,3187.85
Buckinghamshire Council,Adults and Health,Neales Taxis Ltd,1000473,Transport - Day Care - external,Transport,4101025649,30/12/2022,1274.65
Buckinghamshire Council,Adults and Health,Neales Taxis Ltd,1000473,Transport - Day Care - external,Transport,4101025649,30/12/2022,0.03
Buckinghamshire Council,Adults and Health,Neales Taxis Ltd,1000473,Transport - Day Care - external,Transport,4101025650,30/12/2022,942.96
Buckinghamshire Council,Adults and Health,Neales Taxis Ltd,1000473,Transport - Day Care - external,Transport,4101025651,30/12/2022,1090.46
Buckinghamshire Council,Adults and Health,Neales Taxis Ltd,1000473,Transport - Day Care - external,Transport,4101025652,30/12/2022,1253.3
Buckinghamshire Council,Adults and Health,Neales Taxis Ltd,1000473,Transport - Day Care - external,Transport,4101025652,30/12/2022,0.04
Buckinghamshire Council,Adults and Health,Neales Taxis Ltd,1000473,Transport - Day Care - external,Transport,4101025653,30/12/2022,1208.65
Buckinghamshire Council,Adults and Health,Neales Taxis Ltd,1000473,Transport - Day Care - external,Transport,4101025653,30/12/2022,0.03
Buckinghamshire Council,Communities,Neales Taxis Ltd,1000473,Contracts (Mainstream),Transport,4101025655,30/12/2022,1245.85
Buckinghamshire Council,Communities,Neales Taxis Ltd,1000473,Contracts (Mainstream),Transport,4101025655,30/12/2022,0.03
Buckinghamshire Council,Communities,Neales Taxis Ltd,1000473,Contracts (Mainstream),Transport,4101025730,30/12/2022,2981.85
Buckinghamshire Council,Communities,Neales Taxis Ltd,1000473,Contracts (Mainstream),Transport,4101025731,30/12/2022,2472
Buckinghamshire Council,Communities,Neales Taxis Ltd,1000473,Contracts (Mainstream),Transport,4101025732,30/12/2022,1956.02
Buckinghamshire Council,Adults and Health,Neales Taxis Ltd,1000473,Transport - Day Care - external,Transport,4101025733,30/12/2022,3473.36
Buckinghamshire Council,Communities,Neales Taxis Ltd,1000473,Contracts (Mainstream),Transport,4101025734,30/12/2022,877.71
Buckinghamshire Council,Communities,Neales Taxis Ltd,1000473,Contracts (Mainstream),Transport,4101025736,30/12/2022,1720.95
Buckinghamshire Council,Communities,Neales Taxis Ltd,1000473,Contracts (Mainstream),Transport,4101025736,30/12/2022,0.03
Buckinghamshire Council,Communities,Neales Taxis Ltd,1000473,Contracts (Mainstream),Transport,4101025738,30/12/2022,3249.4
Buckinghamshire Council,Communities,Neales Taxis Ltd,1000473,Contracts (Mainstream),Transport,4101025738,30/12/2022,0.04
Buckinghamshire Council,Communities,Neales Taxis Ltd,1000473,Contracts (Mainstream),Transport,4101025739,30/12/2022,1181.82
Buckinghamshire Council,Communities,Neales Taxis Ltd,1000473,Contracts (Mainstream),Transport,4101025740,30/12/2022,1350.1
Buckinghamshire Council,Communities,Neales Taxis Ltd,1000473,Contracts (Mainstream),Transport,4101025740,30/12/2022,0.03
Buckinghamshire Council,Adults and Health,Neales Taxis Ltd,1000473,Transport - Day Care - external,Transport,4101025741,30/12/2022,1581.8
Buckinghamshire Council,Adults and Health,Neales Taxis Ltd,1000473,Transport - Day Care - external,Transport,4101025741,30/12/2022,0.04
Buckinghamshire Council,Communities,ABBA CARS,1000476,Contracts (Mainstream),Transport,4101021865,09/12/2022,3303.2
Buckinghamshire Council,Communities,ABBA CARS,1000476,Contracts (Mainstream),Transport,4101023883,21/12/2022,2775.05
Buckinghamshire Council,Communities,ABBA CARS,1000476,Contracts (Mainstream),Transport,4101023883,21/12/2022,0.03
Buckinghamshire Council,Communities,ABBA CARS,1000476,Contracts (Mainstream),Transport,4101023884,21/12/2022,2931.5
Buckinghamshire Council,Adults and Health,ABBA CARS,1000476,Transport - Day Care - external,Transport,4101024438,21/12/2022,3487
Buckinghamshire Council,Children's Services,ABBA CARS,1000476,Transport - Day Care - external,Transport,4101024439,21/12/2022,1661.76
Buckinghamshire Council,Communities,PREMIUM MINIBUSES & CARS LTD,1000478,Contracts (Mainstream),Transport,4101022729,21/12/2022,1080
Buckinghamshire Council,Communities,PREMIUM MINIBUSES & CARS LTD,1000478,Contracts (Mainstream),Transport,4101023806,21/12/2022,1343.84
Buckinghamshire Council,Communities,PREMIUM MINIBUSES & CARS LTD,1000478,Contracts (Mainstream),Transport,4101023807,21/12/2022,2263.75
Buckinghamshire Council,Communities,PREMIUM MINIBUSES & CARS LTD,1000478,Contracts (Mainstream),Transport,4101023808,21/12/2022,1759.04
Buckinghamshire Council,Communities,PREMIUM MINIBUSES & CARS LTD,1000478,Contracts (Mainstream),Transport,4101023809,21/12/2022,1871.84
Buckinghamshire Council,Communities,PREMIUM MINIBUSES & CARS LTD,1000478,Contracts (Mainstream),Transport,4101023810,21/12/2022,2236.48
Buckinghamshire Council,Communities,PREMIUM MINIBUSES & CARS LTD,1000478,Contracts (Mainstream),Transport,4101023811,21/12/2022,1916.8
Buckinghamshire Council,Communities,PREMIUM MINIBUSES & CARS LTD,1000478,Contracts (Mainstream),Transport,4101023812,21/12/2022,1596.8
Buckinghamshire Council,Communities,PREMIUM MINIBUSES & CARS LTD,1000478,Contracts (Mainstream),Transport,4101023813,21/12/2022,2237.28
Buckinghamshire Council,Communities,PREMIUM MINIBUSES & CARS LTD,1000478,Contracts (Mainstream),Transport,4101023814,21/12/2022,1919.52
Buckinghamshire Council,Children's Services,PREMIUM MINIBUSES & CARS LTD,1000478,Transport - Day Care - external,Transport,4101023815,21/12/2022,2080.5
Buckinghamshire Council,Communities,PREMIUM MINIBUSES & CARS LTD,1000478,Contracts (Mainstream),Transport,4101023880,21/12/2022,1200
Buckinghamshire Council,Communities,PREMIUM MINIBUSES & CARS LTD,1000478,Contracts (Mainstream),Transport,4101023881,21/12/2022,1884.96
Buckinghamshire Council,Communities,PREMIUM MINIBUSES & CARS LTD,1000478,Contracts (Mainstream),Transport,4101023882,21/12/2022,2846.25
Buckinghamshire Council,Adults and Health,PREMIUM MINIBUSES & CARS LTD,1000478,Transport - Day Care - external,Transport,4101023964,21/12/2022,2976
Buckinghamshire Council,Adults and Health,PREMIUM MINIBUSES & CARS LTD,1000478,Transport - Day Care - external,Transport,4101023965,21/12/2022,1360
Buckinghamshire Council,Adults and Health,PREMIUM MINIBUSES & CARS LTD,1000478,Transport - Day Care - external,Transport,4101023966,21/12/2022,1008
Buckinghamshire Council,Adults and Health,PREMIUM MINIBUSES & CARS LTD,1000478,Transport - Day Care - external,Transport,4101023967,21/12/2022,1056
Buckinghamshire Council,Adults and Health,PREMIUM MINIBUSES & CARS LTD,1000478,Transport - Day Care - external,Transport,4101023968,21/12/2022,1360
Buckinghamshire Council,Adults and Health,PREMIUM MINIBUSES & CARS LTD,1000478,Transport - Day Care - external,Transport,4101023971,21/12/2022,1360
Buckinghamshire Council,Adults and Health,PREMIUM MINIBUSES & CARS LTD,1000478,Transport - Day Care - external,Transport,4101023972,21/12/2022,2289.6
Buckinghamshire Council,Adults and Health,PREMIUM MINIBUSES & CARS LTD,1000478,Transport - Day Care - external,Transport,4101023973,21/12/2022,1113
Buckinghamshire Council,Adults and Health,PREMIUM MINIBUSES & CARS LTD,1000478,Transport - Day Care - external,Transport,4101022720,14/12/2022,720
Buckinghamshire Council,Adults and Health,PREMIUM MINIBUSES & CARS LTD,1000478,Transport - Day Care - external,Transport,4101022723,14/12/2022,2310
Buckinghamshire Council,Communities,PREMIUM MINIBUSES & CARS LTD,1000478,Contracts (Mainstream),Transport,4101022724,14/12/2022,2385
Buckinghamshire Council,Communities,PREMIUM MINIBUSES & CARS LTD,1000478,Contracts (Mainstream),Transport,4101022726,14/12/2022,1560
Buckinghamshire Council,Communities,PREMIUM MINIBUSES & CARS LTD,1000478,Contracts (Mainstream),Transport,4101022727,14/12/2022,1395
Buckinghamshire Council,Children's Services,PREMIUM MINIBUSES & CARS LTD,1000478,Transport - Day Care - external,Transport,4101022728,14/12/2022,799.68
Buckinghamshire Council,Communities,PREMIUM MINIBUSES & CARS LTD,1000478,Contracts (Mainstream),Transport,4101022730,14/12/2022,556.28
Buckinghamshire Council,Adults and Health,PREMIUM MINIBUSES & CARS LTD,1000478,Transport - Day Care - external,Transport,4101022798,14/12/2022,960
Buckinghamshire Council,Adults and Health,PREMIUM MINIBUSES & CARS LTD,1000478,Transport - Day Care - external,Transport,4101022836,14/12/2022,719.73
Buckinghamshire Council,Communities,PREMIUM MINIBUSES & CARS LTD,1000478,Contracts (Mainstream),Transport,4101022837,14/12/2022,3197.4
Buckinghamshire Council,Communities,PREMIUM MINIBUSES & CARS LTD,1000478,Contracts (Mainstream),Transport,4101022838,14/12/2022,2160
Buckinghamshire Council,Adults and Health,PREMIUM MINIBUSES & CARS LTD,1000478,Transport - Day Care - external,Transport,4101022840,14/12/2022,1456
Buckinghamshire Council,Adults and Health,PREMIUM MINIBUSES & CARS LTD,1000478,Transport - Day Care - external,Transport,4101022841,14/12/2022,570.4
Buckinghamshire Council,Adults and Health,PREMIUM MINIBUSES & CARS LTD,1000478,Transport - Day Care - external,Transport,4101022842,14/12/2022,1888
Buckinghamshire Council,Adults and Health,PREMIUM MINIBUSES & CARS LTD,1000478,Transport - Day Care - external,Transport,4101022843,14/12/2022,960
Buckinghamshire Council,Adults and Health,PREMIUM MINIBUSES & CARS LTD,1000478,Transport - Day Care - external,Transport,4101022844,14/12/2022,690
Buckinghamshire Council,Adults and Health,PREMIUM MINIBUSES & CARS LTD,1000478,Transport - Day Care - external,Transport,4101022845,14/12/2022,1119.58
Buckinghamshire Council,Communities,PREMIUM MINIBUSES & CARS LTD,1000478,Contracts (Mainstream),Transport,4101022846,14/12/2022,955.46
Buckinghamshire Council,Adults and Health,PREMIUM MINIBUSES & CARS LTD,1000478,Transport - Day Care - external,Transport,4101023028,14/12/2022,5600
Buckinghamshire Council,Adults and Health,PREMIUM MINIBUSES & CARS LTD,1000478,Transport - Day Care - external,Transport,4101023029,14/12/2022,2800
Buckinghamshire Council,Adults and Health,PREMIUM MINIBUSES & CARS LTD,1000478,Transport - Day Care - external,Transport,4101023030,14/12/2022,2940
Buckinghamshire Council,Communities,PREMIUM MINIBUSES & CARS LTD,1000478,Contracts (Mainstream),Transport,4101023080,14/12/2022,1689.35
Buckinghamshire Council,Communities,PREMIUM MINIBUSES & CARS LTD,1000478,Contracts (Mainstream),Transport,4101023081,14/12/2022,1499.3
Buckinghamshire Council,Communities,PREMIUM MINIBUSES & CARS LTD,1000478,Contracts (Mainstream),Transport,4101023082,14/12/2022,979
Buckinghamshire Council,Adults and Health,PREMIUM MINIBUSES & CARS LTD,1000478,Transport - Day Care - external,Transport,4101023083,14/12/2022,5880
Buckinghamshire Council,Adults and Health,PREMIUM MINIBUSES & CARS LTD,1000478,Transport - Day Care - external,Transport,4101023084,14/12/2022,2940
Buckinghamshire Council,Adults and Health,PREMIUM MINIBUSES & CARS LTD,1000478,Transport - Day Care - external,Transport,4101023085,14/12/2022,6160
Buckinghamshire Council,Adults and Health,PREMIUM MINIBUSES & CARS LTD,1000478,Transport - Day Care - external,Transport,4101023086,14/12/2022,2367.2
Buckinghamshire Council,Adults and Health,PREMIUM MINIBUSES & CARS LTD,1000478,Transport - Day Care - external,Transport,4101023087,14/12/2022,5880
Buckinghamshire Council,Adults and Health,PREMIUM MINIBUSES & CARS LTD,1000478,Transport - Day Care - external,Transport,4101023088,14/12/2022,2940
Buckinghamshire Council,Communities,PREMIUM MINIBUSES & CARS LTD,1000478,Contracts (Mainstream),Transport,4101023137,14/12/2022,1538.46
Buckinghamshire Council,Communities,PREMIUM MINIBUSES & CARS LTD,1000478,Contracts (Mainstream),Transport,4101023165,14/12/2022,1778.4
Buckinghamshire Council,Communities,PREMIUM MINIBUSES & CARS LTD,1000478,Contracts (Mainstream),Transport,4101023166,14/12/2022,2337.66
Buckinghamshire Council,Communities,PREMIUM MINIBUSES & CARS LTD,1000478,Contracts (Mainstream),Transport,4101020552,07/12/2022,1276.8
Buckinghamshire Council,Communities,PREMIUM MINIBUSES & CARS LTD,1000478,Contracts (Mainstream),Transport,4101020553,07/12/2022,1280
Buckinghamshire Council,Communities,PREMIUM MINIBUSES & CARS LTD,1000478,Contracts (Mainstream),Transport,4101020591,07/12/2022,2100
Buckinghamshire Council,Communities,PREMIUM MINIBUSES & CARS LTD,1000478,Contracts (Mainstream),Transport,4101020592,07/12/2022,750
Buckinghamshire Council,Adults and Health,PREMIUM MINIBUSES & CARS LTD,1000478,Transport - Day Care - external,Transport,4101023497,16/12/2022,515
Buckinghamshire Council,Adults and Health,PREMIUM MINIBUSES & CARS LTD,1000478,Transport - Day Care - external,Transport,4101023498,16/12/2022,5880
Buckinghamshire Council,Communities,PREMIUM MINIBUSES & CARS LTD,1000478,Contracts (Mainstream),Transport,4101023499,16/12/2022,2398.2
Buckinghamshire Council,Communities,PREMIUM MINIBUSES & CARS LTD,1000478,Contracts (Mainstream),Transport,4101023500,16/12/2022,1615.92
Buckinghamshire Council,Communities,PREMIUM MINIBUSES & CARS LTD,1000478,Contracts (Mainstream),Transport,4101023573,16/12/2022,2222.88
Buckinghamshire Council,Communities,PREMIUM MINIBUSES & CARS LTD,1000478,Contracts (Mainstream),Transport,4101023574,16/12/2022,2673.12
Buckinghamshire Council,Communities,PREMIUM MINIBUSES & CARS LTD,1000478,Contracts (Mainstream),Transport,4101023575,16/12/2022,1216
Buckinghamshire Council,Communities,PREMIUM MINIBUSES & CARS LTD,1000478,Contracts (Mainstream),Transport,4101023576,16/12/2022,2206.4
Buckinghamshire Council,Communities,PREMIUM MINIBUSES & CARS LTD,1000478,Contracts (Mainstream),Transport,4101023577,16/12/2022,2192
Buckinghamshire Council,Communities,PREMIUM MINIBUSES & CARS LTD,1000478,Contracts (Mainstream),Transport,4101023578,16/12/2022,1320
Buckinghamshire Council,Communities,PREMIUM MINIBUSES & CARS LTD,1000478,Contracts (Mainstream),Transport,4101023579,16/12/2022,1983.52
Buckinghamshire Council,Communities,PREMIUM MINIBUSES & CARS LTD,1000478,Contracts (Mainstream),Transport,4101023580,16/12/2022,1439.68
Buckinghamshire Council,Communities,PREMIUM MINIBUSES & CARS LTD,1000478,Contracts (Mainstream),Transport,4101023581,16/12/2022,1185
Buckinghamshire Council,Communities,PREMIUM MINIBUSES & CARS LTD,1000478,Contracts (Mainstream),Transport,4101024682,23/12/2022,840
Buckinghamshire Council,Communities,PREMIUM MINIBUSES & CARS LTD,1000478,Contracts (Mainstream),Transport,4101024683,23/12/2022,1045.5
Buckinghamshire Council,Adults and Health,PREMIUM MINIBUSES & CARS LTD,1000478,Transport - Day Care - external,Transport,4101024924,23/12/2022,6160
Buckinghamshire Council,Communities,PREMIUM MINIBUSES & CARS LTD,1000478,Contracts (Mainstream),Transport,4101024925,23/12/2022,2017.05
Buckinghamshire Council,Communities,PREMIUM MINIBUSES & CARS LTD,1000478,Contracts (Mainstream),Transport,4101024926,23/12/2022,2643.27
Buckinghamshire Council,Adults and Health,PREMIUM MINIBUSES & CARS LTD,1000478,Transport - Day Care - external,Transport,4101024927,23/12/2022,960
Buckinghamshire Council,Adults and Health,PREMIUM MINIBUSES & CARS LTD,1000478,Transport - Day Care - external,Transport,4101024929,23/12/2022,2587.2
Buckinghamshire Council,Adults and Health,PREMIUM MINIBUSES & CARS LTD,1000478,Transport - Day Care - external,Transport,4101024931,23/12/2022,568.56
Buckinghamshire Council,Children's Services,PREMIUM MINIBUSES & CARS LTD,1000478,Transport - Day Care - external,Transport,4101024932,23/12/2022,3051.4
Buckinghamshire Council,Communities,PREMIUM MINIBUSES & CARS LTD,1000478,Contracts (Mainstream),Transport,4101024933,23/12/2022,3666.81
Buckinghamshire Council,Communities,PREMIUM MINIBUSES & CARS LTD,1000478,Contracts (Mainstream),Transport,4101024934,23/12/2022,3263.4
Buckinghamshire Council,Communities,PREMIUM MINIBUSES & CARS LTD,1000478,Contracts (Mainstream),Transport,4101024935,23/12/2022,4174.5
Buckinghamshire Council,Children's Services,PREMIUM MINIBUSES & CARS LTD,1000478,Transport - Day Care - external,Transport,4101024936,23/12/2022,1257.48
Buckinghamshire Council,Communities,PREMIUM MINIBUSES & CARS LTD,1000478,Contracts (Mainstream),Transport,4101024999,23/12/2022,897.2
Buckinghamshire Council,Communities,PREMIUM MINIBUSES & CARS LTD,1000478,Contracts (Mainstream),Transport,4101025000,23/12/2022,2644.95
Buckinghamshire Council,Communities,PREMIUM MINIBUSES & CARS LTD,1000478,Contracts (Mainstream),Transport,4101025002,23/12/2022,3356.43
Buckinghamshire Council,Communities,PREMIUM MINIBUSES & CARS LTD,1000478,Contracts (Mainstream),Transport,4101025003,23/12/2022,2310
Buckinghamshire Council,Communities,PREMIUM MINIBUSES & CARS LTD,1000478,Contracts (Mainstream),Transport,4101025004,23/12/2022,2074.8
Buckinghamshire Council,Communities,PREMIUM MINIBUSES & CARS LTD,1000478,Contracts (Mainstream),Transport,4101025005,23/12/2022,1602
Buckinghamshire Council,Communities,PREMIUM MINIBUSES & CARS LTD,1000478,Contracts (Mainstream),Transport,4101025006,23/12/2022,1738
Buckinghamshire Council,Communities,PREMIUM MINIBUSES & CARS LTD,1000478,Contracts (Mainstream),Transport,4101025007,23/12/2022,2160.27
Buckinghamshire Council,Communities,PREMIUM MINIBUSES & CARS LTD,1000478,Contracts (Mainstream),Transport,4101025029,23/12/2022,1040.94
Buckinghamshire Council,Communities,PREMIUM MINIBUSES & CARS LTD,1000478,Contracts (Mainstream),Transport,4101025030,23/12/2022,2417.58
Buckinghamshire Council,Communities,PREMIUM MINIBUSES & CARS LTD,1000478,Contracts (Mainstream),Transport,4101025031,23/12/2022,1100
Buckinghamshire Council,Communities,PREMIUM MINIBUSES & CARS LTD,1000478,Contracts (Mainstream),Transport,4101025032,23/12/2022,2591.82
Buckinghamshire Council,Communities,PREMIUM MINIBUSES & CARS LTD,1000478,Contracts (Mainstream),Transport,4101025033,23/12/2022,1537.58
Buckinghamshire Council,Communities,PREMIUM MINIBUSES & CARS LTD,1000478,Contracts (Mainstream),Transport,4101025034,23/12/2022,3613.5
Buckinghamshire Council,Communities,PREMIUM MINIBUSES & CARS LTD,1000478,Contracts (Mainstream),Transport,4101025035,23/12/2022,3014
Buckinghamshire Council,Communities,PREMIUM MINIBUSES & CARS LTD,1000478,Contracts (Mainstream),Transport,4101025036,23/12/2022,3474.68
Buckinghamshire Council,Communities,PREMIUM MINIBUSES & CARS LTD,1000478,Contracts (Mainstream),Transport,4101025037,23/12/2022,2195.6
Buckinghamshire Council,Communities,PREMIUM MINIBUSES & CARS LTD,1000478,Contracts (Mainstream),Transport,4101025038,23/12/2022,1760
Buckinghamshire Council,Communities,PREMIUM MINIBUSES & CARS LTD,1000478,Contracts (Mainstream),Transport,4101025039,23/12/2022,2393.58
Buckinghamshire Council,Communities,PREMIUM MINIBUSES & CARS LTD,1000478,Contracts (Mainstream),Transport,4101025040,23/12/2022,3033.8
Buckinghamshire Council,Communities,PREMIUM MINIBUSES & CARS LTD,1000478,Contracts (Mainstream),Transport,4101025041,23/12/2022,1628
Buckinghamshire Council,Communities,PREMIUM MINIBUSES & CARS LTD,1000478,Contracts (Mainstream),Transport,4101025042,23/12/2022,1979.56
Buckinghamshire Council,Communities,PREMIUM MINIBUSES & CARS LTD,1000478,Contracts (Mainstream),Transport,4101025043,23/12/2022,3075.16
Buckinghamshire Council,Communities,PREMIUM MINIBUSES & CARS LTD,1000478,Contracts (Mainstream),Transport,4101025044,23/12/2022,2418.68
Buckinghamshire Council,Communities,PREMIUM MINIBUSES & CARS LTD,1000478,Contracts (Mainstream),Transport,4101025045,23/12/2022,1958
Buckinghamshire Council,Communities,PREMIUM MINIBUSES & CARS LTD,1000478,Contracts (Mainstream),Transport,4101025046,23/12/2022,2573.78
Buckinghamshire Council,Communities,PREMIUM MINIBUSES & CARS LTD,1000478,Contracts (Mainstream),Transport,4101025047,23/12/2022,814.44
Buckinghamshire Council,Children's Services,PREMIUM MINIBUSES & CARS LTD,1000478,Transport - Day Care - external,Transport,4101025115,23/12/2022,2730
Buckinghamshire Council,Communities,PREMIUM MINIBUSES & CARS LTD,1000478,Contracts (Mainstream),Transport,4101025116,23/12/2022,2640
Buckinghamshire Council,Communities,PREMIUM MINIBUSES & CARS LTD,1000478,Contracts (Mainstream),Transport,4101025117,23/12/2022,1140
Buckinghamshire Council,Communities,PREMIUM MINIBUSES & CARS LTD,1000478,Contracts (Mainstream),Transport,4101025118,23/12/2022,2620.1
Buckinghamshire Council,Communities,PREMIUM MINIBUSES & CARS LTD,1000478,Contracts (Mainstream),Transport,4101025123,23/12/2022,2755.4
Buckinghamshire Council,Adults and Health,PREMIUM MINIBUSES & CARS LTD,1000478,Transport - Day Care - external,Transport,4101025124,23/12/2022,1150
Buckinghamshire Council,Communities,PREMIUM MINIBUSES & CARS LTD,1000478,Contracts (Mainstream),Transport,4101025125,23/12/2022,2276.2
Buckinghamshire Council,Adults and Health,PREMIUM MINIBUSES & CARS LTD,1000478,Transport - Day Care - external,Transport,4101025126,23/12/2022,2468.1
Buckinghamshire Council,Communities,PREMIUM MINIBUSES & CARS LTD,1000478,Contracts (Mainstream),Transport,4101025127,23/12/2022,1666
Buckinghamshire Council,Communities,PREMIUM MINIBUSES & CARS LTD,1000478,Contracts (Mainstream),Transport,4101025138,23/12/2022,2727.34
Buckinghamshire Council,Communities,PREMIUM MINIBUSES & CARS LTD,1000478,Contracts (Mainstream),Transport,4101025194,28/12/2022,3080
Buckinghamshire Council,Communities,PREMIUM MINIBUSES & CARS LTD,1000478,Contracts (Mainstream),Transport,4101025195,28/12/2022,2858.9
Buckinghamshire Council,Communities,PREMIUM MINIBUSES & CARS LTD,1000478,Contracts (Mainstream),Transport,4101025207,28/12/2022,1320
Buckinghamshire Council,Communities,PREMIUM MINIBUSES & CARS LTD,1000478,Contracts (Mainstream),Transport,4101025208,28/12/2022,3146
Buckinghamshire Council,Adults and Health,PREMIUM MINIBUSES & CARS LTD,1000478,Transport - Day Care - external,Transport,4101025209,28/12/2022,1108.8
Buckinghamshire Council,Adults and Health,PREMIUM MINIBUSES & CARS LTD,1000478,Transport - Day Care - external,Transport,4101025210,28/12/2022,2976
Buckinghamshire Council,Adults and Health,PREMIUM MINIBUSES & CARS LTD,1000478,Transport - Day Care - external,Transport,4101025211,28/12/2022,3080
Buckinghamshire Council,Communities,PREMIUM MINIBUSES & CARS LTD,1000478,Contracts (Mainstream),Transport,4101025292,28/12/2022,1320
Buckinghamshire Council,Communities,PREMIUM MINIBUSES & CARS LTD,1000478,Contracts (Mainstream),Transport,4101025293,28/12/2022,1796
Buckinghamshire Council,Communities,PREMIUM MINIBUSES & CARS LTD,1000478,Contracts (Mainstream),Transport,4101025294,28/12/2022,2579.06
Buckinghamshire Council,Communities,PREMIUM MINIBUSES & CARS LTD,1000478,Contracts (Mainstream),Transport,4101025295,28/12/2022,1394
Buckinghamshire Council,Communities,PREMIUM MINIBUSES & CARS LTD,1000478,Contracts (Mainstream),Transport,4101025296,28/12/2022,1170
Buckinghamshire Council,Communities,PREMIUM MINIBUSES & CARS LTD,1000478,Contracts (Mainstream),Transport,4101025297,28/12/2022,1716
Buckinghamshire Council,Communities,PREMIUM MINIBUSES & CARS LTD,1000478,Contracts (Mainstream),Transport,4101025298,28/12/2022,3148.53
Buckinghamshire Council,Communities,PREMIUM MINIBUSES & CARS LTD,1000478,Contracts (Mainstream),Transport,4101025299,28/12/2022,1672
Buckinghamshire Council,Communities,PREMIUM MINIBUSES & CARS LTD,1000478,Contracts (Mainstream),Transport,4101025300,28/12/2022,3076.26
Buckinghamshire Council,Communities,PREMIUM MINIBUSES & CARS LTD,1000478,Contracts (Mainstream),Transport,4101025301,28/12/2022,1847.78
Buckinghamshire Council,Communities,PREMIUM MINIBUSES & CARS LTD,1000478,Contracts (Mainstream),Transport,4101025302,28/12/2022,2934.12
Buckinghamshire Council,Communities,PREMIUM MINIBUSES & CARS LTD,1000478,Contracts (Mainstream),Transport,4101025303,28/12/2022,3357.27
Buckinghamshire Council,Communities,PREMIUM MINIBUSES & CARS LTD,1000478,Contracts (Mainstream),Transport,4101025304,28/12/2022,2418.68
Buckinghamshire Council,Communities,PREMIUM MINIBUSES & CARS LTD,1000478,Contracts (Mainstream),Transport,4101025305,28/12/2022,2420
Buckinghamshire Council,Communities,PREMIUM MINIBUSES & CARS LTD,1000478,Contracts (Mainstream),Transport,4101025306,28/12/2022,2635.6
Buckinghamshire Council,Communities,PREMIUM MINIBUSES & CARS LTD,1000478,Contracts (Mainstream),Transport,4101025307,28/12/2022,968
Buckinghamshire Council,Communities,PREMIUM MINIBUSES & CARS LTD,1000478,Contracts (Mainstream),Transport,4101025308,28/12/2022,2639.34
Buckinghamshire Council,Communities,PREMIUM MINIBUSES & CARS LTD,1000478,Contracts (Mainstream),Transport,4101025309,28/12/2022,3675.54
Buckinghamshire Council,Communities,PREMIUM MINIBUSES & CARS LTD,1000478,Contracts (Mainstream),Transport,4101025403,30/12/2022,1945.02
Buckinghamshire Council,Adults and Health,PREMIUM MINIBUSES & CARS LTD,1000478,Transport - Day Care - external,Transport,4101025404,30/12/2022,768
Buckinghamshire Council,Communities,PREMIUM MINIBUSES & CARS LTD,1000478,Contracts (Mainstream),Transport,4101025406,30/12/2022,1284.84
Buckinghamshire Council,Communities,PREMIUM MINIBUSES & CARS LTD,1000478,Contracts (Mainstream),Transport,4101025407,30/12/2022,1677.2
Buckinghamshire Council,Children's Services,INDUSTRIAL PIPE SERVS(2003)LTD,1000494,Construction - Building Work,Capital - Expenditure -Controllable,7002965727,09/12/2022,31161.9
Buckinghamshire Council,"Planning, Growth & Sustainability",INDUSTRIAL PIPE SERVS(2003)LTD,1000494,Urgent Repairs & Maintenance,Controllable Premises,7002964570,02/12/2022,3575
Buckinghamshire Council,Children's Services,INDUSTRIAL PIPE SERVS(2003)LTD,1000494,Construction - Building Work,Capital - Expenditure -Controllable,7002976263,30/12/2022,24320.95
Buckinghamshire Council,Adults and Health,Bucks Vision,1000512,Payments To Contractors,Supplies and Services,4101020774,07/12/2022,24559.17
Buckinghamshire Council,Children's Services,Buckinghamshire College Group,1000534,College Placements,Agency (third party payments) & Contribs,3300487532,14/12/2022,328556
Buckinghamshire Council,Communities,GILBERTS OF CHESHAM,1000556,Contracts (Mainstream),Transport,4101022639,14/12/2022,1314.28
Buckinghamshire Council,Communities,GILBERTS OF CHESHAM,1000556,Contracts (Mainstream),Transport,4101022640,14/12/2022,1575.9
Buckinghamshire Council,Communities,GILBERTS OF CHESHAM,1000556,Contracts (Mainstream),Transport,4101022641,14/12/2022,1668.6
Buckinghamshire Council,Communities,GILBERTS OF CHESHAM,1000556,Contracts (Mainstream),Transport,4101022642,14/12/2022,1586.2
Buckinghamshire Council,Communities,GILBERTS OF CHESHAM,1000556,Contracts (Mainstream),Transport,4101022643,14/12/2022,1758.42
Buckinghamshire Council,Communities,GILBERTS OF CHESHAM,1000556,Contracts (Mainstream),Transport,4101022644,14/12/2022,1872.64
Buckinghamshire Council,Communities,GILBERTS OF CHESHAM,1000556,Contracts (Mainstream),Transport,4101022645,14/12/2022,4373.03
Buckinghamshire Council,Communities,GILBERTS OF CHESHAM,1000556,Contracts (Mainstream),Transport,4101022646,14/12/2022,1404.92
Buckinghamshire Council,Children's Services,GILBERTS OF CHESHAM,1000556,Sec 20/31: Transport,Transfer Payments (Grants & Assistance),4101022775,14/12/2022,1760
Buckinghamshire Council,Communities,GILBERTS OF CHESHAM,1000556,Contracts (Mainstream),Transport,4101023979,21/12/2022,17218.3
Buckinghamshire Council,Communities,GILBERTS OF CHESHAM,1000556,Contracts (Mainstream),Transport,4101024571,21/12/2022,13570.66
Buckinghamshire Council,Children's Services,GILBERTS OF CHESHAM,1000556,Sec 20/31: Transport,Transfer Payments (Grants & Assistance),4101021291,09/12/2022,1200
Buckinghamshire Council,Communities,GILBERTS OF CHESHAM,1000556,Contracts (Mainstream),Transport,4101021009,02/12/2022,896.1
Buckinghamshire Council,Communities,GILBERTS OF CHESHAM,1000556,Contracts (Mainstream),Transport,4101023161,16/12/2022,2546.78
Buckinghamshire Council,Communities,GILBERTS OF CHESHAM,1000556,Contracts (Mainstream),Transport,4101023193,16/12/2022,514.69
Buckinghamshire Council,Communities,GILBERTS OF CHESHAM,1000556,Contracts (Mainstream),Transport,4101023194,16/12/2022,907.8
Buckinghamshire Council,Communities,GILBERTS OF CHESHAM,1000556,Contracts (Mainstream),Transport,4101024678,23/12/2022,824
Buckinghamshire Council,Communities,GILBERTS OF CHESHAM,1000556,Contracts (Mainstream),Transport,4101025627,30/12/2022,2778.83
Buckinghamshire Council,Communities,GILBERTS OF CHESHAM,1000556,Contracts (Mainstream),Transport,4101025628,30/12/2022,1039.06
Buckinghamshire Council,Communities,GILBERTS OF CHESHAM,1000556,Contracts (Mainstream),Transport,4101025629,30/12/2022,894.04
Buckinghamshire Council,Communities,GILBERTS OF CHESHAM,1000556,Contracts (Mainstream),Transport,4101025630,30/12/2022,1227.43
Buckinghamshire Council,Communities,GILBERTS OF CHESHAM,1000556,Contracts (Mainstream),Transport,4101025631,30/12/2022,1050.6
Buckinghamshire Council,Communities,GILBERTS OF CHESHAM,1000556,Contracts (Mainstream),Transport,4101025632,30/12/2022,1112.4
Buckinghamshire Council,Communities,GILBERTS OF CHESHAM,1000556,Contracts (Mainstream),Transport,4101025633,30/12/2022,659.2
Buckinghamshire Council,Communities,GILBERTS OF CHESHAM,1000556,Contracts (Mainstream),Transport,4101025634,30/12/2022,1009.4
Buckinghamshire Council,"Planning, Growth & Sustainability",E E KEEN & SONS,1000567,Urgent Repairs & Maintenance,Controllable Premises,7002969781,23/12/2022,3080
Buckinghamshire Council,"Planning, Growth & Sustainability",E E KEEN & SONS,1000567,General Repairs & Maintenance,Controllable Premises,7002973035,23/12/2022,952
Buckinghamshire Council,Communities Directorate,E E KEEN & SONS,1000567,Construction - Building Work,Capital - Expenditure -Controllable,4101024144,28/12/2022,8824
Buckinghamshire Council,Communities Directorate,E E KEEN & SONS,1000567,Construction - Building Work,Capital - Expenditure -Controllable,4101025192,28/12/2022,30831
Buckinghamshire Council,"Planning, Growth & Sustainability",E E KEEN & SONS,1000567,Urgent Repairs & Maintenance,Controllable Premises,7002971631,28/12/2022,10420
Buckinghamshire Council,"Planning, Growth & Sustainability",E E KEEN & SONS,1000567,Buy Back BCC,Controllable Premises,7002971673,28/12/2022,5658
Buckinghamshire Council,"Planning, Growth & Sustainability",E E KEEN & SONS,1000567,General Repairs & Maintenance,Controllable Premises,7002973036,28/12/2022,1692
Buckinghamshire Council,Communities,E E KEEN & SONS,1000567,General Repairs & Maintenance,Controllable Premises,7002965681,09/12/2022,3827
Buckinghamshire Council,Communities,E E KEEN & SONS,1000567,General Repairs & Maintenance,Controllable Premises,7002961955,07/12/2022,2039
Buckinghamshire Council,Communities Directorate,E E KEEN & SONS,1000567,Construction - Building Work,Capital - Expenditure -Controllable,4101022440,14/12/2022,16000
Buckinghamshire Council,"Planning, Growth & Sustainability",E E KEEN & SONS,1000567,Contractors' Work,Controllable Premises,7002966836,14/12/2022,700
Buckinghamshire Council,Children's Services,TURNEY BROTHERS (BUILDERS)& CO LTD,1000571,Construction - Building Work,Capital - Expenditure -Controllable,7002964579,09/12/2022,6000
Buckinghamshire Council,Communities,MASONS MINIBUS/CAR HIRE,1000603,Contracts (Mainstream),Transport,4101024301,21/12/2022,2072.73
Buckinghamshire Council,Communities,MARSHALLS COACHES  LLP,1000607,Contracts (Mainstream),Transport,4101021008,02/12/2022,6608.48
Buckinghamshire Council,Communities,MARSHALLS COACHES  LLP,1000607,Contracts (Mainstream),Transport,4101022747,14/12/2022,3201.24
Buckinghamshire Council,Communities,MARSHALLS COACHES  LLP,1000607,Contracts (Mainstream),Transport,4101022748,14/12/2022,8976.45
Buckinghamshire Council,Communities,MARSHALLS COACHES  LLP,1000607,Contracts (Mainstream),Transport,4101022749,14/12/2022,4412.52
Buckinghamshire Council,Communities,MARSHALLS COACHES  LLP,1000607,Contracts (Mainstream),Transport,4101022929,14/12/2022,4417.6
Buckinghamshire Council,Communities,MARSHALLS COACHES  LLP,1000607,Contracts (Mainstream),Transport,4101023162,14/12/2022,8673.63
Buckinghamshire Council,Communities,MARSHALLS COACHES  LLP,1000607,Contracts (Mainstream),Transport,4101025636,30/12/2022,2134.16
Buckinghamshire Council,Communities,MARSHALLS COACHES  LLP,1000607,Contracts (Mainstream),Transport,4101025637,30/12/2022,5984.3
Buckinghamshire Council,Communities,MARSHALLS COACHES  LLP,1000607,Contracts (Mainstream),Transport,4101025638,30/12/2022,2941.68
Buckinghamshire Council,Communities,MARSHALLS COACHES  LLP,1000607,Contracts (Mainstream),Transport,4101025639,30/12/2022,5782.42
Buckinghamshire Council,Communities,MARSHALLS COACHES  LLP,1000607,Contracts (Mainstream),Transport,4101025659,30/12/2022,2811.06
Buckinghamshire Council,"Planning, Growth & Sustainability",3D Aluminium Plas Ltd,1000686,Urgent Repairs & Maintenance,Controllable Premises,7002968402,21/12/2022,4613.74
Buckinghamshire Council,"Planning, Growth & Sustainability",3D Aluminium Plas Ltd,1000686,Urgent Repairs & Maintenance,Controllable Premises,7002966811,14/12/2022,818
Buckinghamshire Council,Children's Services,3D Aluminium Plas Ltd,1000686,Construction - Building Work,Capital - Expenditure -Controllable,7002961958,07/12/2022,56166.86
Buckinghamshire Council,Planning Growth & Sustainability,3D Aluminium Plas Ltd,1000686,Construction - Building Work,Capital - Expenditure -Controllable,7002961985,07/12/2022,2169.92
Buckinghamshire Council,Children's Services,3D Aluminium Plas Ltd,1000686,Construction - Building Work,Capital - Expenditure -Controllable,7002964571,02/12/2022,1000
Buckinghamshire Council,Children's Services,3D Aluminium Plas Ltd,1000686,Construction - Building Work,Capital - Expenditure -Controllable,7002976260,30/12/2022,7434.81
Buckinghamshire Council,Children's Services,3D Aluminium Plas Ltd,1000686,Construction - Building Work,Capital - Expenditure -Controllable,7002976264,30/12/2022,6882.44
Buckinghamshire Council,Planning Growth & Sustainability,R & D CONTRACTORS,1000762,Grants (Capital Expenditure),Capital - Expenditure -Controllable,3300488284,21/12/2022,29749.5
Buckinghamshire Council,Planning Growth & Sustainability,R & D CONTRACTORS,1000762,Grants (Capital Expenditure),Capital - Expenditure -Controllable,3300489500,21/12/2022,11460
Buckinghamshire Council,Planning Growth & Sustainability,R & D CONTRACTORS,1000762,Grants (Capital Expenditure),Capital - Expenditure -Controllable,3300489501,21/12/2022,6735.09
Buckinghamshire Council,Planning Growth & Sustainability,R & D CONTRACTORS,1000762,Grants (Capital Expenditure),Capital - Expenditure -Controllable,3300484697,02/12/2022,7475
Buckinghamshire Council,Planning Growth & Sustainability,R & D CONTRACTORS,1000762,Grants (Capital Expenditure),Capital - Expenditure -Controllable,3300489983,23/12/2022,1550
Buckinghamshire Council,Planning Growth & Sustainability,R & D CONTRACTORS,1000762,Grants (Capital Expenditure),Capital - Expenditure -Controllable,3300490584,30/12/2022,7760
Buckinghamshire Council,Adults and Health,ACORN VILLAGES LTD,1000822,Res care-permanent - other,Agency (third party payments) & Contribs,7002970434,21/12/2022,6050.56
Buckinghamshire Council,Resources,Royal Mail Group Ltd,1000878,General Postage,Supplies and Services,4101024804,23/12/2022,10391.76
Buckinghamshire Council,Resources,Royal Mail Group Ltd,1000878,General Postage,Supplies and Services,4101024804,23/12/2022,519
Buckinghamshire Council,Resources,Royal Mail Group Ltd,1000878,General Postage,Supplies and Services,4101024806,23/12/2022,1502.75
Buckinghamshire Council,Resources,Royal Mail Group Ltd,1000878,General Postage,Supplies and Services,4101024809,23/12/2022,3059.4
Buckinghamshire Council,Resources,Royal Mail Group Ltd,1000878,General Postage,Supplies and Services,4101024812,23/12/2022,899.31
Buckinghamshire Council,Resources,Royal Mail Group Ltd,1000878,General Postage,Supplies and Services,4101024813,23/12/2022,3768.39
Buckinghamshire Council,Children's Services,THE PERTEMPS GROUP OF COMPANIES,1000901,Interpreters Fees,Supplies and Services,3300484312,07/12/2022,2014
Buckinghamshire Council,Children's Services,THE PERTEMPS GROUP OF COMPANIES,1000901,Interpreters Fees,Supplies and Services,3300484314,07/12/2022,617
Buckinghamshire Council,Children's Services,THE PERTEMPS GROUP OF COMPANIES,1000901,Interpreters Fees,Supplies and Services,3300484319,07/12/2022,502
Buckinghamshire Council,Children's Services,THE PERTEMPS GROUP OF COMPANIES,1000901,Interpreters Fees,Supplies and Services,3300484322,07/12/2022,820
Buckinghamshire Council,Children's Services,THE PERTEMPS GROUP OF COMPANIES,1000901,Agency Worker,Controllable Employees,3300484326,07/12/2022,1922.15
Buckinghamshire Council,Resources,THE PERTEMPS GROUP OF COMPANIES,1000901,Agency Worker,Controllable Employees,3300484328,07/12/2022,2587.75
Buckinghamshire Council,Adults and Health,THE PERTEMPS GROUP OF COMPANIES,1000901,Social Workers - Agency,Controllable Employees,3300484329,07/12/2022,1524.4
Buckinghamshire Council,Adults and Health,THE PERTEMPS GROUP OF COMPANIES,1000901,Social Workers - Agency,Controllable Employees,3300484331,07/12/2022,1235.81
Buckinghamshire Council,Adults and Health,THE PERTEMPS GROUP OF COMPANIES,1000901,Agency Worker,Controllable Employees,3300484332,07/12/2022,1459.5
Buckinghamshire Council,Adults and Health,THE PERTEMPS GROUP OF COMPANIES,1000901,Social Workers - Agency,Controllable Employees,3300484334,07/12/2022,1414.14
Buckinghamshire Council,Resources,THE PERTEMPS GROUP OF COMPANIES,1000901,Agency Worker,Controllable Employees,3300484335,07/12/2022,1397.6
Buckinghamshire Council,"Planning, Growth & Sustainability",THE PERTEMPS GROUP OF COMPANIES,1000901,Agency Worker,Controllable Employees,3300484338,07/12/2022,4330.83
Buckinghamshire Council,Children's Services,THE PERTEMPS GROUP OF COMPANIES,1000901,Agency Worker,Controllable Employees,3300484339,07/12/2022,1846.67
Buckinghamshire Council,Adults and Health,THE PERTEMPS GROUP OF COMPANIES,1000901,Agency Worker,Controllable Employees,3300484340,07/12/2022,1623.19
Buckinghamshire Council,Adults and Health,THE PERTEMPS GROUP OF COMPANIES,1000901,Agency Worker,Controllable Employees,3300484341,07/12/2022,1230.15
Buckinghamshire Council,Deputy Chief Executive,THE PERTEMPS GROUP OF COMPANIES,1000901,Agency Worker,Controllable Employees,3300484342,07/12/2022,1424.16
Buckinghamshire Council,Adults and Health,THE PERTEMPS GROUP OF COMPANIES,1000901,Social Workers - Agency,Controllable Employees,3300484344,07/12/2022,1445.22
Buckinghamshire Council,Children's Services,THE PERTEMPS GROUP OF COMPANIES,1000901,Agency Worker,Controllable Employees,3300484348,07/12/2022,1947
Buckinghamshire Council,"Planning, Growth & Sustainability",THE PERTEMPS GROUP OF COMPANIES,1000901,Agency Worker,Controllable Employees,3300484349,07/12/2022,3705
Buckinghamshire Council,"Planning, Growth & Sustainability",THE PERTEMPS GROUP OF COMPANIES,1000901,Agency Worker,Controllable Employees,3300484350,07/12/2022,1387.6
Buckinghamshire Council,Adults and Health,THE PERTEMPS GROUP OF COMPANIES,1000901,Social Workers - Agency,Controllable Employees,3300484351,07/12/2022,585.9
Buckinghamshire Council,Adults and Health,THE PERTEMPS GROUP OF COMPANIES,1000901,Social Workers - Agency,Controllable Employees,3300484352,07/12/2022,1542.9
Buckinghamshire Council,Resources,THE PERTEMPS GROUP OF COMPANIES,1000901,Agency Worker,Controllable Employees,3300484353,07/12/2022,2825.05
Buckinghamshire Council,Adults and Health,THE PERTEMPS GROUP OF COMPANIES,1000901,Agency Worker,Controllable Employees,3300484354,07/12/2022,821.2
Buckinghamshire Council,Adults and Health,THE PERTEMPS GROUP OF COMPANIES,1000901,Agency Worker,Controllable Employees,3300484355,07/12/2022,1642.4
Buckinghamshire Council,Communities,THE PERTEMPS GROUP OF COMPANIES,1000901,Agency Worker,Controllable Employees,3300484356,07/12/2022,646.02
Buckinghamshire Council,Children's Services,THE PERTEMPS GROUP OF COMPANIES,1000901,Agency Worker,Controllable Employees,3300484357,07/12/2022,684
Buckinghamshire Council,Children's Services,THE PERTEMPS GROUP OF COMPANIES,1000901,Agency Worker,Controllable Employees,3300484359,07/12/2022,664.32
Buckinghamshire Council,Resources,THE PERTEMPS GROUP OF COMPANIES,1000901,Agency Worker,Controllable Employees,3300484360,07/12/2022,2684.55
Buckinghamshire Council,Communities,THE PERTEMPS GROUP OF COMPANIES,1000901,Agency Worker,Controllable Employees,3300484362,07/12/2022,718.74
Buckinghamshire Council,Adults and Health,THE PERTEMPS GROUP OF COMPANIES,1000901,Agency Worker,Controllable Employees,3300484363,07/12/2022,609.39
Buckinghamshire Council,Children's Services,THE PERTEMPS GROUP OF COMPANIES,1000901,Agency Worker,Controllable Employees,3300484364,07/12/2022,1656.49
Buckinghamshire Council,Children's Services,THE PERTEMPS GROUP OF COMPANIES,1000901,Social Workers - Agency,Controllable Employees,3300484366,07/12/2022,946.8
Buckinghamshire Council,Resources,THE PERTEMPS GROUP OF COMPANIES,1000901,Agency Worker,Controllable Employees,3300484368,07/12/2022,698.93
Buckinghamshire Council,Adults and Health,THE PERTEMPS GROUP OF COMPANIES,1000901,Social Workers - Agency,Controllable Employees,3300484369,07/12/2022,1633.7
Buckinghamshire Council,Resources,THE PERTEMPS GROUP OF COMPANIES,1000901,Agency Worker,Controllable Employees,3300484370,07/12/2022,587.19
Buckinghamshire Council,Children's Services,THE PERTEMPS GROUP OF COMPANIES,1000901,Social Workers - Agency,Controllable Employees,3300484372,07/12/2022,1530.69
Buckinghamshire Council,Resources,THE PERTEMPS GROUP OF COMPANIES,1000901,Agency Worker,Controllable Employees,3300484373,07/12/2022,620.49
Buckinghamshire Council,Adults and Health,THE PERTEMPS GROUP OF COMPANIES,1000901,Agency Worker,Controllable Employees,3300484374,07/12/2022,3193.45
Buckinghamshire Council,Adults and Health,THE PERTEMPS GROUP OF COMPANIES,1000901,Agency Worker,Controllable Employees,3300484375,07/12/2022,1619.86
Buckinghamshire Council,Children's Services,THE PERTEMPS GROUP OF COMPANIES,1000901,Agency Worker,Controllable Employees,3300484377,07/12/2022,1732.71
Buckinghamshire Council,Children's Services,THE PERTEMPS GROUP OF COMPANIES,1000901,Social Workers - Agency,Controllable Employees,3300484378,07/12/2022,2017.98
Buckinghamshire Council,Children's Services,THE PERTEMPS GROUP OF COMPANIES,1000901,Agency Worker,Controllable Employees,3300484379,07/12/2022,1604.32
Buckinghamshire Council,Children's Services,THE PERTEMPS GROUP OF COMPANIES,1000901,Agency Worker,Controllable Employees,3300484381,07/12/2022,2442.9
Buckinghamshire Council,Adults and Health,THE PERTEMPS GROUP OF COMPANIES,1000901,Agency Worker,Controllable Employees,3300484383,07/12/2022,1630.04
Buckinghamshire Council,Adults and Health,THE PERTEMPS GROUP OF COMPANIES,1000901,Agency Worker,Controllable Employees,3300484384,07/12/2022,543.3
Buckinghamshire Council,Children's Services,THE PERTEMPS GROUP OF COMPANIES,1000901,Agency Worker,Controllable Employees,3300484385,07/12/2022,1573.61
Buckinghamshire Council,Adults and Health,THE PERTEMPS GROUP OF COMPANIES,1000901,Social Workers - Agency,Controllable Employees,3300484386,07/12/2022,1320.16
Buckinghamshire Council,"Planning, Growth & Sustainability",THE PERTEMPS GROUP OF COMPANIES,1000901,Agency Worker,Controllable Employees,3300484387,07/12/2022,1172.8
Buckinghamshire Council,Children's Services,THE PERTEMPS GROUP OF COMPANIES,1000901,Social Workers - Agency,Controllable Employees,3300484389,07/12/2022,702.45
Buckinghamshire Council,Children's Services,THE PERTEMPS GROUP OF COMPANIES,1000901,Agency Worker,Controllable Employees,3300484390,07/12/2022,1707.55
Buckinghamshire Council,Children's Services,THE PERTEMPS GROUP OF COMPANIES,1000901,Social Workers - Agency,Controllable Employees,3300484392,07/12/2022,1655.01
Buckinghamshire Council,Children's Services,THE PERTEMPS GROUP OF COMPANIES,1000901,Social Workers - Agency,Controllable Employees,3300484394,07/12/2022,1887
Buckinghamshire Council,Children's Services,THE PERTEMPS GROUP OF COMPANIES,1000901,Agency Worker,Controllable Employees,3300484395,07/12/2022,1879.97
Buckinghamshire Council,Children's Services,THE PERTEMPS GROUP OF COMPANIES,1000901,Social Workers - Agency,Controllable Employees,3300484396,07/12/2022,1543.64
Buckinghamshire Council,Children's Services,THE PERTEMPS GROUP OF COMPANIES,1000901,Social Workers - Agency,Controllable Employees,3300484398,07/12/2022,1534.39
Buckinghamshire Council,Children's Services,THE PERTEMPS GROUP OF COMPANIES,1000901,Social Workers - Agency,Controllable Employees,3300484399,07/12/2022,1542.53
Buckinghamshire Council,Children's Services,THE PERTEMPS GROUP OF COMPANIES,1000901,Agency Worker,Controllable Employees,3300484400,07/12/2022,1707.18
Buckinghamshire Council,Adults and Health,THE PERTEMPS GROUP OF COMPANIES,1000901,Agency Worker,Controllable Employees,3300484402,07/12/2022,1646.13
Buckinghamshire Council,Adults and Health,THE PERTEMPS GROUP OF COMPANIES,1000901,Social Workers - Agency,Controllable Employees,3300484403,07/12/2022,594.6
Buckinghamshire Council,Children's Services,THE PERTEMPS GROUP OF COMPANIES,1000901,Social Workers - Agency,Controllable Employees,3300484405,07/12/2022,1425.61
Buckinghamshire Council,Adults and Health,THE PERTEMPS GROUP OF COMPANIES,1000901,Social Workers - Agency,Controllable Employees,3300484407,07/12/2022,1445.22
Buckinghamshire Council,Adults and Health,THE PERTEMPS GROUP OF COMPANIES,1000901,Agency Worker,Controllable Employees,3300484408,07/12/2022,1425.61
Buckinghamshire Council,Children's Services,THE PERTEMPS GROUP OF COMPANIES,1000901,Agency Worker,Controllable Employees,3300484410,07/12/2022,1725.68
Buckinghamshire Council,Resources,THE PERTEMPS GROUP OF COMPANIES,1000901,Agency Worker,Controllable Employees,3300484411,07/12/2022,2083.5
Buckinghamshire Council,Children's Services,THE PERTEMPS GROUP OF COMPANIES,1000901,Social Workers - Agency,Controllable Employees,3300484413,07/12/2022,1725.68
Buckinghamshire Council,Deputy Chief Executive,THE PERTEMPS GROUP OF COMPANIES,1000901,Agency Worker,Controllable Employees,3300484414,07/12/2022,766.27
Buckinghamshire Council,Children's Services,THE PERTEMPS GROUP OF COMPANIES,1000901,Social Workers - Agency,Controllable Employees,3300484415,07/12/2022,1524.4
Buckinghamshire Council,"Planning, Growth & Sustainability",THE PERTEMPS GROUP OF COMPANIES,1000901,Agency Worker,Controllable Employees,3300484416,07/12/2022,2858
Buckinghamshire Council,"Planning, Growth & Sustainability",THE PERTEMPS GROUP OF COMPANIES,1000901,Agency Worker,Controllable Employees,3300484417,07/12/2022,822.97
Buckinghamshire Council,Resources,THE PERTEMPS GROUP OF COMPANIES,1000901,Agency Worker,Controllable Employees,3300484418,07/12/2022,563.51
Buckinghamshire Council,Children's Services,THE PERTEMPS GROUP OF COMPANIES,1000901,Social Workers - Agency,Controllable Employees,3300484419,07/12/2022,1691.64
